﻿Body Name,Body,Service Area Categorisation,Service Division Categorisation,Responsible Unit,Expenses Type,Detailed Expenses Type,Payment Date,Transaction Number,Payment Amount,Supplier Type,Supplier Name,Supplier Id
Portsmouth City Council,PCC,Housing Services,Homelessness,"Housing, Neighbourhood and Building Services",Premises-Related Expenditure,Rents,23-Dec-22,6693062,"1,056.30",SOLETRADER,Classified as 'personal data' (under the Data Protection Act 2018),300000020478633
Portsmouth City Council,PCC,Housing Services,Homelessness,"Housing, Neighbourhood and Building Services",Premises-Related Expenditure,Rents,23-Dec-22,6693052,"2,760.00",SOLETRADER,Classified as 'personal data' (under the Data Protection Act 2018),300000020482994
Portsmouth City Council,PCC,Housing Services,Homelessness,"Housing, Neighbourhood and Building Services",Premises-Related Expenditure,Rents,23-Dec-22,6693052,"2,717.53",SOLETRADER,Classified as 'personal data' (under the Data Protection Act 2018),300000020482994
Portsmouth City Council,PCC,Housing Services,Homelessness,"Housing, Neighbourhood and Building Services",Premises-Related Expenditure,Rents,23-Dec-22,6693009,"2,826.34",SOLETRADER,Classified as 'personal data' (under the Data Protection Act 2018),300000020470862
Portsmouth City Council,PCC,Housing Services,Homelessness,"Housing, Neighbourhood and Building Services",Premises-Related Expenditure,Rents,23-Dec-22,6693009,"2,826.34",SOLETRADER,Classified as 'personal data' (under the Data Protection Act 2018),300000020470862
Portsmouth City Council,PCC,Housing Services,Homelessness,"Housing, Neighbourhood and Building Services",Premises-Related Expenditure,Rents,23-Dec-22,6693080,"1,830.00",SOLETRADER,Classified as 'personal data' (under the Data Protection Act 2018),300000020482847
Portsmouth City Council,PCC,Housing Services,Homelessness,"Housing, Neighbourhood and Building Services",Premises-Related Expenditure,Rents,21-Dec-22,15004,"3,000.00",SOLETRADER,Classified as 'personal data' (under the Data Protection Act 2018),300000020457106
Portsmouth City Council,PCC,Housing Services,Homelessness,"Housing, Neighbourhood and Building Services",Premises-Related Expenditure,Rents,23-Dec-22,6692837,"1,950.00",SOLETRADER,Classified as 'personal data' (under the Data Protection Act 2018),300000020464746
Portsmouth City Council,PCC,Housing Services,Homelessness,"Housing, Neighbourhood and Building Services",Premises-Related Expenditure,Rents,23-Dec-22,6693005,"2,580.00",SOLETRADER,Classified as 'personal data' (under the Data Protection Act 2018),300000020484434
Portsmouth City Council,PCC,Housing Services,Homelessness,"Housing, Neighbourhood and Building Services",Premises-Related Expenditure,Rents,23-Dec-22,6693033,"2,520.00",SOLETRADER,Classified as 'personal data' (under the Data Protection Act 2018),300000020466304
Portsmouth City Council,PCC,Housing Services,Homelessness,"Housing, Neighbourhood and Building Services",Premises-Related Expenditure,Rents,23-Dec-22,6693010,"3,450.00",SOLETRADER,Classified as 'personal data' (under the Data Protection Act 2018),300000020482117
Portsmouth City Council,PCC,Housing Revenue Account,Supervision and Management,"Housing, Neighbourhood and Building Services",Premises-Related Expenditure,Rates,23-Dec-22,6693061,"1,198.00",OTHER LOCAL AUTHORITY,HAVANT BOROUGH COUNCIL,300000020457057
Portsmouth City Council,PCC,Housing Services,Homelessness,"Housing, Neighbourhood and Building Services",Premises-Related Expenditure,Rents,23-Dec-22,6693063,"2,100.00",SOLETRADER,Classified as 'personal data' (under the Data Protection Act 2018),300000020480176
Portsmouth City Council,PCC,Housing Services,Homelessness,"Housing, Neighbourhood and Building Services",Premises-Related Expenditure,Rents,23-Dec-22,6693054,"1,650.00",SOLETRADER,Classified as 'personal data' (under the Data Protection Act 2018),300000020476961
Portsmouth City Council,PCC,Housing Revenue Account,Special Services,"Housing, Neighbourhood and Building Services",Premises-Related Expenditure,Rates,23-Dec-22,6693061,182,OTHER LOCAL AUTHORITY,HAVANT BOROUGH COUNCIL,300000020457057
Portsmouth City Council,PCC,Housing Services,Homelessness,"Housing, Neighbourhood and Building Services",Premises-Related Expenditure,Rents,23-Dec-22,6693032,"2,220.00",SOLETRADER,Classified as 'personal data' (under the Data Protection Act 2018),300000020469518
Portsmouth City Council,PCC,Housing Services,Homelessness,"Housing, Neighbourhood and Building Services",Premises-Related Expenditure,Rents,23-Dec-22,6692857,"1,950.00",SOLETRADER,Classified as 'personal data' (under the Data Protection Act 2018),300000020461845
Portsmouth City Council,PCC,Housing Services,Homelessness,"Housing, Neighbourhood and Building Services",Premises-Related Expenditure,Rents,23-Dec-22,6693037,"1,560.00",SOLETRADER,Classified as 'personal data' (under the Data Protection Act 2018),300000020484360
Portsmouth City Council,PCC,Housing Services,Homelessness,"Housing, Neighbourhood and Building Services",Premises-Related Expenditure,Rents,23-Dec-22,6692915,"2,670.00",SOLETRADER,Classified as 'personal data' (under the Data Protection Act 2018),300000020482123
Portsmouth City Council,PCC,Housing Services,Homelessness,"Housing, Neighbourhood and Building Services",Premises-Related Expenditure,Rents,23-Dec-22,6693026,"2,070.00",SOLETRADER,Classified as 'personal data' (under the Data Protection Act 2018),300000020478994
Portsmouth City Council,PCC,Housing Revenue Account,Supervision and Management,"Housing, Neighbourhood and Building Services",Premises-Related Expenditure,Rates,23-Dec-22,6693061,"3,174.00",OTHER LOCAL AUTHORITY,HAVANT BOROUGH COUNCIL,300000020457057
Portsmouth City Council,PCC,Housing Revenue Account,Special Services,"Housing, Neighbourhood and Building Services",Premises-Related Expenditure,Rates,23-Dec-22,6693061,394,OTHER LOCAL AUTHORITY,HAVANT BOROUGH COUNCIL,300000020457057
Portsmouth City Council,PCC,Housing Revenue Account,Special Services,"Housing, Neighbourhood and Building Services",Premises-Related Expenditure,Rates,23-Dec-22,6693061,254,OTHER LOCAL AUTHORITY,HAVANT BOROUGH COUNCIL,300000020457057
Portsmouth City Council,PCC,Housing Services,Homelessness,"Housing, Neighbourhood and Building Services",Premises-Related Expenditure,Rents,23-Dec-22,6692836,"5,130.00",SOLETRADER,Classified as 'personal data' (under the Data Protection Act 2018),300000020463749
Portsmouth City Council,PCC,Housing Services,Homelessness,"Housing, Neighbourhood and Building Services",Premises-Related Expenditure,Rents,23-Dec-22,6692831,"2,310.00",SOLETRADER,Classified as 'personal data' (under the Data Protection Act 2018),300000020473300
Portsmouth City Council,PCC,Housing Services,Homelessness,"Housing, Neighbourhood and Building Services",Premises-Related Expenditure,Rents,23-Dec-22,6692941,"1,215.00",SUPPLIER,Classified as 'personal data' (under the Data Protection Act 2018),300000020476892
Portsmouth City Council,PCC,Housing Services,Homelessness,"Housing, Neighbourhood and Building Services",Premises-Related Expenditure,Rents,23-Dec-22,6693081,"1,950.00",SOLETRADER,Classified as 'personal data' (under the Data Protection Act 2018),300000020484086
Portsmouth City Council,PCC,Housing Services,Homelessness,"Housing, Neighbourhood and Building Services",Premises-Related Expenditure,Rents,23-Dec-22,6693025,"2,250.00",SUPPLIER,Classified as 'personal data' (under the Data Protection Act 2018),300000020480422
Portsmouth City Council,PCC,Housing Services,Homelessness,"Housing, Neighbourhood and Building Services",Premises-Related Expenditure,Rents,23-Dec-22,6693007,"1,560.00",SOLETRADER,Classified as 'personal data' (under the Data Protection Act 2018),300000020477758
Portsmouth City Council,PCC,Housing Services,Homelessness,"Housing, Neighbourhood and Building Services",Premises-Related Expenditure,Rents,23-Dec-22,6693057,"1,950.00",SOLETRADER,Classified as 'personal data' (under the Data Protection Act 2018),300000020474888
Portsmouth City Council,PCC,Housing Services,Homelessness,"Housing, Neighbourhood and Building Services",Premises-Related Expenditure,Rents,23-Dec-22,6693006,"1,620.00",SOLETRADER,Classified as 'personal data' (under the Data Protection Act 2018),300000020478191
Portsmouth City Council,PCC,Housing Services,Homelessness,"Housing, Neighbourhood and Building Services",Premises-Related Expenditure,Rents,01-Dec-22,6688774,"6,180.00",SUPPLIER,K H PROPERTY INVESTMENT LIMITED,300000020467836
Portsmouth City Council,PCC,Housing Services,Homelessness,"Housing, Neighbourhood and Building Services",Premises-Related Expenditure,Rents,30-Dec-22,6693478,"6,180.00",SUPPLIER,K H PROPERTY INVESTMENT LIMITED,300000020467836
Portsmouth City Council,PCC,Housing Services,Homelessness,"Housing, Neighbourhood and Building Services",Premises-Related Expenditure,Rents,23-Dec-22,6693076,"2,340.00",SUPPLIER,Classified as 'personal data' (under the Data Protection Act 2018),300000020472897
Portsmouth City Council,PCC,Housing Services,Homelessness,"Housing, Neighbourhood and Building Services",Premises-Related Expenditure,Rents,23-Dec-22,6692923,"2,100.00",SUPPLIER,Classified as 'personal data' (under the Data Protection Act 2018),300000020480090
Portsmouth City Council,PCC,Housing Services,Homelessness,"Housing, Neighbourhood and Building Services",Premises-Related Expenditure,Rents,23-Dec-22,6693058,"1,380.00",SOLETRADER,Classified as 'personal data' (under the Data Protection Act 2018),300000020471749
Portsmouth City Council,PCC,Housing Services,Homelessness,"Housing, Neighbourhood and Building Services",Premises-Related Expenditure,Rents,23-Dec-22,6693029,"2,119.67",SOLETRADER,Classified as 'personal data' (under the Data Protection Act 2018),300000020467123
Portsmouth City Council,PCC,Housing Services,Homelessness,"Housing, Neighbourhood and Building Services",Premises-Related Expenditure,Rents,23-Dec-22,6693031,"2,160.00",SOLETRADER,RAM BUILDING INVESTMENTS LIMITED,300000020469488
Portsmouth City Council,PCC,Housing Services,Homelessness,"Housing, Neighbourhood and Building Services",Premises-Related Expenditure,Rents,23-Dec-22,6693083,"2,640.00",SOLETRADER,Classified as 'personal data' (under the Data Protection Act 2018),300000020475891
Portsmouth City Council,PCC,Housing Services,Homelessness,"Housing, Neighbourhood and Building Services",Premises-Related Expenditure,Rents,23-Dec-22,6693078,"2,040.00",SOLETRADER,Classified as 'personal data' (under the Data Protection Act 2018),300000020477639
Portsmouth City Council,PCC,Housing Services,Homelessness,"Housing, Neighbourhood and Building Services",Premises-Related Expenditure,Rents,23-Dec-22,6693035,"1,890.00",SOLETRADER,Classified as 'personal data' (under the Data Protection Act 2018),300000020482755
Portsmouth City Council,PCC,Housing Services,Homelessness,"Housing, Neighbourhood and Building Services",Premises-Related Expenditure,Rents,23-Dec-22,6693056,"1,875.00",SOLETRADER,Classified as 'personal data' (under the Data Protection Act 2018),300000020474472
Portsmouth City Council,PCC,Housing Services,Homelessness,"Housing, Neighbourhood and Building Services",Premises-Related Expenditure,Rents,23-Dec-22,6693025,"3,000.00",SUPPLIER,Classified as 'personal data' (under the Data Protection Act 2018),300000020480422
Portsmouth City Council,PCC,Housing Services,Homelessness,"Housing, Neighbourhood and Building Services",Premises-Related Expenditure,Rents,23-Dec-22,6693027,"1,650.00",SOLETRADER,Classified as 'personal data' (under the Data Protection Act 2018),300000020479484
Portsmouth City Council,PCC,Housing Revenue Account,"Rents, Rates, Taxes and Other Charges","Housing, Neighbourhood and Building Services",Premises-Related Expenditure,Rates,23-Dec-22,6693061,244,OTHER LOCAL AUTHORITY,HAVANT BOROUGH COUNCIL,300000020457057
Portsmouth City Council,PCC,Housing Revenue Account,"Rents, Rates, Taxes and Other Charges","Housing, Neighbourhood and Building Services",Premises-Related Expenditure,Rates,23-Dec-22,6693061,128,OTHER LOCAL AUTHORITY,HAVANT BOROUGH COUNCIL,300000020457057
Portsmouth City Council,PCC,Housing Services,Homelessness,"Housing, Neighbourhood and Building Services",Premises-Related Expenditure,Rents,23-Dec-22,6693055,"2,130.00",SOLETRADER,Classified as 'personal data' (under the Data Protection Act 2018),300000020476967
Portsmouth City Council,PCC,Housing Services,Homelessness,"Housing, Neighbourhood and Building Services",Premises-Related Expenditure,Rents,23-Dec-22,6692941,"1,275.00",SUPPLIER,Classified as 'personal data' (under the Data Protection Act 2018),300000020476892
Portsmouth City Council,PCC,Housing Revenue Account,"Rents, Rates, Taxes and Other Charges","Housing, Neighbourhood and Building Services",Premises-Related Expenditure,Rates,23-Dec-22,6693061,256,OTHER LOCAL AUTHORITY,HAVANT BOROUGH COUNCIL,300000020457057
Portsmouth City Council,PCC,Housing Revenue Account,"Rents, Rates, Taxes and Other Charges","Housing, Neighbourhood and Building Services",Premises-Related Expenditure,Rates,28-Dec-22,6693188,128,OTHER LOCAL AUTHORITY,HAVANT BOROUGH COUNCIL,300000020457057
Portsmouth City Council,PCC,Housing Revenue Account,"Rents, Rates, Taxes and Other Charges","Housing, Neighbourhood and Building Services",Premises-Related Expenditure,Rates,28-Dec-22,6693188,128,OTHER LOCAL AUTHORITY,HAVANT BOROUGH COUNCIL,300000020457057
Portsmouth City Council,PCC,Housing Revenue Account,"Rents, Rates, Taxes and Other Charges","Housing, Neighbourhood and Building Services",Premises-Related Expenditure,Rates,28-Dec-22,6693188,128,OTHER LOCAL AUTHORITY,HAVANT BOROUGH COUNCIL,300000020457057
Portsmouth City Council,PCC,Housing Revenue Account,"Rents, Rates, Taxes and Other Charges","Housing, Neighbourhood and Building Services",Premises-Related Expenditure,Rates,28-Dec-22,6693188,128,OTHER LOCAL AUTHORITY,HAVANT BOROUGH COUNCIL,300000020457057
Portsmouth City Council,PCC,Housing Revenue Account,"Rents, Rates, Taxes and Other Charges","Housing, Neighbourhood and Building Services",Premises-Related Expenditure,Rates,23-Dec-22,6693061,256,OTHER LOCAL AUTHORITY,HAVANT BOROUGH COUNCIL,300000020457057
Portsmouth City Council,PCC,Housing Revenue Account,"Rents, Rates, Taxes and Other Charges","Housing, Neighbourhood and Building Services",Premises-Related Expenditure,Rates,23-Dec-22,6693061,128,OTHER LOCAL AUTHORITY,HAVANT BOROUGH COUNCIL,300000020457057
Portsmouth City Council,PCC,Housing Revenue Account,"Rents, Rates, Taxes and Other Charges","Housing, Neighbourhood and Building Services",Premises-Related Expenditure,Rates,23-Dec-22,6693061,128,OTHER LOCAL AUTHORITY,HAVANT BOROUGH COUNCIL,300000020457057
Portsmouth City Council,PCC,Housing Revenue Account,"Rents, Rates, Taxes and Other Charges","Housing, Neighbourhood and Building Services",Premises-Related Expenditure,Rates,28-Dec-22,6693188,128,OTHER LOCAL AUTHORITY,HAVANT BOROUGH COUNCIL,300000020457057
Portsmouth City Council,PCC,Housing Revenue Account,"Rents, Rates, Taxes and Other Charges","Housing, Neighbourhood and Building Services",Premises-Related Expenditure,Rates,23-Dec-22,6693061,128,OTHER LOCAL AUTHORITY,HAVANT BOROUGH COUNCIL,300000020457057
Portsmouth City Council,PCC,Housing Revenue Account,"Rents, Rates, Taxes and Other Charges","Housing, Neighbourhood and Building Services",Premises-Related Expenditure,Rates,28-Dec-22,6693188,128,OTHER LOCAL AUTHORITY,HAVANT BOROUGH COUNCIL,300000020457057
Portsmouth City Council,PCC,Housing Revenue Account,"Rents, Rates, Taxes and Other Charges","Housing, Neighbourhood and Building Services",Premises-Related Expenditure,Rates,23-Dec-22,6693061,128,OTHER LOCAL AUTHORITY,HAVANT BOROUGH COUNCIL,300000020457057
Portsmouth City Council,PCC,Housing Revenue Account,"Rents, Rates, Taxes and Other Charges","Housing, Neighbourhood and Building Services",Premises-Related Expenditure,Rates,28-Dec-22,6693188,128,OTHER LOCAL AUTHORITY,HAVANT BOROUGH COUNCIL,300000020457057
Portsmouth City Council,PCC,Housing Revenue Account,"Rents, Rates, Taxes and Other Charges","Housing, Neighbourhood and Building Services",Premises-Related Expenditure,Rates,23-Dec-22,6693061,128,OTHER LOCAL AUTHORITY,HAVANT BOROUGH COUNCIL,300000020457057
Portsmouth City Council,PCC,Housing Revenue Account,"Rents, Rates, Taxes and Other Charges","Housing, Neighbourhood and Building Services",Premises-Related Expenditure,Rates,23-Dec-22,6693061,128,OTHER LOCAL AUTHORITY,HAVANT BOROUGH COUNCIL,300000020457057
Portsmouth City Council,PCC,Housing Revenue Account,"Rents, Rates, Taxes and Other Charges","Housing, Neighbourhood and Building Services",Premises-Related Expenditure,Rates,23-Dec-22,6693061,128,OTHER LOCAL AUTHORITY,HAVANT BOROUGH COUNCIL,300000020457057
Portsmouth City Council,PCC,Children's and Education Services,Special Schools,Children's Services and Education,Third Party Payments,Other establishments,23-Dec-22,6693077,"186,213.68",SUPPLIER,SOLENT ACADEMIES TRUST,300000020477417
Portsmouth City Council,PCC,Children's and Education Services,Special Schools,Children's Services and Education,Third Party Payments,Other establishments,23-Dec-22,6693077,"14,795.92",SUPPLIER,SOLENT ACADEMIES TRUST,300000020477417
Portsmouth City Council,PCC,Children's and Education Services,Special Schools,Children's Services and Education,Third Party Payments,Other establishments,23-Dec-22,6693077,"10,266.64",SUPPLIER,SOLENT ACADEMIES TRUST,300000020477417
Portsmouth City Council,PCC,Children's and Education Services,Special Schools,Children's Services and Education,Third Party Payments,Other establishments,23-Dec-22,6693093,"215,333.92",SUPPLIER,SOLENT ACADEMIES TRUST,300000020477417
Portsmouth City Council,PCC,Children's and Education Services,Special Schools,Children's Services and Education,Third Party Payments,Other establishments,23-Dec-22,6693093,"7,629.28",SUPPLIER,SOLENT ACADEMIES TRUST,300000020477417
Portsmouth City Council,PCC,Children's and Education Services,Special Schools,Children's Services and Education,Third Party Payments,Other establishments,23-Dec-22,6693093,"4,600.00",SUPPLIER,SOLENT ACADEMIES TRUST,300000020477417
Portsmouth City Council,PCC,Children's and Education Services,Special Schools,Children's Services and Education,Third Party Payments,Other establishments,23-Dec-22,6693092,"101,462.32",SUPPLIER,SOLENT ACADEMIES TRUST,300000020477417
Portsmouth City Council,PCC,Children's and Education Services,Special Schools,Children's Services and Education,Third Party Payments,Other establishments,23-Dec-22,6693092,"4,330.48",SUPPLIER,SOLENT ACADEMIES TRUST,300000020477417
Portsmouth City Council,PCC,Children's and Education Services,Special Schools,Children's Services and Education,Third Party Payments,Other establishments,23-Dec-22,6693092,"4,666.64",SUPPLIER,SOLENT ACADEMIES TRUST,300000020477417
Portsmouth City Council,PCC,Children's and Education Services,Special Schools,Children's Services and Education,Third Party Payments,Other establishments,23-Dec-22,6693091,"115,916.80",SUPPLIER,THE DELTA EDUCATION TRUST,300000020481637
Portsmouth City Council,PCC,Children's and Education Services,Special Schools,Children's Services and Education,Third Party Payments,Other establishments,23-Dec-22,6693091,"10,000.00",SUPPLIER,THE DELTA EDUCATION TRUST,300000020481637
Portsmouth City Council,PCC,Children's and Education Services,Special Schools,Children's Services and Education,Third Party Payments,Other establishments,23-Dec-22,6693091,"6,666.67",SUPPLIER,THE DELTA EDUCATION TRUST,300000020481637
Portsmouth City Council,PCC,Children's and Education Services,Management and Support Services,Children's Services and Education,Third Party Payments,Other establishments,23-Dec-22,6693091,"19,622.40",SUPPLIER,THE DELTA EDUCATION TRUST,300000020481637
Portsmouth City Council,PCC,Children's and Education Services,Management and Support Services,Children's Services and Education,Third Party Payments,Other establishments,23-Dec-22,6693091,"4,800.00",SUPPLIER,THE DELTA EDUCATION TRUST,300000020481637
Portsmouth City Council,PCC,Children's and Education Services,Management and Support Services,Children's Services and Education,Third Party Payments,Other establishments,23-Dec-22,6693091,"52,800.00",SUPPLIER,THE DELTA EDUCATION TRUST,300000020481637
Portsmouth City Council,PCC,Housing Services,Homelessness,"Housing, Neighbourhood and Building Services",Premises-Related Expenditure,Rents,23-Dec-22,6693015,"1,740.00",SUPPLIER,S J EDGE LTD,300000020473593
Portsmouth City Council,PCC,Housing Services,Homelessness,"Housing, Neighbourhood and Building Services",Premises-Related Expenditure,Rents,23-Dec-22,6693018,"1,560.00",SUPPLIER,Classified as 'personal data' (under the Data Protection Act 2018),300000020468795
Portsmouth City Council,PCC,Housing Revenue Account,"Rents, Rates, Taxes and Other Charges","Housing, Neighbourhood and Building Services",Premises-Related Expenditure,Rates,23-Dec-22,6693061,127,OTHER LOCAL AUTHORITY,HAVANT BOROUGH COUNCIL,300000020457057
Portsmouth City Council,PCC,Housing Services,Homelessness,"Housing, Neighbourhood and Building Services",Premises-Related Expenditure,Rents,23-Dec-22,6693010,"3,333.37",SOLETRADER,Classified as 'personal data' (under the Data Protection Act 2018),300000020482117
Portsmouth City Council,PCC,Housing Revenue Account,"Rents, Rates, Taxes and Other Charges","Housing, Neighbourhood and Building Services",Premises-Related Expenditure,Rates,23-Dec-22,6693061,121,OTHER LOCAL AUTHORITY,HAVANT BOROUGH COUNCIL,300000020457057
Portsmouth City Council,PCC,Housing Services,Homelessness,"Housing, Neighbourhood and Building Services",Premises-Related Expenditure,Rents,28-Dec-22,6693222,"1,920.00",SOLETRADER,Classified as 'personal data' (under the Data Protection Act 2018),300000020467247
Portsmouth City Council,PCC,Housing Services,Homelessness,"Housing, Neighbourhood and Building Services",Premises-Related Expenditure,Rents,23-Dec-22,6693079,"2,070.00",SOLETRADER,Classified as 'personal data' (under the Data Protection Act 2018),300000020482831
Portsmouth City Council,PCC,Housing Revenue Account,"Rents, Rates, Taxes and Other Charges","Housing, Neighbourhood and Building Services",Premises-Related Expenditure,Rates,23-Dec-22,6693061,142,OTHER LOCAL AUTHORITY,HAVANT BOROUGH COUNCIL,300000020457057
Portsmouth City Council,PCC,Housing Revenue Account,"Rents, Rates, Taxes and Other Charges","Housing, Neighbourhood and Building Services",Premises-Related Expenditure,Rates,23-Dec-22,6693061,134,OTHER LOCAL AUTHORITY,HAVANT BOROUGH COUNCIL,300000020457057
Portsmouth City Council,PCC,Housing Revenue Account,"Rents, Rates, Taxes and Other Charges","Housing, Neighbourhood and Building Services",Premises-Related Expenditure,Rates,23-Dec-22,6693061,128,OTHER LOCAL AUTHORITY,HAVANT BOROUGH COUNCIL,300000020457057
Portsmouth City Council,PCC,Housing Revenue Account,"Rents, Rates, Taxes and Other Charges","Housing, Neighbourhood and Building Services",Premises-Related Expenditure,Rates,23-Dec-22,6693061,256,OTHER LOCAL AUTHORITY,HAVANT BOROUGH COUNCIL,300000020457057
Portsmouth City Council,PCC,Housing Revenue Account,"Rents, Rates, Taxes and Other Charges","Housing, Neighbourhood and Building Services",Premises-Related Expenditure,Rates,23-Dec-22,6693061,142,OTHER LOCAL AUTHORITY,HAVANT BOROUGH COUNCIL,300000020457057
Portsmouth City Council,PCC,Housing Revenue Account,"Rents, Rates, Taxes and Other Charges","Housing, Neighbourhood and Building Services",Premises-Related Expenditure,Rates,23-Dec-22,6693061,179,OTHER LOCAL AUTHORITY,HAVANT BOROUGH COUNCIL,300000020457057
Portsmouth City Council,PCC,Housing Revenue Account,"Rents, Rates, Taxes and Other Charges","Housing, Neighbourhood and Building Services",Premises-Related Expenditure,Rates,23-Dec-22,6693061,132,OTHER LOCAL AUTHORITY,HAVANT BOROUGH COUNCIL,300000020457057
Portsmouth City Council,PCC,Housing Revenue Account,"Rents, Rates, Taxes and Other Charges","Housing, Neighbourhood and Building Services",Premises-Related Expenditure,Rates,23-Dec-22,6693061,133,OTHER LOCAL AUTHORITY,HAVANT BOROUGH COUNCIL,300000020457057
Portsmouth City Council,PCC,Housing Revenue Account,"Rents, Rates, Taxes and Other Charges","Housing, Neighbourhood and Building Services",Premises-Related Expenditure,Rates,23-Dec-22,6693061,144,OTHER LOCAL AUTHORITY,HAVANT BOROUGH COUNCIL,300000020457057
Portsmouth City Council,PCC,Housing Revenue Account,"Rents, Rates, Taxes and Other Charges","Housing, Neighbourhood and Building Services",Premises-Related Expenditure,Rates,23-Dec-22,6693061,125,OTHER LOCAL AUTHORITY,HAVANT BOROUGH COUNCIL,300000020457057
Portsmouth City Council,PCC,Costs below Net Cost of Services,Trading,Regeneration,Premises-Related Expenditure,Rates,01-Dec-22,6688808,"7,030.00",OTHER LOCAL AUTHORITY,WARRINGTON BOROUGH COUNCIL,300000449627398
Portsmouth City Council,PCC,Costs below Net Cost of Services,Trading,Regeneration,Premises-Related Expenditure,Rates,30-Dec-22,6693520,"7,030.00",OTHER LOCAL AUTHORITY,WARRINGTON BOROUGH COUNCIL,300000449627398
Portsmouth City Council,PCC,Cultural and Related Services,Library Service,"Culture, Leisure & Regulatory Services",Premises-Related Expenditure,Energy costs,14-Dec-22,6691090,"100,764.67",LIMITED COMPANY,GAZPROM MARKETING AND TRADING LTD,300000250807105
Portsmouth City Council,PCC,Housing Revenue Account,"Rents, Rates, Taxes and Other Charges","Housing, Neighbourhood and Building Services",Premises-Related Expenditure,Rates,23-Dec-22,6693061,156,OTHER LOCAL AUTHORITY,HAVANT BOROUGH COUNCIL,300000020457057
Portsmouth City Council,PCC,Housing Services,Homelessness,"Housing, Neighbourhood and Building Services",Premises-Related Expenditure,Rents,23-Dec-22,6692861,"2,280.00",SOLETRADER,Classified as 'personal data' (under the Data Protection Act 2018),300000020470961
Portsmouth City Council,PCC,Housing Revenue Account,"Rents, Rates, Taxes and Other Charges","Housing, Neighbourhood and Building Services",Premises-Related Expenditure,Rates,23-Dec-22,6693061,256,OTHER LOCAL AUTHORITY,HAVANT BOROUGH COUNCIL,300000020457057
Portsmouth City Council,PCC,Housing Revenue Account,"Rents, Rates, Taxes and Other Charges","Housing, Neighbourhood and Building Services",Premises-Related Expenditure,Rates,23-Dec-22,6693061,173,OTHER LOCAL AUTHORITY,HAVANT BOROUGH COUNCIL,300000020457057
Portsmouth City Council,PCC,Housing Services,Homelessness,"Housing, Neighbourhood and Building Services",Premises-Related Expenditure,Rents,23-Dec-22,6692966,"2,940.00",SUPPLIER,Classified as 'personal data' (under the Data Protection Act 2018),300000020472316
Portsmouth City Council,PCC,Housing Revenue Account,"Rents, Rates, Taxes and Other Charges","Housing, Neighbourhood and Building Services",Premises-Related Expenditure,Rates,28-Dec-22,6693188,185,OTHER LOCAL AUTHORITY,HAVANT BOROUGH COUNCIL,300000020457057
Portsmouth City Council,PCC,Children's and Education Services,Management and Support Services,Children's Services and Education,Third Party Payments,Other establishments,23-Dec-22,6692869,"3,333.33",SUPPLIER,THE SALTERNS ACADEMY TRUST,300000020477978
Portsmouth City Council,PCC,Children's and Education Services,Management and Support Services,Children's Services and Education,Third Party Payments,Other establishments,23-Dec-22,6692986,"6,666.67",SUPPLIER,THE THINKING SCHOOLS TRUST,300000020481073
Portsmouth City Council,PCC,Children's and Education Services,Management and Support Services,Children's Services and Education,Third Party Payments,Other establishments,23-Dec-22,6692983,"6,666.67",SUPPLIER,THE THINKING SCHOOLS TRUST,300000020481073
Portsmouth City Council,PCC,Housing Revenue Account,"Rents, Rates, Taxes and Other Charges","Housing, Neighbourhood and Building Services",Premises-Related Expenditure,Rates,23-Dec-22,6693061,-155,OTHER LOCAL AUTHORITY,HAVANT BOROUGH COUNCIL,300000020457057
Portsmouth City Council,PCC,Housing Revenue Account,"Rents, Rates, Taxes and Other Charges","Housing, Neighbourhood and Building Services",Premises-Related Expenditure,Rates,23-Dec-22,6693061,310,OTHER LOCAL AUTHORITY,HAVANT BOROUGH COUNCIL,300000020457057
Portsmouth City Council,PCC,Housing Revenue Account,"Rents, Rates, Taxes and Other Charges","Housing, Neighbourhood and Building Services",Premises-Related Expenditure,Rates,23-Dec-22,6693061,-161,OTHER LOCAL AUTHORITY,HAVANT BOROUGH COUNCIL,300000020457057
Portsmouth City Council,PCC,Housing Revenue Account,"Rents, Rates, Taxes and Other Charges","Housing, Neighbourhood and Building Services",Premises-Related Expenditure,Rates,23-Dec-22,6693061,322,OTHER LOCAL AUTHORITY,HAVANT BOROUGH COUNCIL,300000020457057
Portsmouth City Council,PCC,Children's and Education Services,Children Looked After,Children's Services and Education,Third Party Payments,Other establishments,01-Dec-22,6688749,887.14,SUPPLIER,FIVE RIVERS CHILD CARE LIMITED,300000020461320
Portsmouth City Council,PCC,Children's and Education Services,Children Looked After,Children's Services and Education,Third Party Payments,Other establishments,01-Dec-22,6688749,"1,108.93",SUPPLIER,FIVE RIVERS CHILD CARE LIMITED,300000020461320
Portsmouth City Council,PCC,Children's and Education Services,Children Looked After,Children's Services and Education,Third Party Payments,Other establishments,01-Dec-22,6688749,"1,552.50",SUPPLIER,FIVE RIVERS CHILD CARE LIMITED,300000020461320
Portsmouth City Council,PCC,Children's and Education Services,Children Looked After,Children's Services and Education,Third Party Payments,Other establishments,01-Dec-22,6688749,"1,552.50",SUPPLIER,FIVE RIVERS CHILD CARE LIMITED,300000020461320
Portsmouth City Council,PCC,Children's and Education Services,Children Looked After,Children's Services and Education,Third Party Payments,Other establishments,01-Dec-22,6688749,"1,552.50",SUPPLIER,FIVE RIVERS CHILD CARE LIMITED,300000020461320
Portsmouth City Council,PCC,Housing Revenue Account,"Rents, Rates, Taxes and Other Charges","Housing, Neighbourhood and Building Services",Premises-Related Expenditure,Rates,23-Dec-22,6693061,136,OTHER LOCAL AUTHORITY,HAVANT BOROUGH COUNCIL,300000020457057
Portsmouth City Council,PCC,Housing Services,Housing Strategy,"Housing, Neighbourhood and Building Services",Income,Customer and client receipts,02-Dec-22,6689052,"-1,222.50",LIMITED COMPANY,LIFTECH SYSTEMS (SE) LIMITED,300000020461913
Portsmouth City Council,PCC,Other,Suspense and Capital Schemes,"Housing, Neighbourhood and Building Services",Supplies and Services,Services,02-Dec-22,6689052,"1,467.00",LIMITED COMPANY,LIFTECH SYSTEMS (SE) LIMITED,300000020461913
Portsmouth City Council,PCC,Other,Suspense and Capital Schemes,"Housing, Neighbourhood and Building Services",Supplies and Services,Services,02-Dec-22,6689052,"1,900.00",LIMITED COMPANY,LIFTECH SYSTEMS (SE) LIMITED,300000020461913
Portsmouth City Council,PCC,Children's and Education Services,Special Schools,Children's Services and Education,Third Party Payments,Other establishments,23-Dec-22,6693077,"6,666.67",SUPPLIER,SOLENT ACADEMIES TRUST,300000020477417
Portsmouth City Council,PCC,Children's and Education Services,Special Schools,Children's Services and Education,Third Party Payments,Other establishments,23-Dec-22,6693093,"1,666.58",SUPPLIER,SOLENT ACADEMIES TRUST,300000020477417
Portsmouth City Council,PCC,Children's and Education Services,Children Looked After,Children's Services and Education,Third Party Payments,Other establishments,01-Dec-22,6688810,0.17,SUPPLIER,COMPASS COMMUNITY LIMITED,300000020462668
Portsmouth City Council,PCC,Children's and Education Services,Children Looked After,Children's Services and Education,Third Party Payments,Other establishments,01-Dec-22,6688810,285.71,SUPPLIER,COMPASS COMMUNITY LIMITED,300000020462668
Portsmouth City Council,PCC,Children's and Education Services,Children Looked After,Children's Services and Education,Third Party Payments,Other establishments,01-Dec-22,6688810,285.71,SUPPLIER,COMPASS COMMUNITY LIMITED,300000020462668
Portsmouth City Council,PCC,Children's and Education Services,Children Looked After,Children's Services and Education,Third Party Payments,Other establishments,01-Dec-22,6688810,714.29,SUPPLIER,COMPASS COMMUNITY LIMITED,300000020462668
Portsmouth City Council,PCC,Children's and Education Services,Children Looked After,Children's Services and Education,Third Party Payments,Other establishments,01-Dec-22,6688810,857.14,SUPPLIER,COMPASS COMMUNITY LIMITED,300000020462668
Portsmouth City Council,PCC,Children's and Education Services,Children Looked After,Children's Services and Education,Third Party Payments,Other establishments,01-Dec-22,6688810,"1,000.00",SUPPLIER,COMPASS COMMUNITY LIMITED,300000020462668
Portsmouth City Council,PCC,Children's and Education Services,Children Looked After,Children's Services and Education,Third Party Payments,Other establishments,01-Dec-22,6688810,"1,000.00",SUPPLIER,COMPASS COMMUNITY LIMITED,300000020462668
Portsmouth City Council,PCC,Children's and Education Services,Children Looked After,Children's Services and Education,Third Party Payments,Other establishments,01-Dec-22,6688810,"1,000.00",SUPPLIER,COMPASS COMMUNITY LIMITED,300000020462668
Portsmouth City Council,PCC,Children's and Education Services,Children Looked After,Children's Services and Education,Third Party Payments,Other establishments,01-Dec-22,6688810,"1,000.00",SUPPLIER,COMPASS COMMUNITY LIMITED,300000020462668
Portsmouth City Council,PCC,Children's and Education Services,Children Looked After,Children's Services and Education,Third Party Payments,Other establishments,01-Dec-22,6688810,"1,000.00",SUPPLIER,COMPASS COMMUNITY LIMITED,300000020462668
Portsmouth City Council,PCC,Children's and Education Services,Children Looked After,Children's Services and Education,Third Party Payments,Other establishments,01-Dec-22,6688810,"1,000.00",SUPPLIER,COMPASS COMMUNITY LIMITED,300000020462668
Portsmouth City Council,PCC,Housing Services,Housing Strategy,"Housing, Neighbourhood and Building Services",Income,Customer and client receipts,01-Dec-22,6688767,"-1,018.50",SUPPLIER,ANY MAINTENANCE LTD,300000020474016
Portsmouth City Council,PCC,Other,Suspense and Capital Schemes,"Housing, Neighbourhood and Building Services",Supplies and Services,Services,01-Dec-22,6688767,"1,222.20",SUPPLIER,ANY MAINTENANCE LTD,300000020474016
Portsmouth City Council,PCC,Other,Suspense and Capital Schemes,"Housing, Neighbourhood and Building Services",Supplies and Services,Services,01-Dec-22,6688767,"6,790.00",SUPPLIER,ANY MAINTENANCE LTD,300000020474016
Portsmouth City Council,PCC,Children's and Education Services,Children Looked After,Children's Services and Education,Third Party Payments,Other establishments,02-Dec-22,6688951,-0.04,SUPPLIER,COMPASS COMMUNITY LIMITED,300000020462668
Portsmouth City Council,PCC,Children's and Education Services,Children Looked After,Children's Services and Education,Third Party Payments,Other establishments,02-Dec-22,6688951,122.71,SUPPLIER,COMPASS COMMUNITY LIMITED,300000020462668
Portsmouth City Council,PCC,Children's and Education Services,Children Looked After,Children's Services and Education,Third Party Payments,Other establishments,02-Dec-22,6688951,245.42,SUPPLIER,COMPASS COMMUNITY LIMITED,300000020462668
Portsmouth City Council,PCC,Children's and Education Services,Children Looked After,Children's Services and Education,Third Party Payments,Other establishments,02-Dec-22,6688951,858.98,SUPPLIER,COMPASS COMMUNITY LIMITED,300000020462668
Portsmouth City Council,PCC,Children's and Education Services,Children Looked After,Children's Services and Education,Third Party Payments,Other establishments,02-Dec-22,6688951,858.98,SUPPLIER,COMPASS COMMUNITY LIMITED,300000020462668
Portsmouth City Council,PCC,Children's and Education Services,Children Looked After,Children's Services and Education,Third Party Payments,Other establishments,02-Dec-22,6688951,858.98,SUPPLIER,COMPASS COMMUNITY LIMITED,300000020462668
Portsmouth City Council,PCC,Children's and Education Services,Children Looked After,Children's Services and Education,Third Party Payments,Other establishments,02-Dec-22,6688951,858.98,SUPPLIER,COMPASS COMMUNITY LIMITED,300000020462668
Portsmouth City Council,PCC,Children's and Education Services,Asylum seekers,Children's Services and Education,Third Party Payments,Other establishments,02-Dec-22,6688951,114.18,SUPPLIER,COMPASS COMMUNITY LIMITED,300000020462668
Portsmouth City Council,PCC,Children's and Education Services,Asylum seekers,Children's Services and Education,Third Party Payments,Other establishments,02-Dec-22,6688951,228.36,SUPPLIER,COMPASS COMMUNITY LIMITED,300000020462668
Portsmouth City Council,PCC,Children's and Education Services,Asylum seekers,Children's Services and Education,Third Party Payments,Other establishments,02-Dec-22,6688951,799.26,SUPPLIER,COMPASS COMMUNITY LIMITED,300000020462668
Portsmouth City Council,PCC,Children's and Education Services,Asylum seekers,Children's Services and Education,Third Party Payments,Other establishments,02-Dec-22,6688951,799.26,SUPPLIER,COMPASS COMMUNITY LIMITED,300000020462668
Portsmouth City Council,PCC,Children's and Education Services,Asylum seekers,Children's Services and Education,Third Party Payments,Other establishments,02-Dec-22,6688951,799.26,SUPPLIER,COMPASS COMMUNITY LIMITED,300000020462668
Portsmouth City Council,PCC,Children's and Education Services,Asylum seekers,Children's Services and Education,Third Party Payments,Other establishments,02-Dec-22,6688951,799.26,SUPPLIER,COMPASS COMMUNITY LIMITED,300000020462668
Portsmouth City Council,PCC,Children's and Education Services,Children Looked After,Children's Services and Education,Third Party Payments,Other establishments,02-Dec-22,6688891,-0.25,SUPPLIER,BLUE SKY FOSTERING,300000020464936
Portsmouth City Council,PCC,Children's and Education Services,Children Looked After,Children's Services and Education,Third Party Payments,Other establishments,02-Dec-22,6688891,441.71,SUPPLIER,BLUE SKY FOSTERING,300000020464936
Portsmouth City Council,PCC,Children's and Education Services,Children Looked After,Children's Services and Education,Third Party Payments,Other establishments,02-Dec-22,6688891,552.14,SUPPLIER,BLUE SKY FOSTERING,300000020464936
Portsmouth City Council,PCC,Children's and Education Services,Children Looked After,Children's Services and Education,Third Party Payments,Other establishments,02-Dec-22,6688891,773,SUPPLIER,BLUE SKY FOSTERING,300000020464936
Portsmouth City Council,PCC,Children's and Education Services,Children Looked After,Children's Services and Education,Third Party Payments,Other establishments,02-Dec-22,6688891,773,SUPPLIER,BLUE SKY FOSTERING,300000020464936
Portsmouth City Council,PCC,Children's and Education Services,Children Looked After,Children's Services and Education,Third Party Payments,Other establishments,02-Dec-22,6688891,773,SUPPLIER,BLUE SKY FOSTERING,300000020464936
Portsmouth City Council,PCC,Children's and Education Services,Children Looked After,Children's Services and Education,Third Party Payments,Other establishments,02-Dec-22,6688891,-0.25,SUPPLIER,BLUE SKY FOSTERING,300000020464936
Portsmouth City Council,PCC,Children's and Education Services,Children Looked After,Children's Services and Education,Third Party Payments,Other establishments,02-Dec-22,6688891,441.71,SUPPLIER,BLUE SKY FOSTERING,300000020464936
Portsmouth City Council,PCC,Children's and Education Services,Children Looked After,Children's Services and Education,Third Party Payments,Other establishments,02-Dec-22,6688891,552.14,SUPPLIER,BLUE SKY FOSTERING,300000020464936
Portsmouth City Council,PCC,Children's and Education Services,Children Looked After,Children's Services and Education,Third Party Payments,Other establishments,02-Dec-22,6688891,773,SUPPLIER,BLUE SKY FOSTERING,300000020464936
Portsmouth City Council,PCC,Children's and Education Services,Children Looked After,Children's Services and Education,Third Party Payments,Other establishments,02-Dec-22,6688891,773,SUPPLIER,BLUE SKY FOSTERING,300000020464936
Portsmouth City Council,PCC,Children's and Education Services,Children Looked After,Children's Services and Education,Third Party Payments,Other establishments,02-Dec-22,6688891,773,SUPPLIER,BLUE SKY FOSTERING,300000020464936
Portsmouth City Council,PCC,Children's and Education Services,Children Looked After,Children's Services and Education,Third Party Payments,Other establishments,02-Dec-22,6688938,"-1,483.95",SUPPLIER,STILL WATERS CARE SERVICES LTD,300000020474495
Portsmouth City Council,PCC,Children's and Education Services,Children Looked After,Children's Services and Education,Third Party Payments,Other establishments,02-Dec-22,6688938,-10,SUPPLIER,STILL WATERS CARE SERVICES LTD,300000020474495
Portsmouth City Council,PCC,Children's and Education Services,Children Looked After,Children's Services and Education,Third Party Payments,Other establishments,02-Dec-22,6688938,-10,SUPPLIER,STILL WATERS CARE SERVICES LTD,300000020474495
Portsmouth City Council,PCC,Children's and Education Services,Children Looked After,Children's Services and Education,Third Party Payments,Other establishments,02-Dec-22,6688938,-10,SUPPLIER,STILL WATERS CARE SERVICES LTD,300000020474495
Portsmouth City Council,PCC,Children's and Education Services,Children Looked After,Children's Services and Education,Third Party Payments,Other establishments,02-Dec-22,6688938,-10,SUPPLIER,STILL WATERS CARE SERVICES LTD,300000020474495
Portsmouth City Council,PCC,Children's and Education Services,Children Looked After,Children's Services and Education,Third Party Payments,Other establishments,02-Dec-22,6688938,-2.86,SUPPLIER,STILL WATERS CARE SERVICES LTD,300000020474495
Portsmouth City Council,PCC,Children's and Education Services,Children Looked After,Children's Services and Education,Third Party Payments,Other establishments,02-Dec-22,6688938,-1.43,SUPPLIER,STILL WATERS CARE SERVICES LTD,300000020474495
Portsmouth City Council,PCC,Children's and Education Services,Children Looked After,Children's Services and Education,Third Party Payments,Other establishments,02-Dec-22,6688938,48,SUPPLIER,STILL WATERS CARE SERVICES LTD,300000020474495
Portsmouth City Council,PCC,Children's and Education Services,Children Looked After,Children's Services and Education,Third Party Payments,Other establishments,02-Dec-22,6688938,96,SUPPLIER,STILL WATERS CARE SERVICES LTD,300000020474495
Portsmouth City Council,PCC,Children's and Education Services,Children Looked After,Children's Services and Education,Third Party Payments,Other establishments,02-Dec-22,6688938,128.57,SUPPLIER,STILL WATERS CARE SERVICES LTD,300000020474495
Portsmouth City Council,PCC,Children's and Education Services,Children Looked After,Children's Services and Education,Third Party Payments,Other establishments,02-Dec-22,6688938,257.14,SUPPLIER,STILL WATERS CARE SERVICES LTD,300000020474495
Portsmouth City Council,PCC,Children's and Education Services,Children Looked After,Children's Services and Education,Third Party Payments,Other establishments,02-Dec-22,6688938,336,SUPPLIER,STILL WATERS CARE SERVICES LTD,300000020474495
Portsmouth City Council,PCC,Children's and Education Services,Children Looked After,Children's Services and Education,Third Party Payments,Other establishments,02-Dec-22,6688938,336,SUPPLIER,STILL WATERS CARE SERVICES LTD,300000020474495
Portsmouth City Council,PCC,Children's and Education Services,Children Looked After,Children's Services and Education,Third Party Payments,Other establishments,02-Dec-22,6688938,336,SUPPLIER,STILL WATERS CARE SERVICES LTD,300000020474495
Portsmouth City Council,PCC,Children's and Education Services,Children Looked After,Children's Services and Education,Third Party Payments,Other establishments,02-Dec-22,6688938,336,SUPPLIER,STILL WATERS CARE SERVICES LTD,300000020474495
Portsmouth City Council,PCC,Children's and Education Services,Children Looked After,Children's Services and Education,Third Party Payments,Other establishments,02-Dec-22,6688938,900,SUPPLIER,STILL WATERS CARE SERVICES LTD,300000020474495
Portsmouth City Council,PCC,Children's and Education Services,Children Looked After,Children's Services and Education,Third Party Payments,Other establishments,02-Dec-22,6688938,900,SUPPLIER,STILL WATERS CARE SERVICES LTD,300000020474495
Portsmouth City Council,PCC,Children's and Education Services,Children Looked After,Children's Services and Education,Third Party Payments,Other establishments,02-Dec-22,6688938,900,SUPPLIER,STILL WATERS CARE SERVICES LTD,300000020474495
Portsmouth City Council,PCC,Children's and Education Services,Children Looked After,Children's Services and Education,Third Party Payments,Other establishments,02-Dec-22,6688938,900,SUPPLIER,STILL WATERS CARE SERVICES LTD,300000020474495
Portsmouth City Council,PCC,Children's and Education Services,Children Looked After,Children's Services and Education,Third Party Payments,Other establishments,02-Dec-22,6688891,888,SUPPLIER,BLUE SKY FOSTERING,300000020464936
Portsmouth City Council,PCC,Children's and Education Services,Children Looked After,Children's Services and Education,Third Party Payments,Other establishments,02-Dec-22,6688891,"1,110.00",SUPPLIER,BLUE SKY FOSTERING,300000020464936
Portsmouth City Council,PCC,Children's and Education Services,Children Looked After,Children's Services and Education,Third Party Payments,Other establishments,02-Dec-22,6688891,"1,554.00",SUPPLIER,BLUE SKY FOSTERING,300000020464936
Portsmouth City Council,PCC,Children's and Education Services,Children Looked After,Children's Services and Education,Third Party Payments,Other establishments,02-Dec-22,6688891,"1,554.00",SUPPLIER,BLUE SKY FOSTERING,300000020464936
Portsmouth City Council,PCC,Children's and Education Services,Children Looked After,Children's Services and Education,Third Party Payments,Other establishments,02-Dec-22,6688891,"1,554.00",SUPPLIER,BLUE SKY FOSTERING,300000020464936
Portsmouth City Council,PCC,Children's and Education Services,Children Looked After,Children's Services and Education,Third Party Payments,Other establishments,02-Dec-22,6688938,-10,SUPPLIER,STILL WATERS CARE SERVICES LTD,300000020474495
Portsmouth City Council,PCC,Children's and Education Services,Children Looked After,Children's Services and Education,Third Party Payments,Other establishments,02-Dec-22,6688938,-1.43,SUPPLIER,STILL WATERS CARE SERVICES LTD,300000020474495
Portsmouth City Council,PCC,Children's and Education Services,Children Looked After,Children's Services and Education,Third Party Payments,Other establishments,02-Dec-22,6688938,48,SUPPLIER,STILL WATERS CARE SERVICES LTD,300000020474495
Portsmouth City Council,PCC,Children's and Education Services,Children Looked After,Children's Services and Education,Third Party Payments,Other establishments,02-Dec-22,6688938,128.57,SUPPLIER,STILL WATERS CARE SERVICES LTD,300000020474495
Portsmouth City Council,PCC,Children's and Education Services,Children Looked After,Children's Services and Education,Third Party Payments,Other establishments,02-Dec-22,6688938,336,SUPPLIER,STILL WATERS CARE SERVICES LTD,300000020474495
Portsmouth City Council,PCC,Children's and Education Services,Children Looked After,Children's Services and Education,Third Party Payments,Other establishments,02-Dec-22,6688938,900,SUPPLIER,STILL WATERS CARE SERVICES LTD,300000020474495
Portsmouth City Council,PCC,Children's and Education Services,Children Looked After,Children's Services and Education,Third Party Payments,Other establishments,02-Dec-22,6688938,-10,SUPPLIER,STILL WATERS CARE SERVICES LTD,300000020474495
Portsmouth City Council,PCC,Children's and Education Services,Children Looked After,Children's Services and Education,Third Party Payments,Other establishments,02-Dec-22,6688938,-10,SUPPLIER,STILL WATERS CARE SERVICES LTD,300000020474495
Portsmouth City Council,PCC,Children's and Education Services,Children Looked After,Children's Services and Education,Third Party Payments,Other establishments,02-Dec-22,6688938,-10,SUPPLIER,STILL WATERS CARE SERVICES LTD,300000020474495
Portsmouth City Council,PCC,Children's and Education Services,Children Looked After,Children's Services and Education,Third Party Payments,Other establishments,02-Dec-22,6688938,-2.86,SUPPLIER,STILL WATERS CARE SERVICES LTD,300000020474495
Portsmouth City Council,PCC,Children's and Education Services,Children Looked After,Children's Services and Education,Third Party Payments,Other establishments,02-Dec-22,6688938,96,SUPPLIER,STILL WATERS CARE SERVICES LTD,300000020474495
Portsmouth City Council,PCC,Children's and Education Services,Children Looked After,Children's Services and Education,Third Party Payments,Other establishments,02-Dec-22,6688938,257.14,SUPPLIER,STILL WATERS CARE SERVICES LTD,300000020474495
Portsmouth City Council,PCC,Children's and Education Services,Children Looked After,Children's Services and Education,Third Party Payments,Other establishments,02-Dec-22,6688938,336,SUPPLIER,STILL WATERS CARE SERVICES LTD,300000020474495
Portsmouth City Council,PCC,Children's and Education Services,Children Looked After,Children's Services and Education,Third Party Payments,Other establishments,02-Dec-22,6688938,336,SUPPLIER,STILL WATERS CARE SERVICES LTD,300000020474495
Portsmouth City Council,PCC,Children's and Education Services,Children Looked After,Children's Services and Education,Third Party Payments,Other establishments,02-Dec-22,6688938,336,SUPPLIER,STILL WATERS CARE SERVICES LTD,300000020474495
Portsmouth City Council,PCC,Children's and Education Services,Children Looked After,Children's Services and Education,Third Party Payments,Other establishments,02-Dec-22,6688938,900,SUPPLIER,STILL WATERS CARE SERVICES LTD,300000020474495
Portsmouth City Council,PCC,Children's and Education Services,Children Looked After,Children's Services and Education,Third Party Payments,Other establishments,02-Dec-22,6688938,900,SUPPLIER,STILL WATERS CARE SERVICES LTD,300000020474495
Portsmouth City Council,PCC,Children's and Education Services,Children Looked After,Children's Services and Education,Third Party Payments,Other establishments,02-Dec-22,6688938,900,SUPPLIER,STILL WATERS CARE SERVICES LTD,300000020474495
Portsmouth City Council,PCC,Children's and Education Services,Safeguarding Children and Young Peoples Services,Children's Services and Education,Third Party Payments,Other establishments,07-Dec-22,6689482,47.32,SUPPLIER,SEVEN WAYS (SUPPORT) LIMITED,300000020473013
Portsmouth City Council,PCC,Children's and Education Services,Safeguarding Children and Young Peoples Services,Children's Services and Education,Third Party Payments,Other establishments,07-Dec-22,6689482,283.93,SUPPLIER,SEVEN WAYS (SUPPORT) LIMITED,300000020473013
Portsmouth City Council,PCC,Children's and Education Services,Safeguarding Children and Young Peoples Services,Children's Services and Education,Third Party Payments,Other establishments,07-Dec-22,6689482,331.25,SUPPLIER,SEVEN WAYS (SUPPORT) LIMITED,300000020473013
Portsmouth City Council,PCC,Children's and Education Services,Safeguarding Children and Young Peoples Services,Children's Services and Education,Third Party Payments,Other establishments,07-Dec-22,6689482,331.25,SUPPLIER,SEVEN WAYS (SUPPORT) LIMITED,300000020473013
Portsmouth City Council,PCC,Children's and Education Services,Safeguarding Children and Young Peoples Services,Children's Services and Education,Third Party Payments,Other establishments,07-Dec-22,6689482,331.25,SUPPLIER,SEVEN WAYS (SUPPORT) LIMITED,300000020473013
Portsmouth City Council,PCC,Children's and Education Services,Safeguarding Children and Young Peoples Services,Children's Services and Education,Third Party Payments,Other establishments,07-Dec-22,6689482,48.21,SUPPLIER,SEVEN WAYS (SUPPORT) LIMITED,300000020473013
Portsmouth City Council,PCC,Children's and Education Services,Safeguarding Children and Young Peoples Services,Children's Services and Education,Third Party Payments,Other establishments,07-Dec-22,6689482,289.29,SUPPLIER,SEVEN WAYS (SUPPORT) LIMITED,300000020473013
Portsmouth City Council,PCC,Children's and Education Services,Safeguarding Children and Young Peoples Services,Children's Services and Education,Third Party Payments,Other establishments,07-Dec-22,6689482,337.5,SUPPLIER,SEVEN WAYS (SUPPORT) LIMITED,300000020473013
Portsmouth City Council,PCC,Children's and Education Services,Safeguarding Children and Young Peoples Services,Children's Services and Education,Third Party Payments,Other establishments,07-Dec-22,6689482,337.5,SUPPLIER,SEVEN WAYS (SUPPORT) LIMITED,300000020473013
Portsmouth City Council,PCC,Children's and Education Services,Safeguarding Children and Young Peoples Services,Children's Services and Education,Third Party Payments,Other establishments,07-Dec-22,6689482,337.5,SUPPLIER,SEVEN WAYS (SUPPORT) LIMITED,300000020473013
Portsmouth City Council,PCC,Children's and Education Services,Children Looked After,Children's Services and Education,Third Party Payments,Other establishments,07-Dec-22,6689701,0.13,SUPPLIER,COMPASS COMMUNITY LIMITED,300000020462668
Portsmouth City Council,PCC,Children's and Education Services,Children Looked After,Children's Services and Education,Third Party Payments,Other establishments,07-Dec-22,6689701,"2,457.14",SUPPLIER,COMPASS COMMUNITY LIMITED,300000020462668
Portsmouth City Council,PCC,Children's and Education Services,Children Looked After,Children's Services and Education,Third Party Payments,Other establishments,07-Dec-22,6689701,"3,071.43",SUPPLIER,COMPASS COMMUNITY LIMITED,300000020462668
Portsmouth City Council,PCC,Children's and Education Services,Children Looked After,Children's Services and Education,Third Party Payments,Other establishments,07-Dec-22,6689701,"4,300.00",SUPPLIER,COMPASS COMMUNITY LIMITED,300000020462668
Portsmouth City Council,PCC,Children's and Education Services,Children Looked After,Children's Services and Education,Third Party Payments,Other establishments,07-Dec-22,6689701,"4,300.00",SUPPLIER,COMPASS COMMUNITY LIMITED,300000020462668
Portsmouth City Council,PCC,Children's and Education Services,Children Looked After,Children's Services and Education,Third Party Payments,Other establishments,07-Dec-22,6689701,"4,300.00",SUPPLIER,COMPASS COMMUNITY LIMITED,300000020462668
Portsmouth City Council,PCC,Highways and Transport Services,"Airports, Harbours and Toll Facilities",Portsmouth International Port,Premises-Related Expenditure,Cleaning and domestic supplies,02-Dec-22,6689040,38.3,SUPPLIER,NVIRO LTD,300000020479256
Portsmouth City Council,PCC,Highways and Transport Services,"Airports, Harbours and Toll Facilities",Portsmouth International Port,Premises-Related Expenditure,Cleaning and domestic supplies,02-Dec-22,6689040,"-6,579.19",SUPPLIER,NVIRO LTD,300000020479256
Portsmouth City Council,PCC,Other,Suspense and Capital Schemes,Capital - Housing General Fund,Capital Charges,REFCUS,12-Dec-22,6690137,"2,620.00",LIMITED COMPANY,LIFTECH SYSTEMS (SE) LIMITED,300000020461913
Portsmouth City Council,PCC,Housing Services,Housing Strategy,"Housing, Neighbourhood and Building Services",Income,Customer and client receipts,02-Dec-22,6689052,-660,LIMITED COMPANY,LIFTECH SYSTEMS (SE) LIMITED,300000020461913
Portsmouth City Council,PCC,Other,Suspense and Capital Schemes,"Housing, Neighbourhood and Building Services",Supplies and Services,Services,02-Dec-22,6689052,792,LIMITED COMPANY,LIFTECH SYSTEMS (SE) LIMITED,300000020461913
Portsmouth City Council,PCC,Other,Suspense and Capital Schemes,"Housing, Neighbourhood and Building Services",Supplies and Services,Services,02-Dec-22,6689052,"4,400.00",LIMITED COMPANY,LIFTECH SYSTEMS (SE) LIMITED,300000020461913
Portsmouth City Council,PCC,Other,Suspense and Capital Schemes,"Housing, Neighbourhood and Building Services",Supplies and Services,Services,09-Dec-22,6689988,"7,390.00",SUPPLIER,RAPID RAMP LIMITED,300000020478499
Portsmouth City Council,PCC,Children's and Education Services,Safeguarding Children and Young Peoples Services,Children's Services and Education,Third Party Payments,Other establishments,09-Dec-22,6690039,-0.02,SUPPLIER,PEEPAL TREE SUPPORT SERVICES LTD,300000020467258
Portsmouth City Council,PCC,Children's and Education Services,Safeguarding Children and Young Peoples Services,Children's Services and Education,Third Party Payments,Other establishments,09-Dec-22,6690039,18.73,SUPPLIER,PEEPAL TREE SUPPORT SERVICES LTD,300000020467258
Portsmouth City Council,PCC,Children's and Education Services,Safeguarding Children and Young Peoples Services,Children's Services and Education,Third Party Payments,Other establishments,09-Dec-22,6690039,37.47,SUPPLIER,PEEPAL TREE SUPPORT SERVICES LTD,300000020467258
Portsmouth City Council,PCC,Children's and Education Services,Safeguarding Children and Young Peoples Services,Children's Services and Education,Third Party Payments,Other establishments,09-Dec-22,6690039,131.13,SUPPLIER,PEEPAL TREE SUPPORT SERVICES LTD,300000020467258
Portsmouth City Council,PCC,Children's and Education Services,Safeguarding Children and Young Peoples Services,Children's Services and Education,Third Party Payments,Other establishments,09-Dec-22,6690039,131.13,SUPPLIER,PEEPAL TREE SUPPORT SERVICES LTD,300000020467258
Portsmouth City Council,PCC,Children's and Education Services,Safeguarding Children and Young Peoples Services,Children's Services and Education,Third Party Payments,Other establishments,09-Dec-22,6690039,131.13,SUPPLIER,PEEPAL TREE SUPPORT SERVICES LTD,300000020467258
Portsmouth City Council,PCC,Children's and Education Services,Safeguarding Children and Young Peoples Services,Children's Services and Education,Third Party Payments,Other establishments,09-Dec-22,6690039,131.13,SUPPLIER,PEEPAL TREE SUPPORT SERVICES LTD,300000020467258
Portsmouth City Council,PCC,Children's and Education Services,Children Looked After,Children's Services and Education,Third Party Payments,Other establishments,06-Dec-22,6689267,-10,SUPPLIER,STILL WATERS CARE SERVICES LTD,300000020474495
Portsmouth City Council,PCC,Children's and Education Services,Children Looked After,Children's Services and Education,Third Party Payments,Other establishments,06-Dec-22,6689267,-10,SUPPLIER,STILL WATERS CARE SERVICES LTD,300000020474495
Portsmouth City Council,PCC,Children's and Education Services,Children Looked After,Children's Services and Education,Third Party Payments,Other establishments,06-Dec-22,6689267,-10,SUPPLIER,STILL WATERS CARE SERVICES LTD,300000020474495
Portsmouth City Council,PCC,Children's and Education Services,Children Looked After,Children's Services and Education,Third Party Payments,Other establishments,06-Dec-22,6689267,-10,SUPPLIER,STILL WATERS CARE SERVICES LTD,300000020474495
Portsmouth City Council,PCC,Children's and Education Services,Children Looked After,Children's Services and Education,Third Party Payments,Other establishments,06-Dec-22,6689267,-10,SUPPLIER,STILL WATERS CARE SERVICES LTD,300000020474495
Portsmouth City Council,PCC,Children's and Education Services,Children Looked After,Children's Services and Education,Third Party Payments,Other establishments,06-Dec-22,6689267,-10,SUPPLIER,STILL WATERS CARE SERVICES LTD,300000020474495
Portsmouth City Council,PCC,Children's and Education Services,Children Looked After,Children's Services and Education,Third Party Payments,Other establishments,06-Dec-22,6689267,-7.14,SUPPLIER,STILL WATERS CARE SERVICES LTD,300000020474495
Portsmouth City Council,PCC,Children's and Education Services,Children Looked After,Children's Services and Education,Third Party Payments,Other establishments,06-Dec-22,6689267,-2.86,SUPPLIER,STILL WATERS CARE SERVICES LTD,300000020474495
Portsmouth City Council,PCC,Children's and Education Services,Children Looked After,Children's Services and Education,Third Party Payments,Other establishments,06-Dec-22,6689267,152.86,SUPPLIER,STILL WATERS CARE SERVICES LTD,300000020474495
Portsmouth City Council,PCC,Children's and Education Services,Children Looked After,Children's Services and Education,Third Party Payments,Other establishments,06-Dec-22,6689267,257.14,SUPPLIER,STILL WATERS CARE SERVICES LTD,300000020474495
Portsmouth City Council,PCC,Children's and Education Services,Children Looked After,Children's Services and Education,Third Party Payments,Other establishments,06-Dec-22,6689267,382.14,SUPPLIER,STILL WATERS CARE SERVICES LTD,300000020474495
Portsmouth City Council,PCC,Children's and Education Services,Children Looked After,Children's Services and Education,Third Party Payments,Other establishments,06-Dec-22,6689267,535,SUPPLIER,STILL WATERS CARE SERVICES LTD,300000020474495
Portsmouth City Council,PCC,Children's and Education Services,Children Looked After,Children's Services and Education,Third Party Payments,Other establishments,06-Dec-22,6689267,535,SUPPLIER,STILL WATERS CARE SERVICES LTD,300000020474495
Portsmouth City Council,PCC,Children's and Education Services,Children Looked After,Children's Services and Education,Third Party Payments,Other establishments,06-Dec-22,6689267,535,SUPPLIER,STILL WATERS CARE SERVICES LTD,300000020474495
Portsmouth City Council,PCC,Children's and Education Services,Children Looked After,Children's Services and Education,Third Party Payments,Other establishments,06-Dec-22,6689267,535,SUPPLIER,STILL WATERS CARE SERVICES LTD,300000020474495
Portsmouth City Council,PCC,Children's and Education Services,Children Looked After,Children's Services and Education,Third Party Payments,Other establishments,06-Dec-22,6689267,535,SUPPLIER,STILL WATERS CARE SERVICES LTD,300000020474495
Portsmouth City Council,PCC,Children's and Education Services,Children Looked After,Children's Services and Education,Third Party Payments,Other establishments,06-Dec-22,6689267,535,SUPPLIER,STILL WATERS CARE SERVICES LTD,300000020474495
Portsmouth City Council,PCC,Children's and Education Services,Children Looked After,Children's Services and Education,Third Party Payments,Other establishments,06-Dec-22,6689267,642.86,SUPPLIER,STILL WATERS CARE SERVICES LTD,300000020474495
Portsmouth City Council,PCC,Children's and Education Services,Children Looked After,Children's Services and Education,Third Party Payments,Other establishments,06-Dec-22,6689267,900,SUPPLIER,STILL WATERS CARE SERVICES LTD,300000020474495
Portsmouth City Council,PCC,Children's and Education Services,Children Looked After,Children's Services and Education,Third Party Payments,Other establishments,06-Dec-22,6689267,900,SUPPLIER,STILL WATERS CARE SERVICES LTD,300000020474495
Portsmouth City Council,PCC,Children's and Education Services,Children Looked After,Children's Services and Education,Third Party Payments,Other establishments,06-Dec-22,6689267,900,SUPPLIER,STILL WATERS CARE SERVICES LTD,300000020474495
Portsmouth City Council,PCC,Children's and Education Services,Children Looked After,Children's Services and Education,Third Party Payments,Other establishments,06-Dec-22,6689267,900,SUPPLIER,STILL WATERS CARE SERVICES LTD,300000020474495
Portsmouth City Council,PCC,Children's and Education Services,Children Looked After,Children's Services and Education,Third Party Payments,Other establishments,06-Dec-22,6689267,900,SUPPLIER,STILL WATERS CARE SERVICES LTD,300000020474495
Portsmouth City Council,PCC,Children's and Education Services,Children Looked After,Children's Services and Education,Third Party Payments,Other establishments,06-Dec-22,6689267,900,SUPPLIER,STILL WATERS CARE SERVICES LTD,300000020474495
Portsmouth City Council,PCC,Children's and Education Services,Children Looked After,Children's Services and Education,Third Party Payments,Other establishments,09-Dec-22,6689998,471.24,SUPPLIER,CORE ASSETS GROUP,300000020461175
Portsmouth City Council,PCC,Children's and Education Services,Children Looked After,Children's Services and Education,Third Party Payments,Other establishments,09-Dec-22,6689998,589.05,SUPPLIER,CORE ASSETS GROUP,300000020461175
Portsmouth City Council,PCC,Children's and Education Services,Children Looked After,Children's Services and Education,Third Party Payments,Other establishments,09-Dec-22,6689998,824.67,SUPPLIER,CORE ASSETS GROUP,300000020461175
Portsmouth City Council,PCC,Children's and Education Services,Children Looked After,Children's Services and Education,Third Party Payments,Other establishments,09-Dec-22,6689998,824.67,SUPPLIER,CORE ASSETS GROUP,300000020461175
Portsmouth City Council,PCC,Children's and Education Services,Children Looked After,Children's Services and Education,Third Party Payments,Other establishments,09-Dec-22,6689998,824.67,SUPPLIER,CORE ASSETS GROUP,300000020461175
Portsmouth City Council,PCC,Children's and Education Services,Safeguarding Children and Young Peoples Services,Children's Services and Education,Third Party Payments,Other establishments,09-Dec-22,6689998,401.4,SUPPLIER,CORE ASSETS GROUP,300000020461175
Portsmouth City Council,PCC,Children's and Education Services,Safeguarding Children and Young Peoples Services,Children's Services and Education,Third Party Payments,Other establishments,09-Dec-22,6689998,501.75,SUPPLIER,CORE ASSETS GROUP,300000020461175
Portsmouth City Council,PCC,Children's and Education Services,Safeguarding Children and Young Peoples Services,Children's Services and Education,Third Party Payments,Other establishments,09-Dec-22,6689998,702.45,SUPPLIER,CORE ASSETS GROUP,300000020461175
Portsmouth City Council,PCC,Children's and Education Services,Safeguarding Children and Young Peoples Services,Children's Services and Education,Third Party Payments,Other establishments,09-Dec-22,6689998,702.45,SUPPLIER,CORE ASSETS GROUP,300000020461175
Portsmouth City Council,PCC,Children's and Education Services,Safeguarding Children and Young Peoples Services,Children's Services and Education,Third Party Payments,Other establishments,09-Dec-22,6689998,702.45,SUPPLIER,CORE ASSETS GROUP,300000020461175
Portsmouth City Council,PCC,Children's and Education Services,Children Looked After,Children's Services and Education,Third Party Payments,Other establishments,09-Dec-22,6690024,-8.57,SUPPLIER,BPA CARE LIMITED,300000020475549
Portsmouth City Council,PCC,Children's and Education Services,Children Looked After,Children's Services and Education,Third Party Payments,Other establishments,09-Dec-22,6690024,-7.14,SUPPLIER,BPA CARE LIMITED,300000020475549
Portsmouth City Council,PCC,Children's and Education Services,Children Looked After,Children's Services and Education,Third Party Payments,Other establishments,09-Dec-22,6690024,15.71,SUPPLIER,BPA CARE LIMITED,300000020475549
Portsmouth City Council,PCC,Children's and Education Services,Children Looked After,Children's Services and Education,Third Party Payments,Other establishments,09-Dec-22,6690024,96.43,SUPPLIER,BPA CARE LIMITED,300000020475549
Portsmouth City Council,PCC,Children's and Education Services,Children Looked After,Children's Services and Education,Third Party Payments,Other establishments,09-Dec-22,6690024,115.71,SUPPLIER,BPA CARE LIMITED,300000020475549
Portsmouth City Council,PCC,Children's and Education Services,Children Looked After,Children's Services and Education,Third Party Payments,Other establishments,09-Dec-22,6690024,262.14,SUPPLIER,BPA CARE LIMITED,300000020475549
Portsmouth City Council,PCC,Children's and Education Services,Children Looked After,Children's Services and Education,Third Party Payments,Other establishments,09-Dec-22,6690024,314.57,SUPPLIER,BPA CARE LIMITED,300000020475549
Portsmouth City Council,PCC,Children's and Education Services,Children Looked After,Children's Services and Education,Third Party Payments,Other establishments,09-Dec-22,6690024,-15.71,SUPPLIER,BPA CARE LIMITED,300000020475549
Portsmouth City Council,PCC,Children's and Education Services,Children Looked After,Children's Services and Education,Third Party Payments,Other establishments,12-Dec-22,6690201,472,SUPPLIER,SPORTFIT SHORTBREAK CARE LTD,300000020478018
Portsmouth City Council,PCC,Children's and Education Services,Children Looked After,Children's Services and Education,Third Party Payments,Other establishments,12-Dec-22,6690201,944,SUPPLIER,SPORTFIT SHORTBREAK CARE LTD,300000020478018
Portsmouth City Council,PCC,Children's and Education Services,Children Looked After,Children's Services and Education,Third Party Payments,Other establishments,12-Dec-22,6690201,"3,304.00",SUPPLIER,SPORTFIT SHORTBREAK CARE LTD,300000020478018
Portsmouth City Council,PCC,Children's and Education Services,Children Looked After,Children's Services and Education,Third Party Payments,Other establishments,12-Dec-22,6690201,"3,304.00",SUPPLIER,SPORTFIT SHORTBREAK CARE LTD,300000020478018
Portsmouth City Council,PCC,Children's and Education Services,Children Looked After,Children's Services and Education,Third Party Payments,Other establishments,12-Dec-22,6690201,"3,304.00",SUPPLIER,SPORTFIT SHORTBREAK CARE LTD,300000020478018
Portsmouth City Council,PCC,Children's and Education Services,Children Looked After,Children's Services and Education,Third Party Payments,Other establishments,12-Dec-22,6690201,"3,304.00",SUPPLIER,SPORTFIT SHORTBREAK CARE LTD,300000020478018
Portsmouth City Council,PCC,Children's and Education Services,Family Support Services,Children's Services and Education,Third Party Payments,Other establishments,02-Dec-22,6688934,250,SUPPLIER,HOPE INTO ACTION PORTSMOUTH,300000020472723
Portsmouth City Council,PCC,Children's and Education Services,Family Support Services,Children's Services and Education,Third Party Payments,Other establishments,02-Dec-22,6688934,700,SUPPLIER,HOPE INTO ACTION PORTSMOUTH,300000020472723
Portsmouth City Council,PCC,Children's and Education Services,Children Looked After,Children's Services and Education,Third Party Payments,Other establishments,02-Dec-22,6688982,0.11,LIMITED COMPANY,GROWING INDEPENDENT SUPPORT (GISUK) LTD,300000429302011
Portsmouth City Council,PCC,Children's and Education Services,Children Looked After,Children's Services and Education,Third Party Payments,Other establishments,02-Dec-22,6688982,8.27,LIMITED COMPANY,GROWING INDEPENDENT SUPPORT (GISUK) LTD,300000429302011
Portsmouth City Council,PCC,Children's and Education Services,Children Looked After,Children's Services and Education,Third Party Payments,Other establishments,02-Dec-22,6688982,18.99,LIMITED COMPANY,GROWING INDEPENDENT SUPPORT (GISUK) LTD,300000429302011
Portsmouth City Council,PCC,Children's and Education Services,Children Looked After,Children's Services and Education,Third Party Payments,Other establishments,02-Dec-22,6688982,57.9,LIMITED COMPANY,GROWING INDEPENDENT SUPPORT (GISUK) LTD,300000429302011
Portsmouth City Council,PCC,Children's and Education Services,Children Looked After,Children's Services and Education,Third Party Payments,Other establishments,02-Dec-22,6688982,57.9,LIMITED COMPANY,GROWING INDEPENDENT SUPPORT (GISUK) LTD,300000429302011
Portsmouth City Council,PCC,Children's and Education Services,Children Looked After,Children's Services and Education,Third Party Payments,Other establishments,02-Dec-22,6688982,414.29,LIMITED COMPANY,GROWING INDEPENDENT SUPPORT (GISUK) LTD,300000429302011
Portsmouth City Council,PCC,Children's and Education Services,Children Looked After,Children's Services and Education,Third Party Payments,Other establishments,02-Dec-22,6688982,828.57,LIMITED COMPANY,GROWING INDEPENDENT SUPPORT (GISUK) LTD,300000429302011
Portsmouth City Council,PCC,Children's and Education Services,Children Looked After,Children's Services and Education,Third Party Payments,Other establishments,02-Dec-22,6688982,"2,900.00",LIMITED COMPANY,GROWING INDEPENDENT SUPPORT (GISUK) LTD,300000429302011
Portsmouth City Council,PCC,Children's and Education Services,Children Looked After,Children's Services and Education,Third Party Payments,Other establishments,02-Dec-22,6688982,"2,900.00",LIMITED COMPANY,GROWING INDEPENDENT SUPPORT (GISUK) LTD,300000429302011
Portsmouth City Council,PCC,Children's and Education Services,Children Looked After,Children's Services and Education,Third Party Payments,Other establishments,02-Dec-22,6688982,"2,900.00",LIMITED COMPANY,GROWING INDEPENDENT SUPPORT (GISUK) LTD,300000429302011
Portsmouth City Council,PCC,Children's and Education Services,Children Looked After,Children's Services and Education,Third Party Payments,Other establishments,02-Dec-22,6688982,"2,900.00",LIMITED COMPANY,GROWING INDEPENDENT SUPPORT (GISUK) LTD,300000429302011
Portsmouth City Council,PCC,Children's and Education Services,Children Looked After,Children's Services and Education,Third Party Payments,Other establishments,13-Dec-22,6690344,0.07,SUPPLIER,FOSTERING SOLUTIONS,300000009793967
Portsmouth City Council,PCC,Children's and Education Services,Children Looked After,Children's Services and Education,Third Party Payments,Other establishments,13-Dec-22,6690344,429.35,SUPPLIER,FOSTERING SOLUTIONS,300000009793967
Portsmouth City Council,PCC,Children's and Education Services,Children Looked After,Children's Services and Education,Third Party Payments,Other establishments,13-Dec-22,6690344,536.69,SUPPLIER,FOSTERING SOLUTIONS,300000009793967
Portsmouth City Council,PCC,Children's and Education Services,Children Looked After,Children's Services and Education,Third Party Payments,Other establishments,13-Dec-22,6690344,751.37,SUPPLIER,FOSTERING SOLUTIONS,300000009793967
Portsmouth City Council,PCC,Children's and Education Services,Children Looked After,Children's Services and Education,Third Party Payments,Other establishments,13-Dec-22,6690344,751.37,SUPPLIER,FOSTERING SOLUTIONS,300000009793967
Portsmouth City Council,PCC,Children's and Education Services,Children Looked After,Children's Services and Education,Third Party Payments,Other establishments,13-Dec-22,6690344,751.37,SUPPLIER,FOSTERING SOLUTIONS,300000009793967
Portsmouth City Council,PCC,Children's and Education Services,Other Children and Family Services,Children's Services and Education,Third Party Payments,Other establishments,05-Dec-22,6689155,"1,050.00",SUPPLIER,Classified as 'personal data' (under the Data Protection Act 2018),300000194059597
Portsmouth City Council,PCC,Children's and Education Services,Children Looked After,Children's Services and Education,Third Party Payments,Other establishments,01-Dec-22,6688812,564.88,SUPPLIER,ROSS AND LOWE PROPERTY MANAGMENT LTD,300000477318888
Portsmouth City Council,PCC,Children's and Education Services,Children Looked After,Children's Services and Education,Third Party Payments,Other establishments,02-Dec-22,6688956,"-3,637.97",LIMITED COMPANY,JAMMA UMOJA (RESIDENTIAL SERVICES) LTD,300000121549022
Portsmouth City Council,PCC,Children's and Education Services,Children Looked After,Children's Services and Education,Third Party Payments,Other establishments,02-Dec-22,6688956,"1,127.71",LIMITED COMPANY,JAMMA UMOJA (RESIDENTIAL SERVICES) LTD,300000121549022
Portsmouth City Council,PCC,Children's and Education Services,Children Looked After,Children's Services and Education,Third Party Payments,Other establishments,02-Dec-22,6688956,"6,766.26",LIMITED COMPANY,JAMMA UMOJA (RESIDENTIAL SERVICES) LTD,300000121549022
Portsmouth City Council,PCC,Children's and Education Services,Children Looked After,Children's Services and Education,Third Party Payments,Other establishments,02-Dec-22,6688956,"3,638.00",LIMITED COMPANY,JAMMA UMOJA (RESIDENTIAL SERVICES) LTD,300000121549022
Portsmouth City Council,PCC,Children's and Education Services,Family Support Services,Children's Services and Education,Supplies and Services,Services,13-Dec-22,6690476,431,SUPPLIER,AA GLOBAL LANGUAGE SERVICES LTD,300000020483226
Portsmouth City Council,PCC,Children's and Education Services,Family Support Services,Children's Services and Education,Supplies and Services,Services,13-Dec-22,6690476,230,SUPPLIER,AA GLOBAL LANGUAGE SERVICES LTD,300000020483226
Portsmouth City Council,PCC,Children's and Education Services,Other Children and Family Services,Children's Services and Education,Supplies and Services,Services,13-Dec-22,6690476,40,SUPPLIER,AA GLOBAL LANGUAGE SERVICES LTD,300000020483226
Portsmouth City Council,PCC,Children's and Education Services,Family Support Services,Children's Services and Education,Supplies and Services,Services,13-Dec-22,6690476,367,SUPPLIER,AA GLOBAL LANGUAGE SERVICES LTD,300000020483226
Portsmouth City Council,PCC,Highways and Transport Services,Structural Maintenance,Regeneration,Premises-Related Expenditure,Energy costs,12-Dec-22,6690189,34.47,PUBLIC LIMITED COMPANY,SCOTTISH AND SOUTHERN ENERGY PLC,300000020481543
Portsmouth City Council,PCC,Housing Revenue Account,Special Services,"Housing, Neighbourhood and Building Services",Premises-Related Expenditure,Energy costs,12-Dec-22,6690189,156.05,PUBLIC LIMITED COMPANY,SCOTTISH AND SOUTHERN ENERGY PLC,300000020481543
Portsmouth City Council,PCC,Cultural and Related Services,Culture and Heritage,"Culture, Leisure & Regulatory Services",Premises-Related Expenditure,Energy costs,12-Dec-22,6690189,132.5,PUBLIC LIMITED COMPANY,SCOTTISH AND SOUTHERN ENERGY PLC,300000020481543
Portsmouth City Council,PCC,Housing Revenue Account,Special Services,"Housing, Neighbourhood and Building Services",Premises-Related Expenditure,Energy costs,12-Dec-22,6690189,68.61,PUBLIC LIMITED COMPANY,SCOTTISH AND SOUTHERN ENERGY PLC,300000020481543
Portsmouth City Council,PCC,Housing Revenue Account,Special Services,"Housing, Neighbourhood and Building Services",Premises-Related Expenditure,Energy costs,12-Dec-22,6690189,66.52,PUBLIC LIMITED COMPANY,SCOTTISH AND SOUTHERN ENERGY PLC,300000020481543
Portsmouth City Council,PCC,Housing Revenue Account,Special Services,"Housing, Neighbourhood and Building Services",Premises-Related Expenditure,Energy costs,12-Dec-22,6690189,63.75,PUBLIC LIMITED COMPANY,SCOTTISH AND SOUTHERN ENERGY PLC,300000020481543
Portsmouth City Council,PCC,Highways and Transport Services,Structural Maintenance,Regeneration,Premises-Related Expenditure,Energy costs,12-Dec-22,6690189,63.89,PUBLIC LIMITED COMPANY,SCOTTISH AND SOUTHERN ENERGY PLC,300000020481543
Portsmouth City Council,PCC,Housing Revenue Account,Special Services,"Housing, Neighbourhood and Building Services",Premises-Related Expenditure,Energy costs,12-Dec-22,6690189,61.59,PUBLIC LIMITED COMPANY,SCOTTISH AND SOUTHERN ENERGY PLC,300000020481543
Portsmouth City Council,PCC,Children's and Education Services,Children Looked After,Children's Services and Education,Premises-Related Expenditure,Energy costs,12-Dec-22,6690189,106.66,PUBLIC LIMITED COMPANY,SCOTTISH AND SOUTHERN ENERGY PLC,300000020481543
Portsmouth City Council,PCC,Housing Revenue Account,Special Services,"Housing, Neighbourhood and Building Services",Premises-Related Expenditure,Energy costs,12-Dec-22,6690189,99.08,PUBLIC LIMITED COMPANY,SCOTTISH AND SOUTHERN ENERGY PLC,300000020481543
Portsmouth City Council,PCC,Housing Revenue Account,Special Services,"Housing, Neighbourhood and Building Services",Premises-Related Expenditure,Energy costs,12-Dec-22,6690189,178.41,PUBLIC LIMITED COMPANY,SCOTTISH AND SOUTHERN ENERGY PLC,300000020481543
Portsmouth City Council,PCC,Cultural and Related Services,Open Spaces,"Culture, Leisure & Regulatory Services",Premises-Related Expenditure,Energy costs,12-Dec-22,6690189,31.75,PUBLIC LIMITED COMPANY,SCOTTISH AND SOUTHERN ENERGY PLC,300000020481543
Portsmouth City Council,PCC,Housing Revenue Account,Special Services,"Housing, Neighbourhood and Building Services",Premises-Related Expenditure,Energy costs,12-Dec-22,6690189,120.72,PUBLIC LIMITED COMPANY,SCOTTISH AND SOUTHERN ENERGY PLC,300000020481543
Portsmouth City Council,PCC,Highways and Transport Services,Parking Services,Regeneration,Premises-Related Expenditure,Energy costs,12-Dec-22,6690189,54.53,PUBLIC LIMITED COMPANY,SCOTTISH AND SOUTHERN ENERGY PLC,300000020481543
Portsmouth City Council,PCC,Housing Revenue Account,Special Services,"Housing, Neighbourhood and Building Services",Premises-Related Expenditure,Energy costs,12-Dec-22,6690189,97.06,PUBLIC LIMITED COMPANY,SCOTTISH AND SOUTHERN ENERGY PLC,300000020481543
Portsmouth City Council,PCC,Costs below Net Cost of Services,Trading,"Housing, Neighbourhood and Building Services",Premises-Related Expenditure,Energy costs,12-Dec-22,6690189,189.37,PUBLIC LIMITED COMPANY,SCOTTISH AND SOUTHERN ENERGY PLC,300000020481543
Portsmouth City Council,PCC,Housing Revenue Account,Special Services,"Housing, Neighbourhood and Building Services",Premises-Related Expenditure,Energy costs,12-Dec-22,6690189,178.41,PUBLIC LIMITED COMPANY,SCOTTISH AND SOUTHERN ENERGY PLC,300000020481543
Portsmouth City Council,PCC,Children's and Education Services,Family Support Services,Children's Services and Education,Premises-Related Expenditure,Energy costs,12-Dec-22,6690189,254.84,PUBLIC LIMITED COMPANY,SCOTTISH AND SOUTHERN ENERGY PLC,300000020481543
Portsmouth City Council,PCC,Planning Services,Business support,Regeneration,Premises-Related Expenditure,Energy costs,12-Dec-22,6690189,42.41,PUBLIC LIMITED COMPANY,SCOTTISH AND SOUTHERN ENERGY PLC,300000020481543
Portsmouth City Council,PCC,Planning Services,Business support,Regeneration,Premises-Related Expenditure,Energy costs,12-Dec-22,6690189,40.67,PUBLIC LIMITED COMPANY,SCOTTISH AND SOUTHERN ENERGY PLC,300000020481543
Portsmouth City Council,PCC,Housing Revenue Account,Special Services,"Housing, Neighbourhood and Building Services",Premises-Related Expenditure,Energy costs,12-Dec-22,6690189,-104.71,PUBLIC LIMITED COMPANY,SCOTTISH AND SOUTHERN ENERGY PLC,300000020481543
Portsmouth City Council,PCC,Housing Revenue Account,Special Services,"Housing, Neighbourhood and Building Services",Premises-Related Expenditure,Energy costs,12-Dec-22,6690189,-158.36,PUBLIC LIMITED COMPANY,SCOTTISH AND SOUTHERN ENERGY PLC,300000020481543
Portsmouth City Council,PCC,Housing Revenue Account,Special Services,"Housing, Neighbourhood and Building Services",Premises-Related Expenditure,Energy costs,12-Dec-22,6690189,-176.62,PUBLIC LIMITED COMPANY,SCOTTISH AND SOUTHERN ENERGY PLC,300000020481543
Portsmouth City Council,PCC,Housing Revenue Account,Special Services,"Housing, Neighbourhood and Building Services",Premises-Related Expenditure,Energy costs,12-Dec-22,6690189,-37.21,PUBLIC LIMITED COMPANY,SCOTTISH AND SOUTHERN ENERGY PLC,300000020481543
Portsmouth City Council,PCC,Housing Revenue Account,Special Services,"Housing, Neighbourhood and Building Services",Premises-Related Expenditure,Energy costs,12-Dec-22,6690189,37.21,PUBLIC LIMITED COMPANY,SCOTTISH AND SOUTHERN ENERGY PLC,300000020481543
Portsmouth City Council,PCC,Housing Revenue Account,Special Services,"Housing, Neighbourhood and Building Services",Premises-Related Expenditure,Energy costs,12-Dec-22,6690189,90.14,PUBLIC LIMITED COMPANY,SCOTTISH AND SOUTHERN ENERGY PLC,300000020481543
Portsmouth City Council,PCC,Housing Revenue Account,Special Services,"Housing, Neighbourhood and Building Services",Premises-Related Expenditure,Energy costs,12-Dec-22,6690189,104.71,PUBLIC LIMITED COMPANY,SCOTTISH AND SOUTHERN ENERGY PLC,300000020481543
Portsmouth City Council,PCC,Housing Revenue Account,Special Services,"Housing, Neighbourhood and Building Services",Premises-Related Expenditure,Energy costs,12-Dec-22,6690189,104.85,PUBLIC LIMITED COMPANY,SCOTTISH AND SOUTHERN ENERGY PLC,300000020481543
Portsmouth City Council,PCC,Housing Revenue Account,Special Services,"Housing, Neighbourhood and Building Services",Premises-Related Expenditure,Energy costs,12-Dec-22,6690189,102.4,PUBLIC LIMITED COMPANY,SCOTTISH AND SOUTHERN ENERGY PLC,300000020481543
Portsmouth City Council,PCC,Housing Revenue Account,Special Services,"Housing, Neighbourhood and Building Services",Premises-Related Expenditure,Energy costs,12-Dec-22,6690189,104.71,PUBLIC LIMITED COMPANY,SCOTTISH AND SOUTHERN ENERGY PLC,300000020481543
Portsmouth City Council,PCC,Housing Revenue Account,Special Services,"Housing, Neighbourhood and Building Services",Premises-Related Expenditure,Energy costs,12-Dec-22,6690189,82.64,PUBLIC LIMITED COMPANY,SCOTTISH AND SOUTHERN ENERGY PLC,300000020481543
Portsmouth City Council,PCC,Housing Revenue Account,Special Services,"Housing, Neighbourhood and Building Services",Premises-Related Expenditure,Energy costs,12-Dec-22,6690189,208.05,PUBLIC LIMITED COMPANY,SCOTTISH AND SOUTHERN ENERGY PLC,300000020481543
Portsmouth City Council,PCC,Cultural and Related Services,Culture and Heritage,"Culture, Leisure & Regulatory Services",Premises-Related Expenditure,Energy costs,12-Dec-22,6690189,64.04,PUBLIC LIMITED COMPANY,SCOTTISH AND SOUTHERN ENERGY PLC,300000020481543
Portsmouth City Council,PCC,Children's and Education Services,Primary Schools,Children's Services and Education,Premises-Related Expenditure,Energy costs,12-Dec-22,6690189,97.64,PUBLIC LIMITED COMPANY,SCOTTISH AND SOUTHERN ENERGY PLC,300000020481543
Portsmouth City Council,PCC,Costs below Net Cost of Services,Trading,Regeneration,Premises-Related Expenditure,Energy costs,12-Dec-22,6690189,87.83,PUBLIC LIMITED COMPANY,SCOTTISH AND SOUTHERN ENERGY PLC,300000020481543
Portsmouth City Council,PCC,Housing Revenue Account,Special Services,"Housing, Neighbourhood and Building Services",Premises-Related Expenditure,Energy costs,12-Dec-22,6690189,210.69,PUBLIC LIMITED COMPANY,SCOTTISH AND SOUTHERN ENERGY PLC,300000020481543
Portsmouth City Council,PCC,Housing Revenue Account,Special Services,"Housing, Neighbourhood and Building Services",Premises-Related Expenditure,Energy costs,12-Dec-22,6690189,138.31,PUBLIC LIMITED COMPANY,SCOTTISH AND SOUTHERN ENERGY PLC,300000020481543
Portsmouth City Council,PCC,Highways and Transport Services,Street Lighting (including energy costs),Regeneration,Premises-Related Expenditure,Energy costs,12-Dec-22,6690189,37.07,PUBLIC LIMITED COMPANY,SCOTTISH AND SOUTHERN ENERGY PLC,300000020481543
Portsmouth City Council,PCC,Highways and Transport Services,Street Lighting (including energy costs),Regeneration,Premises-Related Expenditure,Energy costs,12-Dec-22,6690189,95.62,PUBLIC LIMITED COMPANY,SCOTTISH AND SOUTHERN ENERGY PLC,300000020481543
Portsmouth City Council,PCC,Housing Revenue Account,Special Services,"Housing, Neighbourhood and Building Services",Premises-Related Expenditure,Energy costs,12-Dec-22,6690189,"1,199.14",PUBLIC LIMITED COMPANY,SCOTTISH AND SOUTHERN ENERGY PLC,300000020481543
Portsmouth City Council,PCC,Housing Revenue Account,Special Services,"Housing, Neighbourhood and Building Services",Premises-Related Expenditure,Energy costs,12-Dec-22,6690189,765.9,PUBLIC LIMITED COMPANY,SCOTTISH AND SOUTHERN ENERGY PLC,300000020481543
Portsmouth City Council,PCC,Housing Revenue Account,Special Services,"Housing, Neighbourhood and Building Services",Premises-Related Expenditure,Energy costs,12-Dec-22,6690189,346.06,PUBLIC LIMITED COMPANY,SCOTTISH AND SOUTHERN ENERGY PLC,300000020481543
Portsmouth City Council,PCC,Housing Revenue Account,Special Services,"Housing, Neighbourhood and Building Services",Premises-Related Expenditure,Energy costs,12-Dec-22,6690189,44.48,PUBLIC LIMITED COMPANY,SCOTTISH AND SOUTHERN ENERGY PLC,300000020481543
Portsmouth City Council,PCC,Children's and Education Services,Primary Schools,Children's Services and Education,Premises-Related Expenditure,Energy costs,12-Dec-22,6690189,71.74,PUBLIC LIMITED COMPANY,SCOTTISH AND SOUTHERN ENERGY PLC,300000020481543
Portsmouth City Council,PCC,Housing Revenue Account,Special Services,"Housing, Neighbourhood and Building Services",Premises-Related Expenditure,Energy costs,12-Dec-22,6690189,210.69,PUBLIC LIMITED COMPANY,SCOTTISH AND SOUTHERN ENERGY PLC,300000020481543
Portsmouth City Council,PCC,Housing Revenue Account,Special Services,"Housing, Neighbourhood and Building Services",Premises-Related Expenditure,Energy costs,12-Dec-22,6690189,98.03,PUBLIC LIMITED COMPANY,SCOTTISH AND SOUTHERN ENERGY PLC,300000020481543
Portsmouth City Council,PCC,Children's and Education Services,Primary Schools,Children's Services and Education,Premises-Related Expenditure,Energy costs,12-Dec-22,6690189,243.15,PUBLIC LIMITED COMPANY,SCOTTISH AND SOUTHERN ENERGY PLC,300000020481543
Portsmouth City Council,PCC,Cultural and Related Services,Open Spaces,"Culture, Leisure & Regulatory Services",Premises-Related Expenditure,Energy costs,12-Dec-22,6690189,271.14,PUBLIC LIMITED COMPANY,SCOTTISH AND SOUTHERN ENERGY PLC,300000020481543
Portsmouth City Council,PCC,Costs below Net Cost of Services,Trading,Regeneration,Premises-Related Expenditure,Energy costs,12-Dec-22,6690189,-176.95,PUBLIC LIMITED COMPANY,SCOTTISH AND SOUTHERN ENERGY PLC,300000020481543
Portsmouth City Council,PCC,Costs below Net Cost of Services,Trading,Regeneration,Premises-Related Expenditure,Energy costs,12-Dec-22,6690189,-57.87,PUBLIC LIMITED COMPANY,SCOTTISH AND SOUTHERN ENERGY PLC,300000020481543
Portsmouth City Council,PCC,Costs below Net Cost of Services,Trading,Regeneration,Premises-Related Expenditure,Energy costs,12-Dec-22,6690189,-50.15,PUBLIC LIMITED COMPANY,SCOTTISH AND SOUTHERN ENERGY PLC,300000020481543
Portsmouth City Council,PCC,Costs below Net Cost of Services,Trading,Regeneration,Premises-Related Expenditure,Energy costs,12-Dec-22,6690189,-57.13,PUBLIC LIMITED COMPANY,SCOTTISH AND SOUTHERN ENERGY PLC,300000020481543
Portsmouth City Council,PCC,Costs below Net Cost of Services,Trading,Regeneration,Premises-Related Expenditure,Energy costs,12-Dec-22,6690189,-186.58,PUBLIC LIMITED COMPANY,SCOTTISH AND SOUTHERN ENERGY PLC,300000020481543
Portsmouth City Council,PCC,Costs below Net Cost of Services,Trading,Regeneration,Premises-Related Expenditure,Energy costs,12-Dec-22,6690189,46.13,PUBLIC LIMITED COMPANY,SCOTTISH AND SOUTHERN ENERGY PLC,300000020481543
Portsmouth City Council,PCC,Costs below Net Cost of Services,Trading,Regeneration,Premises-Related Expenditure,Energy costs,12-Dec-22,6690189,43.27,PUBLIC LIMITED COMPANY,SCOTTISH AND SOUTHERN ENERGY PLC,300000020481543
Portsmouth City Council,PCC,Costs below Net Cost of Services,Trading,Regeneration,Premises-Related Expenditure,Energy costs,12-Dec-22,6690189,45.6,PUBLIC LIMITED COMPANY,SCOTTISH AND SOUTHERN ENERGY PLC,300000020481543
Portsmouth City Council,PCC,Costs below Net Cost of Services,Trading,Regeneration,Premises-Related Expenditure,Energy costs,12-Dec-22,6690189,43.48,PUBLIC LIMITED COMPANY,SCOTTISH AND SOUTHERN ENERGY PLC,300000020481543
Portsmouth City Council,PCC,Costs below Net Cost of Services,Trading,Regeneration,Premises-Related Expenditure,Energy costs,12-Dec-22,6690189,46.23,PUBLIC LIMITED COMPANY,SCOTTISH AND SOUTHERN ENERGY PLC,300000020481543
Portsmouth City Council,PCC,Costs below Net Cost of Services,Trading,Regeneration,Premises-Related Expenditure,Energy costs,12-Dec-22,6690189,57.38,PUBLIC LIMITED COMPANY,SCOTTISH AND SOUTHERN ENERGY PLC,300000020481543
Portsmouth City Council,PCC,Costs below Net Cost of Services,Trading,Regeneration,Premises-Related Expenditure,Energy costs,12-Dec-22,6690189,43.7,PUBLIC LIMITED COMPANY,SCOTTISH AND SOUTHERN ENERGY PLC,300000020481543
Portsmouth City Council,PCC,Housing Revenue Account,"Rents, Rates, Taxes and Other Charges","Housing, Neighbourhood and Building Services",Premises-Related Expenditure,Energy costs,12-Dec-22,6690189,126.99,PUBLIC LIMITED COMPANY,SCOTTISH AND SOUTHERN ENERGY PLC,300000020481543
Portsmouth City Council,PCC,Housing Revenue Account,Special Services,"Housing, Neighbourhood and Building Services",Premises-Related Expenditure,Energy costs,12-Dec-22,6690189,94.04,PUBLIC LIMITED COMPANY,SCOTTISH AND SOUTHERN ENERGY PLC,300000020481543
Portsmouth City Council,PCC,Housing Revenue Account,Special Services,"Housing, Neighbourhood and Building Services",Premises-Related Expenditure,Energy costs,12-Dec-22,6690189,24.8,PUBLIC LIMITED COMPANY,SCOTTISH AND SOUTHERN ENERGY PLC,300000020481543
Portsmouth City Council,PCC,Housing Revenue Account,Special Services,"Housing, Neighbourhood and Building Services",Premises-Related Expenditure,Energy costs,12-Dec-22,6690189,29.11,PUBLIC LIMITED COMPANY,SCOTTISH AND SOUTHERN ENERGY PLC,300000020481543
Portsmouth City Council,PCC,Housing Revenue Account,Supervision and Management,"Housing, Neighbourhood and Building Services",Premises-Related Expenditure,Energy costs,12-Dec-22,6690189,321.33,PUBLIC LIMITED COMPANY,SCOTTISH AND SOUTHERN ENERGY PLC,300000020481543
Portsmouth City Council,PCC,Housing Revenue Account,Supervision and Management,"Housing, Neighbourhood and Building Services",Premises-Related Expenditure,Energy costs,12-Dec-22,6690189,744.61,PUBLIC LIMITED COMPANY,SCOTTISH AND SOUTHERN ENERGY PLC,300000020481543
Portsmouth City Council,PCC,Housing Revenue Account,Special Services,"Housing, Neighbourhood and Building Services",Premises-Related Expenditure,Energy costs,12-Dec-22,6690189,131.16,PUBLIC LIMITED COMPANY,SCOTTISH AND SOUTHERN ENERGY PLC,300000020481543
Portsmouth City Council,PCC,Costs below Net Cost of Services,Trading,Regeneration,Premises-Related Expenditure,Energy costs,12-Dec-22,6690189,181.58,PUBLIC LIMITED COMPANY,SCOTTISH AND SOUTHERN ENERGY PLC,300000020481543
Portsmouth City Council,PCC,Costs below Net Cost of Services,Trading,Regeneration,Premises-Related Expenditure,Energy costs,12-Dec-22,6690189,34.19,PUBLIC LIMITED COMPANY,SCOTTISH AND SOUTHERN ENERGY PLC,300000020481543
Portsmouth City Council,PCC,Housing Revenue Account,Special Services,"Housing, Neighbourhood and Building Services",Premises-Related Expenditure,Energy costs,12-Dec-22,6690189,511.7,PUBLIC LIMITED COMPANY,SCOTTISH AND SOUTHERN ENERGY PLC,300000020481543
Portsmouth City Council,PCC,Housing Revenue Account,Special Services,"Housing, Neighbourhood and Building Services",Premises-Related Expenditure,Energy costs,12-Dec-22,6690189,132.54,PUBLIC LIMITED COMPANY,SCOTTISH AND SOUTHERN ENERGY PLC,300000020481543
Portsmouth City Council,PCC,Housing Revenue Account,Special Services,"Housing, Neighbourhood and Building Services",Premises-Related Expenditure,Energy costs,12-Dec-22,6690189,103.7,PUBLIC LIMITED COMPANY,SCOTTISH AND SOUTHERN ENERGY PLC,300000020481543
Portsmouth City Council,PCC,Cultural and Related Services,Open Spaces,"Culture, Leisure & Regulatory Services",Premises-Related Expenditure,Energy costs,12-Dec-22,6690189,415.65,PUBLIC LIMITED COMPANY,SCOTTISH AND SOUTHERN ENERGY PLC,300000020481543
Portsmouth City Council,PCC,Cultural and Related Services,Open Spaces,"Culture, Leisure & Regulatory Services",Premises-Related Expenditure,Energy costs,12-Dec-22,6690189,86.76,PUBLIC LIMITED COMPANY,SCOTTISH AND SOUTHERN ENERGY PLC,300000020481543
Portsmouth City Council,PCC,Housing Revenue Account,Special Services,"Housing, Neighbourhood and Building Services",Premises-Related Expenditure,Energy costs,12-Dec-22,6690189,30.43,PUBLIC LIMITED COMPANY,SCOTTISH AND SOUTHERN ENERGY PLC,300000020481543
Portsmouth City Council,PCC,Housing Revenue Account,Special Services,"Housing, Neighbourhood and Building Services",Premises-Related Expenditure,Energy costs,12-Dec-22,6690189,211.58,PUBLIC LIMITED COMPANY,SCOTTISH AND SOUTHERN ENERGY PLC,300000020481543
Portsmouth City Council,PCC,Cultural and Related Services,Recreation and Sport,"Culture, Leisure & Regulatory Services",Premises-Related Expenditure,Energy costs,12-Dec-22,6690189,89.13,PUBLIC LIMITED COMPANY,SCOTTISH AND SOUTHERN ENERGY PLC,300000020481543
Portsmouth City Council,PCC,Housing Revenue Account,Special Services,"Housing, Neighbourhood and Building Services",Premises-Related Expenditure,Energy costs,12-Dec-22,6690189,320.75,PUBLIC LIMITED COMPANY,SCOTTISH AND SOUTHERN ENERGY PLC,300000020481543
Portsmouth City Council,PCC,Housing Revenue Account,Special Services,"Housing, Neighbourhood and Building Services",Premises-Related Expenditure,Energy costs,12-Dec-22,6690189,99.23,PUBLIC LIMITED COMPANY,SCOTTISH AND SOUTHERN ENERGY PLC,300000020481543
Portsmouth City Council,PCC,Environmental and Regulatory Services,Regulatory Services,"Housing, Neighbourhood and Building Services",Premises-Related Expenditure,Energy costs,12-Dec-22,6690189,884.46,PUBLIC LIMITED COMPANY,SCOTTISH AND SOUTHERN ENERGY PLC,300000020481543
Portsmouth City Council,PCC,Housing Revenue Account,Special Services,"Housing, Neighbourhood and Building Services",Premises-Related Expenditure,Energy costs,12-Dec-22,6690189,190.52,PUBLIC LIMITED COMPANY,SCOTTISH AND SOUTHERN ENERGY PLC,300000020481543
Portsmouth City Council,PCC,Housing Revenue Account,Special Services,"Housing, Neighbourhood and Building Services",Premises-Related Expenditure,Energy costs,12-Dec-22,6690189,"2,103.74",PUBLIC LIMITED COMPANY,SCOTTISH AND SOUTHERN ENERGY PLC,300000020481543
Portsmouth City Council,PCC,Housing Revenue Account,Special Services,"Housing, Neighbourhood and Building Services",Premises-Related Expenditure,Energy costs,12-Dec-22,6690189,151.15,PUBLIC LIMITED COMPANY,SCOTTISH AND SOUTHERN ENERGY PLC,300000020481543
Portsmouth City Council,PCC,Housing Revenue Account,Special Services,"Housing, Neighbourhood and Building Services",Premises-Related Expenditure,Energy costs,12-Dec-22,6690189,291.04,PUBLIC LIMITED COMPANY,SCOTTISH AND SOUTHERN ENERGY PLC,300000020481543
Portsmouth City Council,PCC,Housing Revenue Account,Special Services,"Housing, Neighbourhood and Building Services",Premises-Related Expenditure,Energy costs,12-Dec-22,6690189,36.78,PUBLIC LIMITED COMPANY,SCOTTISH AND SOUTHERN ENERGY PLC,300000020481543
Portsmouth City Council,PCC,Housing Revenue Account,Special Services,"Housing, Neighbourhood and Building Services",Premises-Related Expenditure,Energy costs,12-Dec-22,6690189,77.45,PUBLIC LIMITED COMPANY,SCOTTISH AND SOUTHERN ENERGY PLC,300000020481543
Portsmouth City Council,PCC,Cultural and Related Services,Culture and Heritage,"Culture, Leisure & Regulatory Services",Premises-Related Expenditure,Energy costs,12-Dec-22,6690189,"2,413.11",PUBLIC LIMITED COMPANY,SCOTTISH AND SOUTHERN ENERGY PLC,300000020481543
Portsmouth City Council,PCC,Housing Revenue Account,Special Services,"Housing, Neighbourhood and Building Services",Premises-Related Expenditure,Energy costs,12-Dec-22,6690189,266.52,PUBLIC LIMITED COMPANY,SCOTTISH AND SOUTHERN ENERGY PLC,300000020481543
Portsmouth City Council,PCC,Housing Revenue Account,"Rents, Rates, Taxes and Other Charges","Housing, Neighbourhood and Building Services",Premises-Related Expenditure,Energy costs,12-Dec-22,6690189,277.05,PUBLIC LIMITED COMPANY,SCOTTISH AND SOUTHERN ENERGY PLC,300000020481543
Portsmouth City Council,PCC,Housing Revenue Account,Special Services,"Housing, Neighbourhood and Building Services",Premises-Related Expenditure,Energy costs,12-Dec-22,6690189,34.19,PUBLIC LIMITED COMPANY,SCOTTISH AND SOUTHERN ENERGY PLC,300000020481543
Portsmouth City Council,PCC,Housing Revenue Account,Special Services,"Housing, Neighbourhood and Building Services",Premises-Related Expenditure,Energy costs,12-Dec-22,6690189,98.51,PUBLIC LIMITED COMPANY,SCOTTISH AND SOUTHERN ENERGY PLC,300000020481543
Portsmouth City Council,PCC,Housing Revenue Account,"Rents, Rates, Taxes and Other Charges","Housing, Neighbourhood and Building Services",Premises-Related Expenditure,Energy costs,12-Dec-22,6690189,56.83,PUBLIC LIMITED COMPANY,SCOTTISH AND SOUTHERN ENERGY PLC,300000020481543
Portsmouth City Council,PCC,Housing Revenue Account,Special Services,"Housing, Neighbourhood and Building Services",Premises-Related Expenditure,Energy costs,12-Dec-22,6690189,9.42,PUBLIC LIMITED COMPANY,SCOTTISH AND SOUTHERN ENERGY PLC,300000020481543
Portsmouth City Council,PCC,Housing Revenue Account,"Rents, Rates, Taxes and Other Charges","Housing, Neighbourhood and Building Services",Premises-Related Expenditure,Energy costs,12-Dec-22,6690189,72.4,PUBLIC LIMITED COMPANY,SCOTTISH AND SOUTHERN ENERGY PLC,300000020481543
Portsmouth City Council,PCC,Housing Revenue Account,"Rents, Rates, Taxes and Other Charges","Housing, Neighbourhood and Building Services",Premises-Related Expenditure,Energy costs,12-Dec-22,6690189,34.33,PUBLIC LIMITED COMPANY,SCOTTISH AND SOUTHERN ENERGY PLC,300000020481543
Portsmouth City Council,PCC,Housing Revenue Account,"Rents, Rates, Taxes and Other Charges","Housing, Neighbourhood and Building Services",Premises-Related Expenditure,Energy costs,12-Dec-22,6690189,87.11,PUBLIC LIMITED COMPANY,SCOTTISH AND SOUTHERN ENERGY PLC,300000020481543
Portsmouth City Council,PCC,Housing Revenue Account,"Rents, Rates, Taxes and Other Charges","Housing, Neighbourhood and Building Services",Premises-Related Expenditure,Energy costs,12-Dec-22,6690189,34.33,PUBLIC LIMITED COMPANY,SCOTTISH AND SOUTHERN ENERGY PLC,300000020481543
Portsmouth City Council,PCC,Housing Revenue Account,"Rents, Rates, Taxes and Other Charges","Housing, Neighbourhood and Building Services",Premises-Related Expenditure,Energy costs,12-Dec-22,6690189,99.52,PUBLIC LIMITED COMPANY,SCOTTISH AND SOUTHERN ENERGY PLC,300000020481543
Portsmouth City Council,PCC,Housing Revenue Account,"Rents, Rates, Taxes and Other Charges","Housing, Neighbourhood and Building Services",Premises-Related Expenditure,Energy costs,12-Dec-22,6690189,34.33,PUBLIC LIMITED COMPANY,SCOTTISH AND SOUTHERN ENERGY PLC,300000020481543
Portsmouth City Council,PCC,Cultural and Related Services,Recreation and Sport,"Culture, Leisure & Regulatory Services",Premises-Related Expenditure,Energy costs,12-Dec-22,6690189,164.92,PUBLIC LIMITED COMPANY,SCOTTISH AND SOUTHERN ENERGY PLC,300000020481543
Portsmouth City Council,PCC,Housing Services,Homelessness,"Housing, Neighbourhood and Building Services",Premises-Related Expenditure,Energy costs,12-Dec-22,6690189,"2,133.88",PUBLIC LIMITED COMPANY,SCOTTISH AND SOUTHERN ENERGY PLC,300000020481543
Portsmouth City Council,PCC,Housing Revenue Account,Supervision and Management,"Housing, Neighbourhood and Building Services",Premises-Related Expenditure,Energy costs,12-Dec-22,6690189,61.15,PUBLIC LIMITED COMPANY,SCOTTISH AND SOUTHERN ENERGY PLC,300000020481543
Portsmouth City Council,PCC,Housing Revenue Account,"Rents, Rates, Taxes and Other Charges","Housing, Neighbourhood and Building Services",Premises-Related Expenditure,Energy costs,12-Dec-22,6690189,44.42,PUBLIC LIMITED COMPANY,SCOTTISH AND SOUTHERN ENERGY PLC,300000020481543
Portsmouth City Council,PCC,Housing Revenue Account,Special Services,"Housing, Neighbourhood and Building Services",Premises-Related Expenditure,Energy costs,12-Dec-22,6690189,90.76,PUBLIC LIMITED COMPANY,SCOTTISH AND SOUTHERN ENERGY PLC,300000020481543
Portsmouth City Council,PCC,Housing Revenue Account,Special Services,"Housing, Neighbourhood and Building Services",Premises-Related Expenditure,Energy costs,12-Dec-22,6690189,61.64,PUBLIC LIMITED COMPANY,SCOTTISH AND SOUTHERN ENERGY PLC,300000020481543
Portsmouth City Council,PCC,Cultural and Related Services,Library Service,"Culture, Leisure & Regulatory Services",Premises-Related Expenditure,Energy costs,12-Dec-22,6690189,163.12,PUBLIC LIMITED COMPANY,SCOTTISH AND SOUTHERN ENERGY PLC,300000020481543
Portsmouth City Council,PCC,Highways and Transport Services,"Environment, Safety and Routine Maintenance",Regeneration,Premises-Related Expenditure,Energy costs,12-Dec-22,6690189,41.83,PUBLIC LIMITED COMPANY,SCOTTISH AND SOUTHERN ENERGY PLC,300000020481543
Portsmouth City Council,PCC,Highways and Transport Services,"Environment, Safety and Routine Maintenance",Regeneration,Premises-Related Expenditure,Energy costs,12-Dec-22,6690189,260.75,PUBLIC LIMITED COMPANY,SCOTTISH AND SOUTHERN ENERGY PLC,300000020481543
Portsmouth City Council,PCC,Highways and Transport Services,Structural Maintenance,Regeneration,Premises-Related Expenditure,Energy costs,12-Dec-22,6690189,35.19,PUBLIC LIMITED COMPANY,SCOTTISH AND SOUTHERN ENERGY PLC,300000020481543
Portsmouth City Council,PCC,Children's and Education Services,Children Looked After,Children's Services and Education,Premises-Related Expenditure,Energy costs,12-Dec-22,6690189,37.41,PUBLIC LIMITED COMPANY,SCOTTISH AND SOUTHERN ENERGY PLC,300000020481543
Portsmouth City Council,PCC,Cultural and Related Services,Open Spaces,"Culture, Leisure & Regulatory Services",Premises-Related Expenditure,Energy costs,12-Dec-22,6690189,11.4,PUBLIC LIMITED COMPANY,SCOTTISH AND SOUTHERN ENERGY PLC,300000020481543
Portsmouth City Council,PCC,Housing Services,Homelessness,"Housing, Neighbourhood and Building Services",Premises-Related Expenditure,Energy costs,12-Dec-22,6690189,170.48,PUBLIC LIMITED COMPANY,SCOTTISH AND SOUTHERN ENERGY PLC,300000020481543
Portsmouth City Council,PCC,Housing Revenue Account,"Rents, Rates, Taxes and Other Charges","Housing, Neighbourhood and Building Services",Premises-Related Expenditure,Energy costs,12-Dec-22,6690189,576.46,PUBLIC LIMITED COMPANY,SCOTTISH AND SOUTHERN ENERGY PLC,300000020481543
Portsmouth City Council,PCC,Environmental and Regulatory Services,Regulatory Services,"Housing, Neighbourhood and Building Services",Premises-Related Expenditure,Energy costs,12-Dec-22,6690189,127,PUBLIC LIMITED COMPANY,SCOTTISH AND SOUTHERN ENERGY PLC,300000020481543
Portsmouth City Council,PCC,Housing Revenue Account,Special Services,"Housing, Neighbourhood and Building Services",Premises-Related Expenditure,Energy costs,12-Dec-22,6690189,48.11,PUBLIC LIMITED COMPANY,SCOTTISH AND SOUTHERN ENERGY PLC,300000020481543
Portsmouth City Council,PCC,Other,Suspense and Capital Schemes,"Housing, Neighbourhood and Building Services",Premises-Related Expenditure,Energy costs,12-Dec-22,6690189,-411.94,PUBLIC LIMITED COMPANY,SCOTTISH AND SOUTHERN ENERGY PLC,300000020481543
Portsmouth City Council,PCC,Other,Suspense and Capital Schemes,"Housing, Neighbourhood and Building Services",Premises-Related Expenditure,Energy costs,12-Dec-22,6690189,552.63,PUBLIC LIMITED COMPANY,SCOTTISH AND SOUTHERN ENERGY PLC,300000020481543
Portsmouth City Council,PCC,Other,Suspense and Capital Schemes,"Housing, Neighbourhood and Building Services",Premises-Related Expenditure,Energy costs,12-Dec-22,6690189,"1,151.31",PUBLIC LIMITED COMPANY,SCOTTISH AND SOUTHERN ENERGY PLC,300000020481543
Portsmouth City Council,PCC,Other,Suspense and Capital Schemes,"Housing, Neighbourhood and Building Services",Premises-Related Expenditure,Energy costs,12-Dec-22,6690189,448.54,PUBLIC LIMITED COMPANY,SCOTTISH AND SOUTHERN ENERGY PLC,300000020481543
Portsmouth City Council,PCC,Highways and Transport Services,Street Lighting (including energy costs),Regeneration,Premises-Related Expenditure,Energy costs,12-Dec-22,6690189,112.35,PUBLIC LIMITED COMPANY,SCOTTISH AND SOUTHERN ENERGY PLC,300000020481543
Portsmouth City Council,PCC,Highways and Transport Services,Street Lighting (including energy costs),Regeneration,Premises-Related Expenditure,Energy costs,12-Dec-22,6690189,123.89,PUBLIC LIMITED COMPANY,SCOTTISH AND SOUTHERN ENERGY PLC,300000020481543
Portsmouth City Council,PCC,Highways and Transport Services,"Environment, Safety and Routine Maintenance",Regeneration,Premises-Related Expenditure,Energy costs,12-Dec-22,6690189,125.33,PUBLIC LIMITED COMPANY,SCOTTISH AND SOUTHERN ENERGY PLC,300000020481543
Portsmouth City Council,PCC,Highways and Transport Services,"Environment, Safety and Routine Maintenance",Regeneration,Premises-Related Expenditure,Energy costs,12-Dec-22,6690189,141.77,PUBLIC LIMITED COMPANY,SCOTTISH AND SOUTHERN ENERGY PLC,300000020481543
Portsmouth City Council,PCC,Housing Revenue Account,Special Services,"Housing, Neighbourhood and Building Services",Premises-Related Expenditure,Energy costs,12-Dec-22,6690189,"1,021.29",PUBLIC LIMITED COMPANY,SCOTTISH AND SOUTHERN ENERGY PLC,300000020481543
Portsmouth City Council,PCC,Housing Revenue Account,Special Services,"Housing, Neighbourhood and Building Services",Premises-Related Expenditure,Energy costs,12-Dec-22,6690189,901.22,PUBLIC LIMITED COMPANY,SCOTTISH AND SOUTHERN ENERGY PLC,300000020481543
Portsmouth City Council,PCC,Children's and Education Services,Primary Schools,Children's Services and Education,Premises-Related Expenditure,Energy costs,12-Dec-22,6690189,"2,402.62",PUBLIC LIMITED COMPANY,SCOTTISH AND SOUTHERN ENERGY PLC,300000020481543
Portsmouth City Council,PCC,Children's and Education Services,Other Education and Community Budget,Children's Services and Education,Premises-Related Expenditure,Energy costs,12-Dec-22,6690189,404.87,PUBLIC LIMITED COMPANY,SCOTTISH AND SOUTHERN ENERGY PLC,300000020481543
Portsmouth City Council,PCC,Children's and Education Services,Primary Schools,Children's Services and Education,Premises-Related Expenditure,Energy costs,12-Dec-22,6690189,540.39,PUBLIC LIMITED COMPANY,SCOTTISH AND SOUTHERN ENERGY PLC,300000020481543
Portsmouth City Council,PCC,Housing Revenue Account,Special Services,"Housing, Neighbourhood and Building Services",Premises-Related Expenditure,Energy costs,12-Dec-22,6690189,728.67,PUBLIC LIMITED COMPANY,SCOTTISH AND SOUTHERN ENERGY PLC,300000020481543
Portsmouth City Council,PCC,Highways and Transport Services,"Environment, Safety and Routine Maintenance",Regeneration,Premises-Related Expenditure,Energy costs,12-Dec-22,6690189,711.21,PUBLIC LIMITED COMPANY,SCOTTISH AND SOUTHERN ENERGY PLC,300000020481543
Portsmouth City Council,PCC,Costs below Net Cost of Services,Trading,Regeneration,Premises-Related Expenditure,Energy costs,12-Dec-22,6690189,87.83,PUBLIC LIMITED COMPANY,SCOTTISH AND SOUTHERN ENERGY PLC,300000020481543
Portsmouth City Council,PCC,Children's and Education Services,Primary Schools,Children's Services and Education,Premises-Related Expenditure,Energy costs,12-Dec-22,6690189,"2,050.73",PUBLIC LIMITED COMPANY,SCOTTISH AND SOUTHERN ENERGY PLC,300000020481543
Portsmouth City Council,PCC,Housing Revenue Account,Special Services,"Housing, Neighbourhood and Building Services",Premises-Related Expenditure,Energy costs,12-Dec-22,6690189,66.99,PUBLIC LIMITED COMPANY,SCOTTISH AND SOUTHERN ENERGY PLC,300000020481543
Portsmouth City Council,PCC,Housing Revenue Account,"Rents, Rates, Taxes and Other Charges","Housing, Neighbourhood and Building Services",Premises-Related Expenditure,Energy costs,12-Dec-22,6690189,172.56,PUBLIC LIMITED COMPANY,SCOTTISH AND SOUTHERN ENERGY PLC,300000020481543
Portsmouth City Council,PCC,Children's and Education Services,Primary Schools,Children's Services and Education,Premises-Related Expenditure,Energy costs,12-Dec-22,6690189,"2,395.43",PUBLIC LIMITED COMPANY,SCOTTISH AND SOUTHERN ENERGY PLC,300000020481543
Portsmouth City Council,PCC,Housing Revenue Account,Special Services,"Housing, Neighbourhood and Building Services",Premises-Related Expenditure,Energy costs,12-Dec-22,6690189,82.92,PUBLIC LIMITED COMPANY,SCOTTISH AND SOUTHERN ENERGY PLC,300000020481543
Portsmouth City Council,PCC,Highways and Transport Services,"Environment, Safety and Routine Maintenance",Regeneration,Premises-Related Expenditure,Energy costs,12-Dec-22,6690189,249.36,PUBLIC LIMITED COMPANY,SCOTTISH AND SOUTHERN ENERGY PLC,300000020481543
Portsmouth City Council,PCC,Housing Revenue Account,Special Services,"Housing, Neighbourhood and Building Services",Premises-Related Expenditure,Energy costs,12-Dec-22,6690189,693.41,PUBLIC LIMITED COMPANY,SCOTTISH AND SOUTHERN ENERGY PLC,300000020481543
Portsmouth City Council,PCC,Cultural and Related Services,Culture and Heritage,"Culture, Leisure & Regulatory Services",Premises-Related Expenditure,Energy costs,12-Dec-22,6690189,28.32,PUBLIC LIMITED COMPANY,SCOTTISH AND SOUTHERN ENERGY PLC,300000020481543
Portsmouth City Council,PCC,Housing Revenue Account,Special Services,"Housing, Neighbourhood and Building Services",Premises-Related Expenditure,Energy costs,12-Dec-22,6690189,"2,182.11",PUBLIC LIMITED COMPANY,SCOTTISH AND SOUTHERN ENERGY PLC,300000020481543
Portsmouth City Council,PCC,Housing Revenue Account,Special Services,"Housing, Neighbourhood and Building Services",Premises-Related Expenditure,Energy costs,12-Dec-22,6690189,964.84,PUBLIC LIMITED COMPANY,SCOTTISH AND SOUTHERN ENERGY PLC,300000020481543
Portsmouth City Council,PCC,Housing Revenue Account,Special Services,"Housing, Neighbourhood and Building Services",Premises-Related Expenditure,Energy costs,12-Dec-22,6690189,"1,160.81",PUBLIC LIMITED COMPANY,SCOTTISH AND SOUTHERN ENERGY PLC,300000020481543
Portsmouth City Council,PCC,Housing Revenue Account,Special Services,"Housing, Neighbourhood and Building Services",Premises-Related Expenditure,Energy costs,12-Dec-22,6690189,"1,588.73",PUBLIC LIMITED COMPANY,SCOTTISH AND SOUTHERN ENERGY PLC,300000020481543
Portsmouth City Council,PCC,Housing Revenue Account,Special Services,"Housing, Neighbourhood and Building Services",Premises-Related Expenditure,Energy costs,12-Dec-22,6690189,360.99,PUBLIC LIMITED COMPANY,SCOTTISH AND SOUTHERN ENERGY PLC,300000020481543
Portsmouth City Council,PCC,Housing Revenue Account,Special Services,"Housing, Neighbourhood and Building Services",Premises-Related Expenditure,Energy costs,12-Dec-22,6690189,"1,141.59",PUBLIC LIMITED COMPANY,SCOTTISH AND SOUTHERN ENERGY PLC,300000020481543
Portsmouth City Council,PCC,Housing Revenue Account,Special Services,"Housing, Neighbourhood and Building Services",Premises-Related Expenditure,Energy costs,12-Dec-22,6690189,"1,999.80",PUBLIC LIMITED COMPANY,SCOTTISH AND SOUTHERN ENERGY PLC,300000020481543
Portsmouth City Council,PCC,Housing Revenue Account,Special Services,"Housing, Neighbourhood and Building Services",Premises-Related Expenditure,Energy costs,12-Dec-22,6690189,"3,729.11",PUBLIC LIMITED COMPANY,SCOTTISH AND SOUTHERN ENERGY PLC,300000020481543
Portsmouth City Council,PCC,Housing Revenue Account,Special Services,"Housing, Neighbourhood and Building Services",Premises-Related Expenditure,Energy costs,12-Dec-22,6690189,"1,858.80",PUBLIC LIMITED COMPANY,SCOTTISH AND SOUTHERN ENERGY PLC,300000020481543
Portsmouth City Council,PCC,Housing Revenue Account,Special Services,"Housing, Neighbourhood and Building Services",Premises-Related Expenditure,Energy costs,12-Dec-22,6690189,"1,091.54",PUBLIC LIMITED COMPANY,SCOTTISH AND SOUTHERN ENERGY PLC,300000020481543
Portsmouth City Council,PCC,Housing Revenue Account,Special Services,"Housing, Neighbourhood and Building Services",Premises-Related Expenditure,Energy costs,12-Dec-22,6690189,"1,202.53",PUBLIC LIMITED COMPANY,SCOTTISH AND SOUTHERN ENERGY PLC,300000020481543
Portsmouth City Council,PCC,Housing Revenue Account,Supervision and Management,"Housing, Neighbourhood and Building Services",Premises-Related Expenditure,Energy costs,12-Dec-22,6690189,696.59,PUBLIC LIMITED COMPANY,SCOTTISH AND SOUTHERN ENERGY PLC,300000020481543
Portsmouth City Council,PCC,Cultural and Related Services,Library Service,"Culture, Leisure & Regulatory Services",Premises-Related Expenditure,Energy costs,12-Dec-22,6690189,825.58,PUBLIC LIMITED COMPANY,SCOTTISH AND SOUTHERN ENERGY PLC,300000020481543
Portsmouth City Council,PCC,Children's and Education Services,Family Support Services,Children's Services and Education,Premises-Related Expenditure,Energy costs,12-Dec-22,6690189,887.73,PUBLIC LIMITED COMPANY,SCOTTISH AND SOUTHERN ENERGY PLC,300000020481543
Portsmouth City Council,PCC,Costs below Net Cost of Services,Trading,Regeneration,Premises-Related Expenditure,Energy costs,12-Dec-22,6690189,907.86,PUBLIC LIMITED COMPANY,SCOTTISH AND SOUTHERN ENERGY PLC,300000020481543
Portsmouth City Council,PCC,Highways and Transport Services,"Environment, Safety and Routine Maintenance",Regeneration,Premises-Related Expenditure,Energy costs,12-Dec-22,6690189,817.59,PUBLIC LIMITED COMPANY,SCOTTISH AND SOUTHERN ENERGY PLC,300000020481543
Portsmouth City Council,PCC,Children's and Education Services,Children Looked After,Children's Services and Education,Premises-Related Expenditure,Energy costs,12-Dec-22,6690189,532.67,PUBLIC LIMITED COMPANY,SCOTTISH AND SOUTHERN ENERGY PLC,300000020481543
Portsmouth City Council,PCC,Housing Revenue Account,"Rents, Rates, Taxes and Other Charges","Housing, Neighbourhood and Building Services",Premises-Related Expenditure,Energy costs,12-Dec-22,6690189,269.22,PUBLIC LIMITED COMPANY,SCOTTISH AND SOUTHERN ENERGY PLC,300000020481543
Portsmouth City Council,PCC,Cultural and Related Services,Open Spaces,"Culture, Leisure & Regulatory Services",Premises-Related Expenditure,Energy costs,12-Dec-22,6690189,"1,238.80",PUBLIC LIMITED COMPANY,SCOTTISH AND SOUTHERN ENERGY PLC,300000020481543
Portsmouth City Council,PCC,Children's and Education Services,Primary Schools,Children's Services and Education,Premises-Related Expenditure,Energy costs,12-Dec-22,6690189,"2,105.65",PUBLIC LIMITED COMPANY,SCOTTISH AND SOUTHERN ENERGY PLC,300000020481543
Portsmouth City Council,PCC,Children's and Education Services,Primary Schools,Children's Services and Education,Premises-Related Expenditure,Energy costs,12-Dec-22,6690189,"1,907.85",PUBLIC LIMITED COMPANY,SCOTTISH AND SOUTHERN ENERGY PLC,300000020481543
Portsmouth City Council,PCC,Housing Revenue Account,Special Services,"Housing, Neighbourhood and Building Services",Premises-Related Expenditure,Energy costs,12-Dec-22,6690189,257.87,PUBLIC LIMITED COMPANY,SCOTTISH AND SOUTHERN ENERGY PLC,300000020481543
Portsmouth City Council,PCC,Children's and Education Services,Primary Schools,Children's Services and Education,Premises-Related Expenditure,Energy costs,12-Dec-22,6690189,"2,164.55",PUBLIC LIMITED COMPANY,SCOTTISH AND SOUTHERN ENERGY PLC,300000020481543
Portsmouth City Council,PCC,Housing Revenue Account,"Rents, Rates, Taxes and Other Charges","Housing, Neighbourhood and Building Services",Premises-Related Expenditure,Energy costs,12-Dec-22,6690189,108.97,PUBLIC LIMITED COMPANY,SCOTTISH AND SOUTHERN ENERGY PLC,300000020481543
Portsmouth City Council,PCC,Housing Revenue Account,Special Services,"Housing, Neighbourhood and Building Services",Premises-Related Expenditure,Energy costs,12-Dec-22,6690189,"1,885.98",PUBLIC LIMITED COMPANY,SCOTTISH AND SOUTHERN ENERGY PLC,300000020481543
Portsmouth City Council,PCC,Housing Revenue Account,Special Services,"Housing, Neighbourhood and Building Services",Premises-Related Expenditure,Energy costs,12-Dec-22,6690189,431.14,PUBLIC LIMITED COMPANY,SCOTTISH AND SOUTHERN ENERGY PLC,300000020481543
Portsmouth City Council,PCC,Housing Revenue Account,Special Services,"Housing, Neighbourhood and Building Services",Premises-Related Expenditure,Energy costs,12-Dec-22,6690189,862.14,PUBLIC LIMITED COMPANY,SCOTTISH AND SOUTHERN ENERGY PLC,300000020481543
Portsmouth City Council,PCC,Housing Revenue Account,Special Services,"Housing, Neighbourhood and Building Services",Premises-Related Expenditure,Energy costs,12-Dec-22,6690189,"1,172.09",PUBLIC LIMITED COMPANY,SCOTTISH AND SOUTHERN ENERGY PLC,300000020481543
Portsmouth City Council,PCC,Highways and Transport Services,"Environment, Safety and Routine Maintenance",Regeneration,Premises-Related Expenditure,Energy costs,12-Dec-22,6690189,72.11,PUBLIC LIMITED COMPANY,SCOTTISH AND SOUTHERN ENERGY PLC,300000020481543
Portsmouth City Council,PCC,Housing Revenue Account,Special Services,"Housing, Neighbourhood and Building Services",Premises-Related Expenditure,Energy costs,12-Dec-22,6690189,99.23,PUBLIC LIMITED COMPANY,SCOTTISH AND SOUTHERN ENERGY PLC,300000020481543
Portsmouth City Council,PCC,Housing Revenue Account,Special Services,"Housing, Neighbourhood and Building Services",Premises-Related Expenditure,Energy costs,12-Dec-22,6690189,773.35,PUBLIC LIMITED COMPANY,SCOTTISH AND SOUTHERN ENERGY PLC,300000020481543
Portsmouth City Council,PCC,Housing Revenue Account,Special Services,"Housing, Neighbourhood and Building Services",Premises-Related Expenditure,Energy costs,12-Dec-22,6690189,186.7,PUBLIC LIMITED COMPANY,SCOTTISH AND SOUTHERN ENERGY PLC,300000020481543
Portsmouth City Council,PCC,Housing Revenue Account,"Rents, Rates, Taxes and Other Charges","Housing, Neighbourhood and Building Services",Premises-Related Expenditure,Energy costs,12-Dec-22,6690189,577.2,PUBLIC LIMITED COMPANY,SCOTTISH AND SOUTHERN ENERGY PLC,300000020481543
Portsmouth City Council,PCC,Cultural and Related Services,Open Spaces,"Culture, Leisure & Regulatory Services",Premises-Related Expenditure,Energy costs,12-Dec-22,6690189,255.42,PUBLIC LIMITED COMPANY,SCOTTISH AND SOUTHERN ENERGY PLC,300000020481543
Portsmouth City Council,PCC,Housing Revenue Account,Special Services,"Housing, Neighbourhood and Building Services",Premises-Related Expenditure,Energy costs,12-Dec-22,6690189,261.62,PUBLIC LIMITED COMPANY,SCOTTISH AND SOUTHERN ENERGY PLC,300000020481543
Portsmouth City Council,PCC,Housing Revenue Account,Special Services,"Housing, Neighbourhood and Building Services",Premises-Related Expenditure,Energy costs,12-Dec-22,6690189,532.82,PUBLIC LIMITED COMPANY,SCOTTISH AND SOUTHERN ENERGY PLC,300000020481543
Portsmouth City Council,PCC,Housing Revenue Account,Special Services,"Housing, Neighbourhood and Building Services",Premises-Related Expenditure,Energy costs,12-Dec-22,6690189,223.95,PUBLIC LIMITED COMPANY,SCOTTISH AND SOUTHERN ENERGY PLC,300000020481543
Portsmouth City Council,PCC,Housing Revenue Account,Special Services,"Housing, Neighbourhood and Building Services",Premises-Related Expenditure,Energy costs,12-Dec-22,6690189,595.96,PUBLIC LIMITED COMPANY,SCOTTISH AND SOUTHERN ENERGY PLC,300000020481543
Portsmouth City Council,PCC,Other,Suspense and Capital Schemes,"Housing, Neighbourhood and Building Services",Premises-Related Expenditure,Energy costs,12-Dec-22,6690189,141.13,PUBLIC LIMITED COMPANY,SCOTTISH AND SOUTHERN ENERGY PLC,300000020481543
Portsmouth City Council,PCC,Housing Revenue Account,Special Services,"Housing, Neighbourhood and Building Services",Premises-Related Expenditure,Energy costs,12-Dec-22,6690189,223.95,PUBLIC LIMITED COMPANY,SCOTTISH AND SOUTHERN ENERGY PLC,300000020481543
Portsmouth City Council,PCC,Highways and Transport Services,"Environment, Safety and Routine Maintenance",Regeneration,Premises-Related Expenditure,Energy costs,12-Dec-22,6690189,69.09,PUBLIC LIMITED COMPANY,SCOTTISH AND SOUTHERN ENERGY PLC,300000020481543
Portsmouth City Council,PCC,Highways and Transport Services,"Environment, Safety and Routine Maintenance",Regeneration,Premises-Related Expenditure,Energy costs,12-Dec-22,6690189,38.51,PUBLIC LIMITED COMPANY,SCOTTISH AND SOUTHERN ENERGY PLC,300000020481543
Portsmouth City Council,PCC,Highways and Transport Services,"Environment, Safety and Routine Maintenance",Regeneration,Premises-Related Expenditure,Energy costs,12-Dec-22,6690189,85.24,PUBLIC LIMITED COMPANY,SCOTTISH AND SOUTHERN ENERGY PLC,300000020481543
Portsmouth City Council,PCC,Highways and Transport Services,"Environment, Safety and Routine Maintenance",Regeneration,Premises-Related Expenditure,Energy costs,12-Dec-22,6690189,235.52,PUBLIC LIMITED COMPANY,SCOTTISH AND SOUTHERN ENERGY PLC,300000020481543
Portsmouth City Council,PCC,Highways and Transport Services,"Environment, Safety and Routine Maintenance",Regeneration,Premises-Related Expenditure,Energy costs,12-Dec-22,6690189,469.44,PUBLIC LIMITED COMPANY,SCOTTISH AND SOUTHERN ENERGY PLC,300000020481543
Portsmouth City Council,PCC,Highways and Transport Services,"Environment, Safety and Routine Maintenance",Regeneration,Premises-Related Expenditure,Energy costs,12-Dec-22,6690189,181.58,PUBLIC LIMITED COMPANY,SCOTTISH AND SOUTHERN ENERGY PLC,300000020481543
Portsmouth City Council,PCC,Highways and Transport Services,"Environment, Safety and Routine Maintenance",Regeneration,Premises-Related Expenditure,Energy costs,12-Dec-22,6690189,126.49,PUBLIC LIMITED COMPANY,SCOTTISH AND SOUTHERN ENERGY PLC,300000020481543
Portsmouth City Council,PCC,Highways and Transport Services,"Environment, Safety and Routine Maintenance",Regeneration,Premises-Related Expenditure,Energy costs,12-Dec-22,6690189,53.08,PUBLIC LIMITED COMPANY,SCOTTISH AND SOUTHERN ENERGY PLC,300000020481543
Portsmouth City Council,PCC,Highways and Transport Services,"Environment, Safety and Routine Maintenance",Regeneration,Premises-Related Expenditure,Energy costs,12-Dec-22,6690189,143.22,PUBLIC LIMITED COMPANY,SCOTTISH AND SOUTHERN ENERGY PLC,300000020481543
Portsmouth City Council,PCC,Highways and Transport Services,"Environment, Safety and Routine Maintenance",Regeneration,Premises-Related Expenditure,Energy costs,12-Dec-22,6690189,81.92,PUBLIC LIMITED COMPANY,SCOTTISH AND SOUTHERN ENERGY PLC,300000020481543
Portsmouth City Council,PCC,Highways and Transport Services,"Environment, Safety and Routine Maintenance",Regeneration,Premises-Related Expenditure,Energy costs,12-Dec-22,6690189,85.24,PUBLIC LIMITED COMPANY,SCOTTISH AND SOUTHERN ENERGY PLC,300000020481543
Portsmouth City Council,PCC,Highways and Transport Services,"Environment, Safety and Routine Maintenance",Regeneration,Premises-Related Expenditure,Energy costs,12-Dec-22,6690189,113.22,PUBLIC LIMITED COMPANY,SCOTTISH AND SOUTHERN ENERGY PLC,300000020481543
Portsmouth City Council,PCC,Highways and Transport Services,"Environment, Safety and Routine Maintenance",Regeneration,Premises-Related Expenditure,Energy costs,12-Dec-22,6690189,139.75,PUBLIC LIMITED COMPANY,SCOTTISH AND SOUTHERN ENERGY PLC,300000020481543
Portsmouth City Council,PCC,Highways and Transport Services,"Environment, Safety and Routine Maintenance",Regeneration,Premises-Related Expenditure,Energy costs,12-Dec-22,6690189,121.29,PUBLIC LIMITED COMPANY,SCOTTISH AND SOUTHERN ENERGY PLC,300000020481543
Portsmouth City Council,PCC,Highways and Transport Services,"Environment, Safety and Routine Maintenance",Regeneration,Premises-Related Expenditure,Energy costs,12-Dec-22,6690189,105.14,PUBLIC LIMITED COMPANY,SCOTTISH AND SOUTHERN ENERGY PLC,300000020481543
Portsmouth City Council,PCC,Highways and Transport Services,"Environment, Safety and Routine Maintenance",Regeneration,Premises-Related Expenditure,Energy costs,12-Dec-22,6690189,37.36,PUBLIC LIMITED COMPANY,SCOTTISH AND SOUTHERN ENERGY PLC,300000020481543
Portsmouth City Council,PCC,Highways and Transport Services,"Environment, Safety and Routine Maintenance",Regeneration,Premises-Related Expenditure,Energy costs,12-Dec-22,6690189,67.07,PUBLIC LIMITED COMPANY,SCOTTISH AND SOUTHERN ENERGY PLC,300000020481543
Portsmouth City Council,PCC,Highways and Transport Services,"Environment, Safety and Routine Maintenance",Regeneration,Premises-Related Expenditure,Energy costs,12-Dec-22,6690189,96.63,PUBLIC LIMITED COMPANY,SCOTTISH AND SOUTHERN ENERGY PLC,300000020481543
Portsmouth City Council,PCC,Highways and Transport Services,"Environment, Safety and Routine Maintenance",Regeneration,Premises-Related Expenditure,Energy costs,12-Dec-22,6690189,233.06,PUBLIC LIMITED COMPANY,SCOTTISH AND SOUTHERN ENERGY PLC,300000020481543
Portsmouth City Council,PCC,Highways and Transport Services,"Environment, Safety and Routine Maintenance",Regeneration,Premises-Related Expenditure,Energy costs,12-Dec-22,6690189,164.85,PUBLIC LIMITED COMPANY,SCOTTISH AND SOUTHERN ENERGY PLC,300000020481543
Portsmouth City Council,PCC,Highways and Transport Services,"Environment, Safety and Routine Maintenance",Regeneration,Premises-Related Expenditure,Energy costs,12-Dec-22,6690189,85.67,PUBLIC LIMITED COMPANY,SCOTTISH AND SOUTHERN ENERGY PLC,300000020481543
Portsmouth City Council,PCC,Highways and Transport Services,"Environment, Safety and Routine Maintenance",Regeneration,Premises-Related Expenditure,Energy costs,12-Dec-22,6690189,145.67,PUBLIC LIMITED COMPANY,SCOTTISH AND SOUTHERN ENERGY PLC,300000020481543
Portsmouth City Council,PCC,Highways and Transport Services,"Environment, Safety and Routine Maintenance",Regeneration,Premises-Related Expenditure,Energy costs,12-Dec-22,6690189,614.55,PUBLIC LIMITED COMPANY,SCOTTISH AND SOUTHERN ENERGY PLC,300000020481543
Portsmouth City Council,PCC,Highways and Transport Services,"Environment, Safety and Routine Maintenance",Regeneration,Premises-Related Expenditure,Energy costs,12-Dec-22,6690189,159.37,PUBLIC LIMITED COMPANY,SCOTTISH AND SOUTHERN ENERGY PLC,300000020481543
Portsmouth City Council,PCC,Highways and Transport Services,"Environment, Safety and Routine Maintenance",Regeneration,Premises-Related Expenditure,Energy costs,12-Dec-22,6690189,64.47,PUBLIC LIMITED COMPANY,SCOTTISH AND SOUTHERN ENERGY PLC,300000020481543
Portsmouth City Council,PCC,Highways and Transport Services,"Environment, Safety and Routine Maintenance",Regeneration,Premises-Related Expenditure,Energy costs,12-Dec-22,6690189,500.42,PUBLIC LIMITED COMPANY,SCOTTISH AND SOUTHERN ENERGY PLC,300000020481543
Portsmouth City Council,PCC,Highways and Transport Services,"Environment, Safety and Routine Maintenance",Regeneration,Premises-Related Expenditure,Energy costs,12-Dec-22,6690189,160.81,PUBLIC LIMITED COMPANY,SCOTTISH AND SOUTHERN ENERGY PLC,300000020481543
Portsmouth City Council,PCC,Highways and Transport Services,"Environment, Safety and Routine Maintenance",Regeneration,Premises-Related Expenditure,Energy costs,12-Dec-22,6690189,55.96,PUBLIC LIMITED COMPANY,SCOTTISH AND SOUTHERN ENERGY PLC,300000020481543
Portsmouth City Council,PCC,Highways and Transport Services,"Environment, Safety and Routine Maintenance",Regeneration,Premises-Related Expenditure,Energy costs,12-Dec-22,6690189,46.44,PUBLIC LIMITED COMPANY,SCOTTISH AND SOUTHERN ENERGY PLC,300000020481543
Portsmouth City Council,PCC,Highways and Transport Services,"Environment, Safety and Routine Maintenance",Regeneration,Premises-Related Expenditure,Energy costs,12-Dec-22,6690189,130.96,PUBLIC LIMITED COMPANY,SCOTTISH AND SOUTHERN ENERGY PLC,300000020481543
Portsmouth City Council,PCC,Highways and Transport Services,"Environment, Safety and Routine Maintenance",Regeneration,Premises-Related Expenditure,Energy costs,12-Dec-22,6690189,145.38,PUBLIC LIMITED COMPANY,SCOTTISH AND SOUTHERN ENERGY PLC,300000020481543
Portsmouth City Council,PCC,Highways and Transport Services,"Environment, Safety and Routine Maintenance",Regeneration,Premises-Related Expenditure,Energy costs,12-Dec-22,6690189,41.54,PUBLIC LIMITED COMPANY,SCOTTISH AND SOUTHERN ENERGY PLC,300000020481543
Portsmouth City Council,PCC,Highways and Transport Services,"Environment, Safety and Routine Maintenance",Regeneration,Premises-Related Expenditure,Energy costs,12-Dec-22,6690189,161.53,PUBLIC LIMITED COMPANY,SCOTTISH AND SOUTHERN ENERGY PLC,300000020481543
Portsmouth City Council,PCC,Highways and Transport Services,"Environment, Safety and Routine Maintenance",Regeneration,Premises-Related Expenditure,Energy costs,12-Dec-22,6690189,138.02,PUBLIC LIMITED COMPANY,SCOTTISH AND SOUTHERN ENERGY PLC,300000020481543
Portsmouth City Council,PCC,Highways and Transport Services,"Environment, Safety and Routine Maintenance",Regeneration,Premises-Related Expenditure,Energy costs,12-Dec-22,6690189,121.29,PUBLIC LIMITED COMPANY,SCOTTISH AND SOUTHERN ENERGY PLC,300000020481543
Portsmouth City Council,PCC,Highways and Transport Services,"Environment, Safety and Routine Maintenance",Regeneration,Premises-Related Expenditure,Energy costs,12-Dec-22,6690189,228.31,PUBLIC LIMITED COMPANY,SCOTTISH AND SOUTHERN ENERGY PLC,300000020481543
Portsmouth City Council,PCC,Highways and Transport Services,"Environment, Safety and Routine Maintenance",Regeneration,Premises-Related Expenditure,Energy costs,12-Dec-22,6690189,125.91,PUBLIC LIMITED COMPANY,SCOTTISH AND SOUTHERN ENERGY PLC,300000020481543
Portsmouth City Council,PCC,Highways and Transport Services,"Environment, Safety and Routine Maintenance",Regeneration,Premises-Related Expenditure,Energy costs,12-Dec-22,6690189,92.45,PUBLIC LIMITED COMPANY,SCOTTISH AND SOUTHERN ENERGY PLC,300000020481543
Portsmouth City Council,PCC,Highways and Transport Services,"Environment, Safety and Routine Maintenance",Regeneration,Premises-Related Expenditure,Energy costs,12-Dec-22,6690189,151.29,PUBLIC LIMITED COMPANY,SCOTTISH AND SOUTHERN ENERGY PLC,300000020481543
Portsmouth City Council,PCC,Highways and Transport Services,"Environment, Safety and Routine Maintenance",Regeneration,Premises-Related Expenditure,Energy costs,12-Dec-22,6690189,51.49,PUBLIC LIMITED COMPANY,SCOTTISH AND SOUTHERN ENERGY PLC,300000020481543
Portsmouth City Council,PCC,Highways and Transport Services,"Environment, Safety and Routine Maintenance",Regeneration,Premises-Related Expenditure,Energy costs,12-Dec-22,6690189,213.16,PUBLIC LIMITED COMPANY,SCOTTISH AND SOUTHERN ENERGY PLC,300000020481543
Portsmouth City Council,PCC,Highways and Transport Services,"Environment, Safety and Routine Maintenance",Regeneration,Premises-Related Expenditure,Energy costs,12-Dec-22,6690189,196.14,PUBLIC LIMITED COMPANY,SCOTTISH AND SOUTHERN ENERGY PLC,300000020481543
Portsmouth City Council,PCC,Highways and Transport Services,"Environment, Safety and Routine Maintenance",Regeneration,Premises-Related Expenditure,Energy costs,12-Dec-22,6690189,79.04,PUBLIC LIMITED COMPANY,SCOTTISH AND SOUTHERN ENERGY PLC,300000020481543
Portsmouth City Council,PCC,Highways and Transport Services,"Environment, Safety and Routine Maintenance",Regeneration,Premises-Related Expenditure,Energy costs,12-Dec-22,6690189,228.59,PUBLIC LIMITED COMPANY,SCOTTISH AND SOUTHERN ENERGY PLC,300000020481543
Portsmouth City Council,PCC,Highways and Transport Services,"Environment, Safety and Routine Maintenance",Regeneration,Premises-Related Expenditure,Energy costs,12-Dec-22,6690189,63.75,PUBLIC LIMITED COMPANY,SCOTTISH AND SOUTHERN ENERGY PLC,300000020481543
Portsmouth City Council,PCC,Highways and Transport Services,"Environment, Safety and Routine Maintenance",Regeneration,Premises-Related Expenditure,Energy costs,12-Dec-22,6690189,140.48,PUBLIC LIMITED COMPANY,SCOTTISH AND SOUTHERN ENERGY PLC,300000020481543
Portsmouth City Council,PCC,Highways and Transport Services,"Environment, Safety and Routine Maintenance",Regeneration,Premises-Related Expenditure,Energy costs,12-Dec-22,6690189,45.87,PUBLIC LIMITED COMPANY,SCOTTISH AND SOUTHERN ENERGY PLC,300000020481543
Portsmouth City Council,PCC,Highways and Transport Services,"Environment, Safety and Routine Maintenance",Regeneration,Premises-Related Expenditure,Energy costs,12-Dec-22,6690189,43.99,PUBLIC LIMITED COMPANY,SCOTTISH AND SOUTHERN ENERGY PLC,300000020481543
Portsmouth City Council,PCC,Highways and Transport Services,"Environment, Safety and Routine Maintenance",Regeneration,Premises-Related Expenditure,Energy costs,12-Dec-22,6690189,123.17,PUBLIC LIMITED COMPANY,SCOTTISH AND SOUTHERN ENERGY PLC,300000020481543
Portsmouth City Council,PCC,Highways and Transport Services,"Environment, Safety and Routine Maintenance",Regeneration,Premises-Related Expenditure,Energy costs,12-Dec-22,6690189,160.67,PUBLIC LIMITED COMPANY,SCOTTISH AND SOUTHERN ENERGY PLC,300000020481543
Portsmouth City Council,PCC,Highways and Transport Services,"Environment, Safety and Routine Maintenance",Regeneration,Premises-Related Expenditure,Energy costs,12-Dec-22,6690189,264.5,PUBLIC LIMITED COMPANY,SCOTTISH AND SOUTHERN ENERGY PLC,300000020481543
Portsmouth City Council,PCC,Highways and Transport Services,"Environment, Safety and Routine Maintenance",Regeneration,Premises-Related Expenditure,Energy costs,12-Dec-22,6690189,129.95,PUBLIC LIMITED COMPANY,SCOTTISH AND SOUTHERN ENERGY PLC,300000020481543
Portsmouth City Council,PCC,Highways and Transport Services,"Environment, Safety and Routine Maintenance",Regeneration,Premises-Related Expenditure,Energy costs,12-Dec-22,6690189,65.48,PUBLIC LIMITED COMPANY,SCOTTISH AND SOUTHERN ENERGY PLC,300000020481543
Portsmouth City Council,PCC,Highways and Transport Services,"Environment, Safety and Routine Maintenance",Regeneration,Premises-Related Expenditure,Energy costs,12-Dec-22,6690189,78.46,PUBLIC LIMITED COMPANY,SCOTTISH AND SOUTHERN ENERGY PLC,300000020481543
Portsmouth City Council,PCC,Highways and Transport Services,"Environment, Safety and Routine Maintenance",Regeneration,Premises-Related Expenditure,Energy costs,12-Dec-22,6690189,88.99,PUBLIC LIMITED COMPANY,SCOTTISH AND SOUTHERN ENERGY PLC,300000020481543
Portsmouth City Council,PCC,Highways and Transport Services,"Environment, Safety and Routine Maintenance",Regeneration,Premises-Related Expenditure,Energy costs,12-Dec-22,6690189,155.19,PUBLIC LIMITED COMPANY,SCOTTISH AND SOUTHERN ENERGY PLC,300000020481543
Portsmouth City Council,PCC,Highways and Transport Services,"Environment, Safety and Routine Maintenance",Regeneration,Premises-Related Expenditure,Energy costs,12-Dec-22,6690189,540.24,PUBLIC LIMITED COMPANY,SCOTTISH AND SOUTHERN ENERGY PLC,300000020481543
Portsmouth City Council,PCC,Highways and Transport Services,"Environment, Safety and Routine Maintenance",Regeneration,Premises-Related Expenditure,Energy costs,12-Dec-22,6690189,79.61,PUBLIC LIMITED COMPANY,SCOTTISH AND SOUTHERN ENERGY PLC,300000020481543
Portsmouth City Council,PCC,Highways and Transport Services,"Environment, Safety and Routine Maintenance",Regeneration,Premises-Related Expenditure,Energy costs,12-Dec-22,6690189,118.27,PUBLIC LIMITED COMPANY,SCOTTISH AND SOUTHERN ENERGY PLC,300000020481543
Portsmouth City Council,PCC,Highways and Transport Services,"Environment, Safety and Routine Maintenance",Regeneration,Premises-Related Expenditure,Energy costs,12-Dec-22,6690189,417.38,PUBLIC LIMITED COMPANY,SCOTTISH AND SOUTHERN ENERGY PLC,300000020481543
Portsmouth City Council,PCC,Highways and Transport Services,"Environment, Safety and Routine Maintenance",Regeneration,Premises-Related Expenditure,Energy costs,12-Dec-22,6690189,63.03,PUBLIC LIMITED COMPANY,SCOTTISH AND SOUTHERN ENERGY PLC,300000020481543
Portsmouth City Council,PCC,Highways and Transport Services,"Environment, Safety and Routine Maintenance",Regeneration,Premises-Related Expenditure,Energy costs,12-Dec-22,6690189,127.06,PUBLIC LIMITED COMPANY,SCOTTISH AND SOUTHERN ENERGY PLC,300000020481543
Portsmouth City Council,PCC,Highways and Transport Services,"Environment, Safety and Routine Maintenance",Regeneration,Premises-Related Expenditure,Energy costs,12-Dec-22,6690189,216.62,PUBLIC LIMITED COMPANY,SCOTTISH AND SOUTHERN ENERGY PLC,300000020481543
Portsmouth City Council,PCC,Highways and Transport Services,"Environment, Safety and Routine Maintenance",Regeneration,Premises-Related Expenditure,Energy costs,12-Dec-22,6690189,49.9,PUBLIC LIMITED COMPANY,SCOTTISH AND SOUTHERN ENERGY PLC,300000020481543
Portsmouth City Council,PCC,Highways and Transport Services,"Environment, Safety and Routine Maintenance",Regeneration,Premises-Related Expenditure,Energy costs,12-Dec-22,6690189,199.17,PUBLIC LIMITED COMPANY,SCOTTISH AND SOUTHERN ENERGY PLC,300000020481543
Portsmouth City Council,PCC,Highways and Transport Services,"Environment, Safety and Routine Maintenance",Regeneration,Premises-Related Expenditure,Energy costs,12-Dec-22,6690189,236.38,PUBLIC LIMITED COMPANY,SCOTTISH AND SOUTHERN ENERGY PLC,300000020481543
Portsmouth City Council,PCC,Highways and Transport Services,"Environment, Safety and Routine Maintenance",Regeneration,Premises-Related Expenditure,Energy costs,12-Dec-22,6690189,257.44,PUBLIC LIMITED COMPANY,SCOTTISH AND SOUTHERN ENERGY PLC,300000020481543
Portsmouth City Council,PCC,Highways and Transport Services,"Environment, Safety and Routine Maintenance",Regeneration,Premises-Related Expenditure,Energy costs,12-Dec-22,6690189,176.82,PUBLIC LIMITED COMPANY,SCOTTISH AND SOUTHERN ENERGY PLC,300000020481543
Portsmouth City Council,PCC,Highways and Transport Services,"Environment, Safety and Routine Maintenance",Regeneration,Premises-Related Expenditure,Energy costs,12-Dec-22,6690189,116.25,PUBLIC LIMITED COMPANY,SCOTTISH AND SOUTHERN ENERGY PLC,300000020481543
Portsmouth City Council,PCC,Highways and Transport Services,"Environment, Safety and Routine Maintenance",Regeneration,Premises-Related Expenditure,Energy costs,12-Dec-22,6690189,82.79,PUBLIC LIMITED COMPANY,SCOTTISH AND SOUTHERN ENERGY PLC,300000020481543
Portsmouth City Council,PCC,Highways and Transport Services,"Environment, Safety and Routine Maintenance",Regeneration,Premises-Related Expenditure,Energy costs,12-Dec-22,6690189,153.6,PUBLIC LIMITED COMPANY,SCOTTISH AND SOUTHERN ENERGY PLC,300000020481543
Portsmouth City Council,PCC,Highways and Transport Services,"Environment, Safety and Routine Maintenance",Regeneration,Premises-Related Expenditure,Energy costs,12-Dec-22,6690189,45.72,PUBLIC LIMITED COMPANY,SCOTTISH AND SOUTHERN ENERGY PLC,300000020481543
Portsmouth City Council,PCC,Highways and Transport Services,"Environment, Safety and Routine Maintenance",Regeneration,Premises-Related Expenditure,Energy costs,12-Dec-22,6690189,144.95,PUBLIC LIMITED COMPANY,SCOTTISH AND SOUTHERN ENERGY PLC,300000020481543
Portsmouth City Council,PCC,Highways and Transport Services,"Environment, Safety and Routine Maintenance",Regeneration,Premises-Related Expenditure,Energy costs,12-Dec-22,6690189,65.48,PUBLIC LIMITED COMPANY,SCOTTISH AND SOUTHERN ENERGY PLC,300000020481543
Portsmouth City Council,PCC,Highways and Transport Services,"Environment, Safety and Routine Maintenance",Regeneration,Premises-Related Expenditure,Energy costs,12-Dec-22,6690189,77.16,PUBLIC LIMITED COMPANY,SCOTTISH AND SOUTHERN ENERGY PLC,300000020481543
Portsmouth City Council,PCC,Highways and Transport Services,"Environment, Safety and Routine Maintenance",Regeneration,Premises-Related Expenditure,Energy costs,12-Dec-22,6690189,55.1,PUBLIC LIMITED COMPANY,SCOTTISH AND SOUTHERN ENERGY PLC,300000020481543
Portsmouth City Council,PCC,Highways and Transport Services,"Environment, Safety and Routine Maintenance",Regeneration,Premises-Related Expenditure,Energy costs,12-Dec-22,6690189,91.44,PUBLIC LIMITED COMPANY,SCOTTISH AND SOUTHERN ENERGY PLC,300000020481543
Portsmouth City Council,PCC,Highways and Transport Services,"Environment, Safety and Routine Maintenance",Regeneration,Premises-Related Expenditure,Energy costs,12-Dec-22,6690189,77.02,PUBLIC LIMITED COMPANY,SCOTTISH AND SOUTHERN ENERGY PLC,300000020481543
Portsmouth City Council,PCC,Highways and Transport Services,"Environment, Safety and Routine Maintenance",Regeneration,Premises-Related Expenditure,Energy costs,12-Dec-22,6690189,227.58,PUBLIC LIMITED COMPANY,SCOTTISH AND SOUTHERN ENERGY PLC,300000020481543
Portsmouth City Council,PCC,Highways and Transport Services,"Environment, Safety and Routine Maintenance",Regeneration,Premises-Related Expenditure,Energy costs,12-Dec-22,6690189,113.79,PUBLIC LIMITED COMPANY,SCOTTISH AND SOUTHERN ENERGY PLC,300000020481543
Portsmouth City Council,PCC,Highways and Transport Services,"Environment, Safety and Routine Maintenance",Regeneration,Premises-Related Expenditure,Energy costs,12-Dec-22,6690189,327.1,PUBLIC LIMITED COMPANY,SCOTTISH AND SOUTHERN ENERGY PLC,300000020481543
Portsmouth City Council,PCC,Highways and Transport Services,"Environment, Safety and Routine Maintenance",Regeneration,Premises-Related Expenditure,Energy costs,12-Dec-22,6690189,86.1,PUBLIC LIMITED COMPANY,SCOTTISH AND SOUTHERN ENERGY PLC,300000020481543
Portsmouth City Council,PCC,Highways and Transport Services,"Environment, Safety and Routine Maintenance",Regeneration,Premises-Related Expenditure,Energy costs,12-Dec-22,6690189,195.28,PUBLIC LIMITED COMPANY,SCOTTISH AND SOUTHERN ENERGY PLC,300000020481543
Portsmouth City Council,PCC,Highways and Transport Services,"Environment, Safety and Routine Maintenance",Regeneration,Premises-Related Expenditure,Energy costs,12-Dec-22,6690189,133.84,PUBLIC LIMITED COMPANY,SCOTTISH AND SOUTHERN ENERGY PLC,300000020481543
Portsmouth City Council,PCC,Highways and Transport Services,"Environment, Safety and Routine Maintenance",Regeneration,Premises-Related Expenditure,Energy costs,12-Dec-22,6690189,63.03,PUBLIC LIMITED COMPANY,SCOTTISH AND SOUTHERN ENERGY PLC,300000020481543
Portsmouth City Council,PCC,Highways and Transport Services,"Environment, Safety and Routine Maintenance",Regeneration,Premises-Related Expenditure,Energy costs,12-Dec-22,6690189,119.71,PUBLIC LIMITED COMPANY,SCOTTISH AND SOUTHERN ENERGY PLC,300000020481543
Portsmouth City Council,PCC,Highways and Transport Services,"Environment, Safety and Routine Maintenance",Regeneration,Premises-Related Expenditure,Energy costs,12-Dec-22,6690189,164.85,PUBLIC LIMITED COMPANY,SCOTTISH AND SOUTHERN ENERGY PLC,300000020481543
Portsmouth City Council,PCC,Highways and Transport Services,"Environment, Safety and Routine Maintenance",Regeneration,Premises-Related Expenditure,Energy costs,12-Dec-22,6690189,141.77,PUBLIC LIMITED COMPANY,SCOTTISH AND SOUTHERN ENERGY PLC,300000020481543
Portsmouth City Council,PCC,Highways and Transport Services,"Environment, Safety and Routine Maintenance",Regeneration,Premises-Related Expenditure,Energy costs,12-Dec-22,6690189,65.48,PUBLIC LIMITED COMPANY,SCOTTISH AND SOUTHERN ENERGY PLC,300000020481543
Portsmouth City Council,PCC,Highways and Transport Services,"Environment, Safety and Routine Maintenance",Regeneration,Premises-Related Expenditure,Energy costs,12-Dec-22,6690189,107.02,PUBLIC LIMITED COMPANY,SCOTTISH AND SOUTHERN ENERGY PLC,300000020481543
Portsmouth City Council,PCC,Highways and Transport Services,"Environment, Safety and Routine Maintenance",Regeneration,Premises-Related Expenditure,Energy costs,12-Dec-22,6690189,114.95,PUBLIC LIMITED COMPANY,SCOTTISH AND SOUTHERN ENERGY PLC,300000020481543
Portsmouth City Council,PCC,Highways and Transport Services,"Environment, Safety and Routine Maintenance",Regeneration,Premises-Related Expenditure,Energy costs,12-Dec-22,6690189,57.4,PUBLIC LIMITED COMPANY,SCOTTISH AND SOUTHERN ENERGY PLC,300000020481543
Portsmouth City Council,PCC,Highways and Transport Services,"Environment, Safety and Routine Maintenance",Regeneration,Premises-Related Expenditure,Energy costs,12-Dec-22,6690189,46.3,PUBLIC LIMITED COMPANY,SCOTTISH AND SOUTHERN ENERGY PLC,300000020481543
Portsmouth City Council,PCC,Highways and Transport Services,"Environment, Safety and Routine Maintenance",Regeneration,Premises-Related Expenditure,Energy costs,12-Dec-22,6690189,175.81,PUBLIC LIMITED COMPANY,SCOTTISH AND SOUTHERN ENERGY PLC,300000020481543
Portsmouth City Council,PCC,Highways and Transport Services,"Environment, Safety and Routine Maintenance",Regeneration,Premises-Related Expenditure,Energy costs,12-Dec-22,6690189,758.78,PUBLIC LIMITED COMPANY,SCOTTISH AND SOUTHERN ENERGY PLC,300000020481543
Portsmouth City Council,PCC,Housing Revenue Account,Special Services,"Housing, Neighbourhood and Building Services",Premises-Related Expenditure,Energy costs,12-Dec-22,6690189,"1,314.57",PUBLIC LIMITED COMPANY,SCOTTISH AND SOUTHERN ENERGY PLC,300000020481543
Portsmouth City Council,PCC,Highways and Transport Services,"Environment, Safety and Routine Maintenance",Regeneration,Premises-Related Expenditure,Energy costs,12-Dec-22,6690189,758.62,PUBLIC LIMITED COMPANY,SCOTTISH AND SOUTHERN ENERGY PLC,300000020481543
Portsmouth City Council,PCC,Housing Revenue Account,Special Services,"Housing, Neighbourhood and Building Services",Premises-Related Expenditure,Energy costs,12-Dec-22,6690189,81.63,PUBLIC LIMITED COMPANY,SCOTTISH AND SOUTHERN ENERGY PLC,300000020481543
Portsmouth City Council,PCC,Housing Revenue Account,Special Services,"Housing, Neighbourhood and Building Services",Premises-Related Expenditure,Energy costs,12-Dec-22,6690189,"1,315.58",PUBLIC LIMITED COMPANY,SCOTTISH AND SOUTHERN ENERGY PLC,300000020481543
Portsmouth City Council,PCC,Housing Revenue Account,Special Services,"Housing, Neighbourhood and Building Services",Premises-Related Expenditure,Energy costs,12-Dec-22,6690189,486.89,PUBLIC LIMITED COMPANY,SCOTTISH AND SOUTHERN ENERGY PLC,300000020481543
Portsmouth City Council,PCC,Housing Revenue Account,Special Services,"Housing, Neighbourhood and Building Services",Premises-Related Expenditure,Energy costs,12-Dec-22,6690189,"1,314.57",PUBLIC LIMITED COMPANY,SCOTTISH AND SOUTHERN ENERGY PLC,300000020481543
Portsmouth City Council,PCC,Housing Revenue Account,Special Services,"Housing, Neighbourhood and Building Services",Premises-Related Expenditure,Energy costs,12-Dec-22,6690189,520.93,PUBLIC LIMITED COMPANY,SCOTTISH AND SOUTHERN ENERGY PLC,300000020481543
Portsmouth City Council,PCC,Cultural and Related Services,Recreation and Sport,"Culture, Leisure & Regulatory Services",Premises-Related Expenditure,Energy costs,12-Dec-22,6690189,466.85,PUBLIC LIMITED COMPANY,SCOTTISH AND SOUTHERN ENERGY PLC,300000020481543
Portsmouth City Council,PCC,Highways and Transport Services,"Environment, Safety and Routine Maintenance",Regeneration,Premises-Related Expenditure,Energy costs,12-Dec-22,6690189,65.91,PUBLIC LIMITED COMPANY,SCOTTISH AND SOUTHERN ENERGY PLC,300000020481543
Portsmouth City Council,PCC,Cultural and Related Services,Open Spaces,"Culture, Leisure & Regulatory Services",Premises-Related Expenditure,Energy costs,12-Dec-22,6690189,785.67,PUBLIC LIMITED COMPANY,SCOTTISH AND SOUTHERN ENERGY PLC,300000020481543
Portsmouth City Council,PCC,Environmental and Regulatory Services,Regulatory Services,"Culture, Leisure & Regulatory Services",Premises-Related Expenditure,Energy costs,12-Dec-22,6690189,69.37,PUBLIC LIMITED COMPANY,SCOTTISH AND SOUTHERN ENERGY PLC,300000020481543
Portsmouth City Council,PCC,Housing Revenue Account,Special Services,"Housing, Neighbourhood and Building Services",Premises-Related Expenditure,Energy costs,12-Dec-22,6690189,-280.68,PUBLIC LIMITED COMPANY,SCOTTISH AND SOUTHERN ENERGY PLC,300000020481543
Portsmouth City Council,PCC,Housing Revenue Account,Special Services,"Housing, Neighbourhood and Building Services",Premises-Related Expenditure,Energy costs,12-Dec-22,6690189,183.73,PUBLIC LIMITED COMPANY,SCOTTISH AND SOUTHERN ENERGY PLC,300000020481543
Portsmouth City Council,PCC,Costs below Net Cost of Services,Trading,Regeneration,Premises-Related Expenditure,Energy costs,12-Dec-22,6690189,68.18,PUBLIC LIMITED COMPANY,SCOTTISH AND SOUTHERN ENERGY PLC,300000020481543
Portsmouth City Council,PCC,Housing Revenue Account,Special Services,"Housing, Neighbourhood and Building Services",Premises-Related Expenditure,Energy costs,12-Dec-22,6690189,223.95,PUBLIC LIMITED COMPANY,SCOTTISH AND SOUTHERN ENERGY PLC,300000020481543
Portsmouth City Council,PCC,Costs below Net Cost of Services,Trading,Regeneration,Premises-Related Expenditure,Energy costs,12-Dec-22,6690189,"1,225.63",PUBLIC LIMITED COMPANY,SCOTTISH AND SOUTHERN ENERGY PLC,300000020481543
Portsmouth City Council,PCC,Housing Revenue Account,Special Services,"Housing, Neighbourhood and Building Services",Premises-Related Expenditure,Energy costs,12-Dec-22,6690189,839.08,PUBLIC LIMITED COMPANY,SCOTTISH AND SOUTHERN ENERGY PLC,300000020481543
Portsmouth City Council,PCC,Cultural and Related Services,Recreation and Sport,"Culture, Leisure & Regulatory Services",Premises-Related Expenditure,Energy costs,12-Dec-22,6690189,645.1,PUBLIC LIMITED COMPANY,SCOTTISH AND SOUTHERN ENERGY PLC,300000020481543
Portsmouth City Council,PCC,Children's and Education Services,Other Children and Family Services,Children's Services and Education,Premises-Related Expenditure,Energy costs,12-Dec-22,6690189,"1,720.39",PUBLIC LIMITED COMPANY,SCOTTISH AND SOUTHERN ENERGY PLC,300000020481543
Portsmouth City Council,PCC,Housing Revenue Account,Repairs and Maintenance,"Housing, Neighbourhood and Building Services",Premises-Related Expenditure,Energy costs,12-Dec-22,6690189,907.86,PUBLIC LIMITED COMPANY,SCOTTISH AND SOUTHERN ENERGY PLC,300000020481543
Portsmouth City Council,PCC,Housing Revenue Account,Special Services,"Housing, Neighbourhood and Building Services",Premises-Related Expenditure,Water Services,12-Dec-22,6690189,213.08,PUBLIC LIMITED COMPANY,SCOTTISH AND SOUTHERN ENERGY PLC,300000020481543
Portsmouth City Council,PCC,Housing Revenue Account,Special Services,"Housing, Neighbourhood and Building Services",Premises-Related Expenditure,Energy costs,12-Dec-22,6690189,223.95,PUBLIC LIMITED COMPANY,SCOTTISH AND SOUTHERN ENERGY PLC,300000020481543
Portsmouth City Council,PCC,Housing Revenue Account,Special Services,"Housing, Neighbourhood and Building Services",Premises-Related Expenditure,Energy costs,12-Dec-22,6690189,42.41,PUBLIC LIMITED COMPANY,SCOTTISH AND SOUTHERN ENERGY PLC,300000020481543
Portsmouth City Council,PCC,Cultural and Related Services,Culture and Heritage,"Culture, Leisure & Regulatory Services",Premises-Related Expenditure,Energy costs,12-Dec-22,6690189,"2,256.38",PUBLIC LIMITED COMPANY,SCOTTISH AND SOUTHERN ENERGY PLC,300000020481543
Portsmouth City Council,PCC,Highways and Transport Services,"Environment, Safety and Routine Maintenance",Regeneration,Premises-Related Expenditure,Energy costs,12-Dec-22,6690189,"1,384.43",PUBLIC LIMITED COMPANY,SCOTTISH AND SOUTHERN ENERGY PLC,300000020481543
Portsmouth City Council,PCC,Housing Revenue Account,Special Services,"Housing, Neighbourhood and Building Services",Premises-Related Expenditure,Energy costs,12-Dec-22,6690189,"1,314.57",PUBLIC LIMITED COMPANY,SCOTTISH AND SOUTHERN ENERGY PLC,300000020481543
Portsmouth City Council,PCC,Housing Revenue Account,Special Services,"Housing, Neighbourhood and Building Services",Premises-Related Expenditure,Energy costs,12-Dec-22,6690189,380.31,PUBLIC LIMITED COMPANY,SCOTTISH AND SOUTHERN ENERGY PLC,300000020481543
Portsmouth City Council,PCC,Children's and Education Services,Primary Schools,Children's Services and Education,Premises-Related Expenditure,Energy costs,12-Dec-22,6690189,-509.84,PUBLIC LIMITED COMPANY,SCOTTISH AND SOUTHERN ENERGY PLC,300000020481543
Portsmouth City Council,PCC,Children's and Education Services,Primary Schools,Children's Services and Education,Premises-Related Expenditure,Energy costs,12-Dec-22,6690189,614.71,PUBLIC LIMITED COMPANY,SCOTTISH AND SOUTHERN ENERGY PLC,300000020481543
Portsmouth City Council,PCC,Housing Revenue Account,Special Services,"Housing, Neighbourhood and Building Services",Premises-Related Expenditure,Energy costs,12-Dec-22,6690189,863.31,PUBLIC LIMITED COMPANY,SCOTTISH AND SOUTHERN ENERGY PLC,300000020481543
Portsmouth City Council,PCC,Other,Suspense and Capital Schemes,Portsmouth International Port,Premises-Related Expenditure,Energy costs,12-Dec-22,6690189,-67.99,PUBLIC LIMITED COMPANY,SCOTTISH AND SOUTHERN ENERGY PLC,300000020481543
Portsmouth City Council,PCC,Other,Suspense and Capital Schemes,Portsmouth International Port,Premises-Related Expenditure,Energy costs,12-Dec-22,6690189,193.18,PUBLIC LIMITED COMPANY,SCOTTISH AND SOUTHERN ENERGY PLC,300000020481543
Portsmouth City Council,PCC,Housing Revenue Account,Special Services,"Housing, Neighbourhood and Building Services",Premises-Related Expenditure,Energy costs,12-Dec-22,6690189,"1,615.85",PUBLIC LIMITED COMPANY,SCOTTISH AND SOUTHERN ENERGY PLC,300000020481543
Portsmouth City Council,PCC,Housing Revenue Account,Special Services,"Housing, Neighbourhood and Building Services",Premises-Related Expenditure,Energy costs,12-Dec-22,6690189,55.5,PUBLIC LIMITED COMPANY,SCOTTISH AND SOUTHERN ENERGY PLC,300000020481543
Portsmouth City Council,PCC,Housing Revenue Account,"Rents, Rates, Taxes and Other Charges","Housing, Neighbourhood and Building Services",Premises-Related Expenditure,Energy costs,12-Dec-22,6690189,242.71,PUBLIC LIMITED COMPANY,SCOTTISH AND SOUTHERN ENERGY PLC,300000020481543
Portsmouth City Council,PCC,Children's and Education Services,Primary Schools,Children's Services and Education,Premises-Related Expenditure,Energy costs,12-Dec-22,6690189,344.17,PUBLIC LIMITED COMPANY,SCOTTISH AND SOUTHERN ENERGY PLC,300000020481543
Portsmouth City Council,PCC,Environmental and Regulatory Services,Regulatory Services,"Housing, Neighbourhood and Building Services",Premises-Related Expenditure,Energy costs,12-Dec-22,6690189,356.27,PUBLIC LIMITED COMPANY,SCOTTISH AND SOUTHERN ENERGY PLC,300000020481543
Portsmouth City Council,PCC,Environmental and Regulatory Services,Regulatory Services,"Housing, Neighbourhood and Building Services",Premises-Related Expenditure,Energy costs,12-Dec-22,6690189,"-1,594.76",PUBLIC LIMITED COMPANY,SCOTTISH AND SOUTHERN ENERGY PLC,300000020481543
Portsmouth City Council,PCC,Environmental and Regulatory Services,Regulatory Services,"Housing, Neighbourhood and Building Services",Premises-Related Expenditure,Energy costs,12-Dec-22,6690189,-595.4,PUBLIC LIMITED COMPANY,SCOTTISH AND SOUTHERN ENERGY PLC,300000020481543
Portsmouth City Council,PCC,Environmental and Regulatory Services,Regulatory Services,"Housing, Neighbourhood and Building Services",Premises-Related Expenditure,Energy costs,12-Dec-22,6690189,"-1,549.63",PUBLIC LIMITED COMPANY,SCOTTISH AND SOUTHERN ENERGY PLC,300000020481543
Portsmouth City Council,PCC,Environmental and Regulatory Services,Regulatory Services,"Housing, Neighbourhood and Building Services",Premises-Related Expenditure,Energy costs,12-Dec-22,6690189,"-1,682.45",PUBLIC LIMITED COMPANY,SCOTTISH AND SOUTHERN ENERGY PLC,300000020481543
Portsmouth City Council,PCC,Environmental and Regulatory Services,Regulatory Services,"Housing, Neighbourhood and Building Services",Premises-Related Expenditure,Energy costs,12-Dec-22,6690189,51.49,PUBLIC LIMITED COMPANY,SCOTTISH AND SOUTHERN ENERGY PLC,300000020481543
Portsmouth City Council,PCC,Environmental and Regulatory Services,Regulatory Services,"Housing, Neighbourhood and Building Services",Premises-Related Expenditure,Energy costs,12-Dec-22,6690189,101.25,PUBLIC LIMITED COMPANY,SCOTTISH AND SOUTHERN ENERGY PLC,300000020481543
Portsmouth City Council,PCC,Environmental and Regulatory Services,Regulatory Services,"Housing, Neighbourhood and Building Services",Premises-Related Expenditure,Energy costs,12-Dec-22,6690189,100.53,PUBLIC LIMITED COMPANY,SCOTTISH AND SOUTHERN ENERGY PLC,300000020481543
Portsmouth City Council,PCC,Environmental and Regulatory Services,Regulatory Services,"Housing, Neighbourhood and Building Services",Premises-Related Expenditure,Energy costs,12-Dec-22,6690189,97.64,PUBLIC LIMITED COMPANY,SCOTTISH AND SOUTHERN ENERGY PLC,300000020481543
Portsmouth City Council,PCC,Environmental and Regulatory Services,Regulatory Services,"Housing, Neighbourhood and Building Services",Premises-Related Expenditure,Energy costs,12-Dec-22,6690189,90.43,PUBLIC LIMITED COMPANY,SCOTTISH AND SOUTHERN ENERGY PLC,300000020481543
Portsmouth City Council,PCC,Housing Revenue Account,Special Services,"Housing, Neighbourhood and Building Services",Premises-Related Expenditure,Energy costs,12-Dec-22,6690189,534.47,PUBLIC LIMITED COMPANY,SCOTTISH AND SOUTHERN ENERGY PLC,300000020481543
Portsmouth City Council,PCC,Highways and Transport Services,"Environment, Safety and Routine Maintenance",Regeneration,Premises-Related Expenditure,Energy costs,12-Dec-22,6690189,39.38,PUBLIC LIMITED COMPANY,SCOTTISH AND SOUTHERN ENERGY PLC,300000020481543
Portsmouth City Council,PCC,Housing Revenue Account,Special Services,"Housing, Neighbourhood and Building Services",Premises-Related Expenditure,Energy costs,12-Dec-22,6690189,"1,796.63",PUBLIC LIMITED COMPANY,SCOTTISH AND SOUTHERN ENERGY PLC,300000020481543
Portsmouth City Council,PCC,Housing Revenue Account,Special Services,"Housing, Neighbourhood and Building Services",Premises-Related Expenditure,Energy costs,12-Dec-22,6690189,555.23,PUBLIC LIMITED COMPANY,SCOTTISH AND SOUTHERN ENERGY PLC,300000020481543
Portsmouth City Council,PCC,Highways and Transport Services,"Environment, Safety and Routine Maintenance",Regeneration,Premises-Related Expenditure,Energy costs,12-Dec-22,6690189,51.06,PUBLIC LIMITED COMPANY,SCOTTISH AND SOUTHERN ENERGY PLC,300000020481543
Portsmouth City Council,PCC,Cultural and Related Services,Culture and Heritage,"Culture, Leisure & Regulatory Services",Premises-Related Expenditure,Energy costs,12-Dec-22,6690189,489.92,PUBLIC LIMITED COMPANY,SCOTTISH AND SOUTHERN ENERGY PLC,300000020481543
Portsmouth City Council,PCC,Housing Revenue Account,Special Services,"Housing, Neighbourhood and Building Services",Premises-Related Expenditure,Energy costs,12-Dec-22,6690189,"1,935.54",PUBLIC LIMITED COMPANY,SCOTTISH AND SOUTHERN ENERGY PLC,300000020481543
Portsmouth City Council,PCC,Highways and Transport Services,"Environment, Safety and Routine Maintenance",Regeneration,Premises-Related Expenditure,Energy costs,12-Dec-22,6690189,"1,821.96",PUBLIC LIMITED COMPANY,SCOTTISH AND SOUTHERN ENERGY PLC,300000020481543
Portsmouth City Council,PCC,Housing Revenue Account,Special Services,"Housing, Neighbourhood and Building Services",Premises-Related Expenditure,Energy costs,12-Dec-22,6690189,"2,373.32",PUBLIC LIMITED COMPANY,SCOTTISH AND SOUTHERN ENERGY PLC,300000020481543
Portsmouth City Council,PCC,Children's and Education Services,Children Looked After,Children's Services and Education,Premises-Related Expenditure,Energy costs,12-Dec-22,6690189,536.68,PUBLIC LIMITED COMPANY,SCOTTISH AND SOUTHERN ENERGY PLC,300000020481543
Portsmouth City Council,PCC,Housing Revenue Account,Special Services,"Housing, Neighbourhood and Building Services",Premises-Related Expenditure,Energy costs,12-Dec-22,6690189,742.95,PUBLIC LIMITED COMPANY,SCOTTISH AND SOUTHERN ENERGY PLC,300000020481543
Portsmouth City Council,PCC,Cultural and Related Services,Library Service,"Culture, Leisure & Regulatory Services",Premises-Related Expenditure,Energy costs,12-Dec-22,6690189,383.01,PUBLIC LIMITED COMPANY,SCOTTISH AND SOUTHERN ENERGY PLC,300000020481543
Portsmouth City Council,PCC,Housing Revenue Account,Special Services,"Housing, Neighbourhood and Building Services",Premises-Related Expenditure,Energy costs,12-Dec-22,6690189,"1,201.00",PUBLIC LIMITED COMPANY,SCOTTISH AND SOUTHERN ENERGY PLC,300000020481543
Portsmouth City Council,PCC,Other,Suspense and Capital Schemes,Regeneration,Premises-Related Expenditure,Energy costs,12-Dec-22,6690189,192.97,PUBLIC LIMITED COMPANY,SCOTTISH AND SOUTHERN ENERGY PLC,300000020481543
Portsmouth City Council,PCC,Housing Revenue Account,Special Services,"Housing, Neighbourhood and Building Services",Premises-Related Expenditure,Energy costs,12-Dec-22,6690189,694.05,PUBLIC LIMITED COMPANY,SCOTTISH AND SOUTHERN ENERGY PLC,300000020481543
Portsmouth City Council,PCC,Cultural and Related Services,Culture and Heritage,"Culture, Leisure & Regulatory Services",Premises-Related Expenditure,Energy costs,12-Dec-22,6690189,531.71,PUBLIC LIMITED COMPANY,SCOTTISH AND SOUTHERN ENERGY PLC,300000020481543
Portsmouth City Council,PCC,Cultural and Related Services,Culture and Heritage,"Culture, Leisure & Regulatory Services",Premises-Related Expenditure,Energy costs,12-Dec-22,6690189,236.37,PUBLIC LIMITED COMPANY,SCOTTISH AND SOUTHERN ENERGY PLC,300000020481543
Portsmouth City Council,PCC,Housing Revenue Account,Supervision and Management,"Housing, Neighbourhood and Building Services",Premises-Related Expenditure,Energy costs,12-Dec-22,6690189,"1,444.36",PUBLIC LIMITED COMPANY,SCOTTISH AND SOUTHERN ENERGY PLC,300000020481543
Portsmouth City Council,PCC,Children's and Education Services,Primary Schools,Children's Services and Education,Premises-Related Expenditure,Energy costs,12-Dec-22,6690189,"2,335.57",PUBLIC LIMITED COMPANY,SCOTTISH AND SOUTHERN ENERGY PLC,300000020481543
Portsmouth City Council,PCC,Costs below Net Cost of Services,Trading,Regeneration,Premises-Related Expenditure,Energy costs,12-Dec-22,6690189,"2,160.62",PUBLIC LIMITED COMPANY,SCOTTISH AND SOUTHERN ENERGY PLC,300000020481543
Portsmouth City Council,PCC,Environmental and Regulatory Services,Regulatory Services,"Housing, Neighbourhood and Building Services",Premises-Related Expenditure,Energy costs,12-Dec-22,6690189,"1,013.96",PUBLIC LIMITED COMPANY,SCOTTISH AND SOUTHERN ENERGY PLC,300000020481543
Portsmouth City Council,PCC,Environmental and Regulatory Services,"Cemetery, Cremation and Mortuary Services","Culture, Leisure & Regulatory Services",Premises-Related Expenditure,Energy costs,12-Dec-22,6690189,193.36,PUBLIC LIMITED COMPANY,SCOTTISH AND SOUTHERN ENERGY PLC,300000020481543
Portsmouth City Council,PCC,Central Services,"Registration of Births, Deaths and Marriages","Culture, Leisure & Regulatory Services",Premises-Related Expenditure,Energy costs,12-Dec-22,6690189,803.3,PUBLIC LIMITED COMPANY,SCOTTISH AND SOUTHERN ENERGY PLC,300000020481543
Portsmouth City Council,PCC,Children's and Education Services,Primary Schools,Children's Services and Education,Premises-Related Expenditure,Energy costs,12-Dec-22,6690189,"1,949.69",PUBLIC LIMITED COMPANY,SCOTTISH AND SOUTHERN ENERGY PLC,300000020481543
Portsmouth City Council,PCC,Housing Revenue Account,Special Services,"Housing, Neighbourhood and Building Services",Premises-Related Expenditure,Energy costs,12-Dec-22,6690189,301.34,PUBLIC LIMITED COMPANY,SCOTTISH AND SOUTHERN ENERGY PLC,300000020481543
Portsmouth City Council,PCC,Cultural and Related Services,Recreation and Sport,"Culture, Leisure & Regulatory Services",Premises-Related Expenditure,Energy costs,12-Dec-22,6690189,"1,204.81",PUBLIC LIMITED COMPANY,SCOTTISH AND SOUTHERN ENERGY PLC,300000020481543
Portsmouth City Council,PCC,Cultural and Related Services,Culture and Heritage,"Culture, Leisure & Regulatory Services",Premises-Related Expenditure,Energy costs,12-Dec-22,6690189,124.8,PUBLIC LIMITED COMPANY,SCOTTISH AND SOUTHERN ENERGY PLC,300000020481543
Portsmouth City Council,PCC,Housing Revenue Account,Special Services,"Housing, Neighbourhood and Building Services",Premises-Related Expenditure,Energy costs,12-Dec-22,6690189,654.25,PUBLIC LIMITED COMPANY,SCOTTISH AND SOUTHERN ENERGY PLC,300000020481543
Portsmouth City Council,PCC,Housing Revenue Account,Special Services,"Housing, Neighbourhood and Building Services",Premises-Related Expenditure,Energy costs,12-Dec-22,6690189,"1,157.95",PUBLIC LIMITED COMPANY,SCOTTISH AND SOUTHERN ENERGY PLC,300000020481543
Portsmouth City Council,PCC,Housing Revenue Account,Special Services,"Housing, Neighbourhood and Building Services",Premises-Related Expenditure,Energy costs,12-Dec-22,6690189,"1,271.02",PUBLIC LIMITED COMPANY,SCOTTISH AND SOUTHERN ENERGY PLC,300000020481543
Portsmouth City Council,PCC,Housing Revenue Account,Special Services,"Housing, Neighbourhood and Building Services",Premises-Related Expenditure,Energy costs,12-Dec-22,6690189,"1,332.39",PUBLIC LIMITED COMPANY,SCOTTISH AND SOUTHERN ENERGY PLC,300000020481543
Portsmouth City Council,PCC,Children's and Education Services,Primary Schools,Children's Services and Education,Premises-Related Expenditure,Energy costs,12-Dec-22,6690189,"2,584.57",PUBLIC LIMITED COMPANY,SCOTTISH AND SOUTHERN ENERGY PLC,300000020481543
Portsmouth City Council,PCC,Housing Revenue Account,Special Services,"Housing, Neighbourhood and Building Services",Premises-Related Expenditure,Energy costs,12-Dec-22,6690189,"2,076.24",PUBLIC LIMITED COMPANY,SCOTTISH AND SOUTHERN ENERGY PLC,300000020481543
Portsmouth City Council,PCC,Cultural and Related Services,Library Service,"Culture, Leisure & Regulatory Services",Premises-Related Expenditure,Energy costs,12-Dec-22,6690189,429.11,PUBLIC LIMITED COMPANY,SCOTTISH AND SOUTHERN ENERGY PLC,300000020481543
Portsmouth City Council,PCC,Housing Revenue Account,Special Services,"Housing, Neighbourhood and Building Services",Premises-Related Expenditure,Energy costs,12-Dec-22,6690189,41.55,PUBLIC LIMITED COMPANY,SCOTTISH AND SOUTHERN ENERGY PLC,300000020481543
Portsmouth City Council,PCC,Children's and Education Services,Family Support Services,Children's Services and Education,Premises-Related Expenditure,Energy costs,12-Dec-22,6690189,"1,176.34",PUBLIC LIMITED COMPANY,SCOTTISH AND SOUTHERN ENERGY PLC,300000020481543
Portsmouth City Council,PCC,Housing Revenue Account,"Rents, Rates, Taxes and Other Charges","Housing, Neighbourhood and Building Services",Premises-Related Expenditure,Energy costs,12-Dec-22,6690189,144.56,PUBLIC LIMITED COMPANY,SCOTTISH AND SOUTHERN ENERGY PLC,300000020481543
Portsmouth City Council,PCC,Housing Revenue Account,Special Services,"Housing, Neighbourhood and Building Services",Premises-Related Expenditure,Energy costs,12-Dec-22,6690189,"2,239.42",PUBLIC LIMITED COMPANY,SCOTTISH AND SOUTHERN ENERGY PLC,300000020481543
Portsmouth City Council,PCC,Environmental and Regulatory Services,Regulatory Services,"Housing, Neighbourhood and Building Services",Premises-Related Expenditure,Energy costs,12-Dec-22,6690189,539.38,PUBLIC LIMITED COMPANY,SCOTTISH AND SOUTHERN ENERGY PLC,300000020481543
Portsmouth City Council,PCC,Housing Revenue Account,Special Services,"Housing, Neighbourhood and Building Services",Premises-Related Expenditure,Energy costs,12-Dec-22,6690189,857.71,PUBLIC LIMITED COMPANY,SCOTTISH AND SOUTHERN ENERGY PLC,300000020481543
Portsmouth City Council,PCC,Housing Revenue Account,Special Services,"Housing, Neighbourhood and Building Services",Premises-Related Expenditure,Energy costs,12-Dec-22,6690189,430.36,PUBLIC LIMITED COMPANY,SCOTTISH AND SOUTHERN ENERGY PLC,300000020481543
Portsmouth City Council,PCC,Cultural and Related Services,Library Service,"Culture, Leisure & Regulatory Services",Premises-Related Expenditure,Energy costs,12-Dec-22,6690189,348.28,PUBLIC LIMITED COMPANY,SCOTTISH AND SOUTHERN ENERGY PLC,300000020481543
Portsmouth City Council,PCC,Highways and Transport Services,"Environment, Safety and Routine Maintenance",Regeneration,Premises-Related Expenditure,Energy costs,12-Dec-22,6690189,836.73,PUBLIC LIMITED COMPANY,SCOTTISH AND SOUTHERN ENERGY PLC,300000020481543
Portsmouth City Council,PCC,Housing Revenue Account,Special Services,"Housing, Neighbourhood and Building Services",Premises-Related Expenditure,Energy costs,12-Dec-22,6690189,718.39,PUBLIC LIMITED COMPANY,SCOTTISH AND SOUTHERN ENERGY PLC,300000020481543
Portsmouth City Council,PCC,Housing Revenue Account,Special Services,"Housing, Neighbourhood and Building Services",Premises-Related Expenditure,Energy costs,12-Dec-22,6690189,"1,216.70",PUBLIC LIMITED COMPANY,SCOTTISH AND SOUTHERN ENERGY PLC,300000020481543
Portsmouth City Council,PCC,Highways and Transport Services,"Environment, Safety and Routine Maintenance",Regeneration,Premises-Related Expenditure,Energy costs,12-Dec-22,6690189,907.86,PUBLIC LIMITED COMPANY,SCOTTISH AND SOUTHERN ENERGY PLC,300000020481543
Portsmouth City Council,PCC,Housing Revenue Account,Special Services,"Housing, Neighbourhood and Building Services",Premises-Related Expenditure,Energy costs,12-Dec-22,6690189,"1,197.11",PUBLIC LIMITED COMPANY,SCOTTISH AND SOUTHERN ENERGY PLC,300000020481543
Portsmouth City Council,PCC,Housing Revenue Account,Special Services,"Housing, Neighbourhood and Building Services",Premises-Related Expenditure,Energy costs,12-Dec-22,6690189,"2,210.67",PUBLIC LIMITED COMPANY,SCOTTISH AND SOUTHERN ENERGY PLC,300000020481543
Portsmouth City Council,PCC,Housing Services,Homelessness,"Housing, Neighbourhood and Building Services",Premises-Related Expenditure,Energy costs,12-Dec-22,6690189,227.3,PUBLIC LIMITED COMPANY,SCOTTISH AND SOUTHERN ENERGY PLC,300000020481543
Portsmouth City Council,PCC,Cultural and Related Services,Open Spaces,"Culture, Leisure & Regulatory Services",Premises-Related Expenditure,Energy costs,12-Dec-22,6690189,32.62,PUBLIC LIMITED COMPANY,SCOTTISH AND SOUTHERN ENERGY PLC,300000020481543
Portsmouth City Council,PCC,Costs below Net Cost of Services,Trading,Regeneration,Premises-Related Expenditure,Energy costs,12-Dec-22,6690189,24.25,PUBLIC LIMITED COMPANY,SCOTTISH AND SOUTHERN ENERGY PLC,300000020481543
Portsmouth City Council,PCC,Cultural and Related Services,Library Service,"Culture, Leisure & Regulatory Services",Premises-Related Expenditure,Energy costs,12-Dec-22,6690189,507.77,PUBLIC LIMITED COMPANY,SCOTTISH AND SOUTHERN ENERGY PLC,300000020481543
Portsmouth City Council,PCC,Highways and Transport Services,"Environment, Safety and Routine Maintenance",Regeneration,Premises-Related Expenditure,Energy costs,12-Dec-22,6690189,119.13,PUBLIC LIMITED COMPANY,SCOTTISH AND SOUTHERN ENERGY PLC,300000020481543
Portsmouth City Council,PCC,Housing Revenue Account,"Rents, Rates, Taxes and Other Charges","Housing, Neighbourhood and Building Services",Premises-Related Expenditure,Energy costs,12-Dec-22,6690189,186.11,PUBLIC LIMITED COMPANY,SCOTTISH AND SOUTHERN ENERGY PLC,300000020481543
Portsmouth City Council,PCC,Cultural and Related Services,Open Spaces,"Culture, Leisure & Regulatory Services",Premises-Related Expenditure,Energy costs,12-Dec-22,6690189,"1,377.29",PUBLIC LIMITED COMPANY,SCOTTISH AND SOUTHERN ENERGY PLC,300000020481543
Portsmouth City Council,PCC,Housing Revenue Account,Special Services,"Housing, Neighbourhood and Building Services",Premises-Related Expenditure,Energy costs,12-Dec-22,6690189,701.92,PUBLIC LIMITED COMPANY,SCOTTISH AND SOUTHERN ENERGY PLC,300000020481543
Portsmouth City Council,PCC,Adult Social Care,Information and Early Intervention,Adult Care,Supplies and Services,Catering,14-Dec-22,6690973,"1,410.00",SUPPLIER,AGE UK,300000020463108
Portsmouth City Council,PCC,Costs below Net Cost of Services,Trading,Regeneration,Premises-Related Expenditure,Energy costs,12-Dec-22,6690189,83.56,PUBLIC LIMITED COMPANY,SCOTTISH AND SOUTHERN ENERGY PLC,300000020481543
Portsmouth City Council,PCC,Highways and Transport Services,Public Transport,Regeneration,Premises-Related Expenditure,"Repairs, alterations and maintenance of buildings",12-Dec-22,6690189,150.16,PUBLIC LIMITED COMPANY,SCOTTISH AND SOUTHERN ENERGY PLC,300000020481543
Portsmouth City Council,PCC,Housing Revenue Account,Special Services,"Housing, Neighbourhood and Building Services",Premises-Related Expenditure,Energy costs,12-Dec-22,6690189,"1,390.82",PUBLIC LIMITED COMPANY,SCOTTISH AND SOUTHERN ENERGY PLC,300000020481543
Portsmouth City Council,PCC,Housing Revenue Account,Special Services,"Housing, Neighbourhood and Building Services",Premises-Related Expenditure,Energy costs,12-Dec-22,6690189,"1,129.66",PUBLIC LIMITED COMPANY,SCOTTISH AND SOUTHERN ENERGY PLC,300000020481543
Portsmouth City Council,PCC,Environmental and Regulatory Services,"Cemetery, Cremation and Mortuary Services","Culture, Leisure & Regulatory Services",Premises-Related Expenditure,Energy costs,12-Dec-22,6690189,27.87,PUBLIC LIMITED COMPANY,SCOTTISH AND SOUTHERN ENERGY PLC,300000020481543
Portsmouth City Council,PCC,Planning Services,Business support,Regeneration,Premises-Related Expenditure,Energy costs,12-Dec-22,6690189,173.4,PUBLIC LIMITED COMPANY,SCOTTISH AND SOUTHERN ENERGY PLC,300000020481543
Portsmouth City Council,PCC,Planning Services,Business support,Regeneration,Premises-Related Expenditure,Energy costs,12-Dec-22,6690189,"1,802.35",PUBLIC LIMITED COMPANY,SCOTTISH AND SOUTHERN ENERGY PLC,300000020481543
Portsmouth City Council,PCC,Planning Services,Economic Development,Regeneration,Premises-Related Expenditure,Energy costs,12-Dec-22,6690189,93.72,PUBLIC LIMITED COMPANY,SCOTTISH AND SOUTHERN ENERGY PLC,300000020481543
Portsmouth City Council,PCC,Cultural and Related Services,Library Service,"Culture, Leisure & Regulatory Services",Premises-Related Expenditure,Energy costs,12-Dec-22,6690189,52.2,PUBLIC LIMITED COMPANY,SCOTTISH AND SOUTHERN ENERGY PLC,300000020481543
Portsmouth City Council,PCC,Planning Services,Economic Development,Regeneration,Premises-Related Expenditure,Energy costs,12-Dec-22,6690189,66.73,PUBLIC LIMITED COMPANY,SCOTTISH AND SOUTHERN ENERGY PLC,300000020481543
Portsmouth City Council,PCC,Housing Revenue Account,Special Services,"Housing, Neighbourhood and Building Services",Premises-Related Expenditure,Energy costs,12-Dec-22,6690189,740.91,PUBLIC LIMITED COMPANY,SCOTTISH AND SOUTHERN ENERGY PLC,300000020481543
Portsmouth City Council,PCC,Cultural and Related Services,Open Spaces,"Culture, Leisure & Regulatory Services",Premises-Related Expenditure,Energy costs,12-Dec-22,6690189,"6,488.28",PUBLIC LIMITED COMPANY,SCOTTISH AND SOUTHERN ENERGY PLC,300000020481543
Portsmouth City Council,PCC,Housing Revenue Account,Special Services,"Housing, Neighbourhood and Building Services",Premises-Related Expenditure,Energy costs,12-Dec-22,6690189,518.16,PUBLIC LIMITED COMPANY,SCOTTISH AND SOUTHERN ENERGY PLC,300000020481543
Portsmouth City Council,PCC,Costs below Net Cost of Services,Trading,Regeneration,Premises-Related Expenditure,Energy costs,12-Dec-22,6690189,76.86,PUBLIC LIMITED COMPANY,SCOTTISH AND SOUTHERN ENERGY PLC,300000020481543
Portsmouth City Council,PCC,Costs below Net Cost of Services,Trading,Regeneration,Premises-Related Expenditure,Energy costs,12-Dec-22,6690189,203.57,PUBLIC LIMITED COMPANY,SCOTTISH AND SOUTHERN ENERGY PLC,300000020481543
Portsmouth City Council,PCC,Costs below Net Cost of Services,Trading,Regeneration,Premises-Related Expenditure,Energy costs,12-Dec-22,6690189,83.22,PUBLIC LIMITED COMPANY,SCOTTISH AND SOUTHERN ENERGY PLC,300000020481543
Portsmouth City Council,PCC,Housing Revenue Account,Special Services,"Housing, Neighbourhood and Building Services",Premises-Related Expenditure,Energy costs,12-Dec-22,6690189,431.55,PUBLIC LIMITED COMPANY,SCOTTISH AND SOUTHERN ENERGY PLC,300000020481543
Portsmouth City Council,PCC,Highways and Transport Services,Structural Maintenance,Regeneration,Premises-Related Expenditure,Energy costs,12-Dec-22,6690189,43.56,PUBLIC LIMITED COMPANY,SCOTTISH AND SOUTHERN ENERGY PLC,300000020481543
Portsmouth City Council,PCC,Housing Revenue Account,Special Services,"Housing, Neighbourhood and Building Services",Premises-Related Expenditure,Energy costs,12-Dec-22,6690189,36.93,PUBLIC LIMITED COMPANY,SCOTTISH AND SOUTHERN ENERGY PLC,300000020481543
Portsmouth City Council,PCC,Cultural and Related Services,Open Spaces,"Culture, Leisure & Regulatory Services",Premises-Related Expenditure,Energy costs,12-Dec-22,6690189,92.16,PUBLIC LIMITED COMPANY,SCOTTISH AND SOUTHERN ENERGY PLC,300000020481543
Portsmouth City Council,PCC,Environmental and Regulatory Services,Regulatory Services,"Housing, Neighbourhood and Building Services",Premises-Related Expenditure,Energy costs,12-Dec-22,6690189,519.27,PUBLIC LIMITED COMPANY,SCOTTISH AND SOUTHERN ENERGY PLC,300000020481543
Portsmouth City Council,PCC,Housing Revenue Account,Special Services,"Housing, Neighbourhood and Building Services",Premises-Related Expenditure,Energy costs,12-Dec-22,6690189,247.92,PUBLIC LIMITED COMPANY,SCOTTISH AND SOUTHERN ENERGY PLC,300000020481543
Portsmouth City Council,PCC,Highways and Transport Services,Structural Maintenance,Regeneration,Premises-Related Expenditure,Energy costs,12-Dec-22,6690189,50.34,PUBLIC LIMITED COMPANY,SCOTTISH AND SOUTHERN ENERGY PLC,300000020481543
Portsmouth City Council,PCC,Housing Revenue Account,Special Services,"Housing, Neighbourhood and Building Services",Premises-Related Expenditure,Energy costs,12-Dec-22,6690189,143.1,PUBLIC LIMITED COMPANY,SCOTTISH AND SOUTHERN ENERGY PLC,300000020481543
Portsmouth City Council,PCC,Cultural and Related Services,Open Spaces,"Culture, Leisure & Regulatory Services",Premises-Related Expenditure,Energy costs,12-Dec-22,6690189,328.39,PUBLIC LIMITED COMPANY,SCOTTISH AND SOUTHERN ENERGY PLC,300000020481543
Portsmouth City Council,PCC,Cultural and Related Services,Open Spaces,"Culture, Leisure & Regulatory Services",Premises-Related Expenditure,Energy costs,12-Dec-22,6690189,43.56,PUBLIC LIMITED COMPANY,SCOTTISH AND SOUTHERN ENERGY PLC,300000020481543
Portsmouth City Council,PCC,Highways and Transport Services,Parking Services,Regeneration,Premises-Related Expenditure,Energy costs,12-Dec-22,6690189,214.46,PUBLIC LIMITED COMPANY,SCOTTISH AND SOUTHERN ENERGY PLC,300000020481543
Portsmouth City Council,PCC,Cultural and Related Services,Open Spaces,"Culture, Leisure & Regulatory Services",Premises-Related Expenditure,Energy costs,12-Dec-22,6690189,181.72,PUBLIC LIMITED COMPANY,SCOTTISH AND SOUTHERN ENERGY PLC,300000020481543
Portsmouth City Council,PCC,Housing Revenue Account,Special Services,"Housing, Neighbourhood and Building Services",Premises-Related Expenditure,Energy costs,12-Dec-22,6690189,108.46,PUBLIC LIMITED COMPANY,SCOTTISH AND SOUTHERN ENERGY PLC,300000020481543
Portsmouth City Council,PCC,Housing Revenue Account,Supervision and Management,"Housing, Neighbourhood and Building Services",Premises-Related Expenditure,Energy costs,12-Dec-22,6690189,579.91,PUBLIC LIMITED COMPANY,SCOTTISH AND SOUTHERN ENERGY PLC,300000020481543
Portsmouth City Council,PCC,Highways and Transport Services,Structural Maintenance,Regeneration,Premises-Related Expenditure,Energy costs,12-Dec-22,6690189,35.05,PUBLIC LIMITED COMPANY,SCOTTISH AND SOUTHERN ENERGY PLC,300000020481543
Portsmouth City Council,PCC,Housing Revenue Account,Special Services,"Housing, Neighbourhood and Building Services",Premises-Related Expenditure,Energy costs,12-Dec-22,6690189,603.85,PUBLIC LIMITED COMPANY,SCOTTISH AND SOUTHERN ENERGY PLC,300000020481543
Portsmouth City Council,PCC,Housing Revenue Account,Special Services,"Housing, Neighbourhood and Building Services",Premises-Related Expenditure,Energy costs,12-Dec-22,6690189,167.44,PUBLIC LIMITED COMPANY,SCOTTISH AND SOUTHERN ENERGY PLC,300000020481543
Portsmouth City Council,PCC,Housing Revenue Account,Special Services,"Housing, Neighbourhood and Building Services",Premises-Related Expenditure,Energy costs,12-Dec-22,6690189,124.9,PUBLIC LIMITED COMPANY,SCOTTISH AND SOUTHERN ENERGY PLC,300000020481543
Portsmouth City Council,PCC,Highways and Transport Services,Structural Maintenance,Regeneration,Premises-Related Expenditure,Energy costs,12-Dec-22,6690189,37.21,PUBLIC LIMITED COMPANY,SCOTTISH AND SOUTHERN ENERGY PLC,300000020481543
Portsmouth City Council,PCC,Highways and Transport Services,Structural Maintenance,Regeneration,Premises-Related Expenditure,Energy costs,12-Dec-22,6690189,35.34,PUBLIC LIMITED COMPANY,SCOTTISH AND SOUTHERN ENERGY PLC,300000020481543
Portsmouth City Council,PCC,Highways and Transport Services,Structural Maintenance,Regeneration,Premises-Related Expenditure,Energy costs,12-Dec-22,6690189,35.77,PUBLIC LIMITED COMPANY,SCOTTISH AND SOUTHERN ENERGY PLC,300000020481543
Portsmouth City Council,PCC,Housing Services,Private Sector Housing Renewal,"Housing, Neighbourhood and Building Services",Income,Other grants reimbursements and contributions,01-Dec-22,6688867,"-1,804.00",LIMITED COMPANY,LIFTECH SYSTEMS (SE) LIMITED,300000020461913
Portsmouth City Council,PCC,Other,Suspense and Capital Schemes,Capital - Housing General Fund,Capital Charges,REFCUS,01-Dec-22,6688867,"2,164.80",LIMITED COMPANY,LIFTECH SYSTEMS (SE) LIMITED,300000020461913
Portsmouth City Council,PCC,Other,Suspense and Capital Schemes,Capital - Housing General Fund,Capital Charges,REFCUS,01-Dec-22,6688867,"15,905.00",LIMITED COMPANY,LIFTECH SYSTEMS (SE) LIMITED,300000020461913
Portsmouth City Council,PCC,Adult Social Care,Learning Disability Support Adults (18 - 64),Adult Care,Supplies and Services,"Equipment, furniture and materials",21-Dec-22,6692590,"1,700.00",LIMITED COMPANY,3ET LTD,300000506134301
Portsmouth City Council,PCC,Adult Social Care,Physical Support Older People (85+),Adult Care,Third Party Payments,Other establishments,06-Dec-22,6689270,"1,132.60",SUPPLIER,ABICARE SERVICES LTD,300000020470310
Portsmouth City Council,PCC,Adult Social Care,Physical Support Older People (85+),Adult Care,Third Party Payments,Other establishments,30-Dec-22,6693484,"1,132.60",SUPPLIER,ABICARE SERVICES LTD,300000020470310
Portsmouth City Council,PCC,Adult Social Care,Learning Disability Support Adults (18 - 64),Adult Care,Third Party Payments,Other establishments,12-Dec-22,6690227,"3,327.23",SUPPLIER, ACHIEVE TOGETHER LIMITED,300000020469986
Portsmouth City Council,PCC,Adult Social Care,Learning Disability Support Adults (18 - 64),Adult Care,Third Party Payments,Other establishments,12-Dec-22,6690227,"7,163.79",SUPPLIER, ACHIEVE TOGETHER LIMITED,300000020469986
Portsmouth City Council,PCC,Adult Social Care,Learning Disability Support Adults (18 - 64),Adult Care,Third Party Payments,Other establishments,12-Dec-22,6690227,"7,181.15",SUPPLIER, ACHIEVE TOGETHER LIMITED,300000020469986
Portsmouth City Council,PCC,Adult Social Care,Learning Disability Support Adults (18 - 64),Adult Care,Third Party Payments,Other establishments,12-Dec-22,6690227,"8,335.28",SUPPLIER, ACHIEVE TOGETHER LIMITED,300000020469986
Portsmouth City Council,PCC,Adult Social Care,Learning Disability Support Adults (18 - 64),Adult Care,Third Party Payments,Other establishments,12-Dec-22,6690227,"8,694.26",SUPPLIER, ACHIEVE TOGETHER LIMITED,300000020469986
Portsmouth City Council,PCC,Adult Social Care,Learning Disability Support Adults (18 - 64),Adult Care,Third Party Payments,Other establishments,12-Dec-22,6690227,"9,003.95",SUPPLIER, ACHIEVE TOGETHER LIMITED,300000020469986
Portsmouth City Council,PCC,Children's and Education Services,Children Looked After,Children's Services and Education,Third Party Payments,Other establishments,07-Dec-22,6689701,0,SUPPLIER,COMPASS COMMUNITY LIMITED,300000020462668
Portsmouth City Council,PCC,Children's and Education Services,Children Looked After,Children's Services and Education,Third Party Payments,Other establishments,07-Dec-22,6689701,0.08,SUPPLIER,COMPASS COMMUNITY LIMITED,300000020462668
Portsmouth City Council,PCC,Children's and Education Services,Children Looked After,Children's Services and Education,Third Party Payments,Other establishments,07-Dec-22,6689701,571.43,SUPPLIER,COMPASS COMMUNITY LIMITED,300000020462668
Portsmouth City Council,PCC,Children's and Education Services,Children Looked After,Children's Services and Education,Third Party Payments,Other establishments,07-Dec-22,6689701,714.29,SUPPLIER,COMPASS COMMUNITY LIMITED,300000020462668
Portsmouth City Council,PCC,Children's and Education Services,Children Looked After,Children's Services and Education,Third Party Payments,Other establishments,07-Dec-22,6689701,"1,000.00",SUPPLIER,COMPASS COMMUNITY LIMITED,300000020462668
Portsmouth City Council,PCC,Children's and Education Services,Children Looked After,Children's Services and Education,Third Party Payments,Other establishments,07-Dec-22,6689701,"1,000.00",SUPPLIER,COMPASS COMMUNITY LIMITED,300000020462668
Portsmouth City Council,PCC,Children's and Education Services,Children Looked After,Children's Services and Education,Third Party Payments,Other establishments,07-Dec-22,6689701,"1,000.00",SUPPLIER,COMPASS COMMUNITY LIMITED,300000020462668
Portsmouth City Council,PCC,Housing Revenue Account,"Rents, Rates, Taxes and Other Charges","Housing, Neighbourhood and Building Services",Premises-Related Expenditure,Rates,23-Dec-22,6693061,248,OTHER LOCAL AUTHORITY,HAVANT BOROUGH COUNCIL,300000020457057
Portsmouth City Council,PCC,Children's and Education Services,Children Looked After,Children's Services and Education,Supplies and Services,Services,13-Dec-22,6690476,"1,239.00",SUPPLIER,AA GLOBAL LANGUAGE SERVICES LTD,300000020483226
Portsmouth City Council,PCC,Children's and Education Services,Safeguarding Children and Young Peoples Services,Children's Services and Education,Third Party Payments,Other establishments,14-Dec-22,6690971,-0.03,SUPPLIER,TWO SAINTS LTD,300000020462955
Portsmouth City Council,PCC,Children's and Education Services,Safeguarding Children and Young Peoples Services,Children's Services and Education,Third Party Payments,Other establishments,14-Dec-22,6690971,27.64,SUPPLIER,TWO SAINTS LTD,300000020462955
Portsmouth City Council,PCC,Children's and Education Services,Safeguarding Children and Young Peoples Services,Children's Services and Education,Third Party Payments,Other establishments,14-Dec-22,6690971,55.28,SUPPLIER,TWO SAINTS LTD,300000020462955
Portsmouth City Council,PCC,Children's and Education Services,Safeguarding Children and Young Peoples Services,Children's Services and Education,Third Party Payments,Other establishments,14-Dec-22,6690971,193.49,SUPPLIER,TWO SAINTS LTD,300000020462955
Portsmouth City Council,PCC,Children's and Education Services,Safeguarding Children and Young Peoples Services,Children's Services and Education,Third Party Payments,Other establishments,14-Dec-22,6690971,193.49,SUPPLIER,TWO SAINTS LTD,300000020462955
Portsmouth City Council,PCC,Children's and Education Services,Safeguarding Children and Young Peoples Services,Children's Services and Education,Third Party Payments,Other establishments,14-Dec-22,6690971,193.49,SUPPLIER,TWO SAINTS LTD,300000020462955
Portsmouth City Council,PCC,Children's and Education Services,Safeguarding Children and Young Peoples Services,Children's Services and Education,Third Party Payments,Other establishments,14-Dec-22,6690971,-0.04,SUPPLIER,TWO SAINTS LTD,300000020462955
Portsmouth City Council,PCC,Children's and Education Services,Safeguarding Children and Young Peoples Services,Children's Services and Education,Third Party Payments,Other establishments,14-Dec-22,6690971,27.64,SUPPLIER,TWO SAINTS LTD,300000020462955
Portsmouth City Council,PCC,Children's and Education Services,Safeguarding Children and Young Peoples Services,Children's Services and Education,Third Party Payments,Other establishments,14-Dec-22,6690971,55.28,SUPPLIER,TWO SAINTS LTD,300000020462955
Portsmouth City Council,PCC,Children's and Education Services,Safeguarding Children and Young Peoples Services,Children's Services and Education,Third Party Payments,Other establishments,14-Dec-22,6690971,55.28,SUPPLIER,TWO SAINTS LTD,300000020462955
Portsmouth City Council,PCC,Children's and Education Services,Safeguarding Children and Young Peoples Services,Children's Services and Education,Third Party Payments,Other establishments,14-Dec-22,6690971,138.21,SUPPLIER,TWO SAINTS LTD,300000020462955
Portsmouth City Council,PCC,Children's and Education Services,Safeguarding Children and Young Peoples Services,Children's Services and Education,Third Party Payments,Other establishments,14-Dec-22,6690971,193.49,SUPPLIER,TWO SAINTS LTD,300000020462955
Portsmouth City Council,PCC,Children's and Education Services,Safeguarding Children and Young Peoples Services,Children's Services and Education,Third Party Payments,Other establishments,14-Dec-22,6690971,193.49,SUPPLIER,TWO SAINTS LTD,300000020462955
Portsmouth City Council,PCC,Children's and Education Services,Safeguarding Children and Young Peoples Services,Children's Services and Education,Third Party Payments,Other establishments,14-Dec-22,6690971,193.49,SUPPLIER,TWO SAINTS LTD,300000020462955
Portsmouth City Council,PCC,Children's and Education Services,Safeguarding Children and Young Peoples Services,Children's Services and Education,Third Party Payments,Other establishments,14-Dec-22,6690971,-0.04,SUPPLIER,TWO SAINTS LTD,300000020462955
Portsmouth City Council,PCC,Children's and Education Services,Safeguarding Children and Young Peoples Services,Children's Services and Education,Third Party Payments,Other establishments,14-Dec-22,6690971,27.64,SUPPLIER,TWO SAINTS LTD,300000020462955
Portsmouth City Council,PCC,Children's and Education Services,Safeguarding Children and Young Peoples Services,Children's Services and Education,Third Party Payments,Other establishments,14-Dec-22,6690971,55.28,SUPPLIER,TWO SAINTS LTD,300000020462955
Portsmouth City Council,PCC,Children's and Education Services,Safeguarding Children and Young Peoples Services,Children's Services and Education,Third Party Payments,Other establishments,14-Dec-22,6690971,193.49,SUPPLIER,TWO SAINTS LTD,300000020462955
Portsmouth City Council,PCC,Children's and Education Services,Safeguarding Children and Young Peoples Services,Children's Services and Education,Third Party Payments,Other establishments,14-Dec-22,6690971,193.49,SUPPLIER,TWO SAINTS LTD,300000020462955
Portsmouth City Council,PCC,Children's and Education Services,Safeguarding Children and Young Peoples Services,Children's Services and Education,Third Party Payments,Other establishments,14-Dec-22,6690971,193.49,SUPPLIER,TWO SAINTS LTD,300000020462955
Portsmouth City Council,PCC,Children's and Education Services,Safeguarding Children and Young Peoples Services,Children's Services and Education,Third Party Payments,Other establishments,14-Dec-22,6690971,193.49,SUPPLIER,TWO SAINTS LTD,300000020462955
Portsmouth City Council,PCC,Children's and Education Services,Safeguarding Children and Young Peoples Services,Children's Services and Education,Third Party Payments,Other establishments,14-Dec-22,6690971,-0.04,SUPPLIER,TWO SAINTS LTD,300000020462955
Portsmouth City Council,PCC,Children's and Education Services,Safeguarding Children and Young Peoples Services,Children's Services and Education,Third Party Payments,Other establishments,14-Dec-22,6690971,27.64,SUPPLIER,TWO SAINTS LTD,300000020462955
Portsmouth City Council,PCC,Children's and Education Services,Safeguarding Children and Young Peoples Services,Children's Services and Education,Third Party Payments,Other establishments,14-Dec-22,6690971,55.28,SUPPLIER,TWO SAINTS LTD,300000020462955
Portsmouth City Council,PCC,Children's and Education Services,Safeguarding Children and Young Peoples Services,Children's Services and Education,Third Party Payments,Other establishments,14-Dec-22,6690971,193.49,SUPPLIER,TWO SAINTS LTD,300000020462955
Portsmouth City Council,PCC,Children's and Education Services,Safeguarding Children and Young Peoples Services,Children's Services and Education,Third Party Payments,Other establishments,14-Dec-22,6690971,193.49,SUPPLIER,TWO SAINTS LTD,300000020462955
Portsmouth City Council,PCC,Children's and Education Services,Safeguarding Children and Young Peoples Services,Children's Services and Education,Third Party Payments,Other establishments,14-Dec-22,6690971,193.49,SUPPLIER,TWO SAINTS LTD,300000020462955
Portsmouth City Council,PCC,Children's and Education Services,Safeguarding Children and Young Peoples Services,Children's Services and Education,Third Party Payments,Other establishments,14-Dec-22,6690971,193.49,SUPPLIER,TWO SAINTS LTD,300000020462955
Portsmouth City Council,PCC,Children's and Education Services,Safeguarding Children and Young Peoples Services,Children's Services and Education,Third Party Payments,Other establishments,14-Dec-22,6690971,24.81,SUPPLIER,TWO SAINTS LTD,300000020462955
Portsmouth City Council,PCC,Children's and Education Services,Safeguarding Children and Young Peoples Services,Children's Services and Education,Third Party Payments,Other establishments,14-Dec-22,6690971,33.09,SUPPLIER,TWO SAINTS LTD,300000020462955
Portsmouth City Council,PCC,Children's and Education Services,Safeguarding Children and Young Peoples Services,Children's Services and Education,Third Party Payments,Other establishments,14-Dec-22,6690971,57.9,SUPPLIER,TWO SAINTS LTD,300000020462955
Portsmouth City Council,PCC,Children's and Education Services,Safeguarding Children and Young Peoples Services,Children's Services and Education,Third Party Payments,Other establishments,14-Dec-22,6690971,57.9,SUPPLIER,TWO SAINTS LTD,300000020462955
Portsmouth City Council,PCC,Children's and Education Services,Safeguarding Children and Young Peoples Services,Children's Services and Education,Third Party Payments,Other establishments,14-Dec-22,6690971,57.9,SUPPLIER,TWO SAINTS LTD,300000020462955
Portsmouth City Council,PCC,Children's and Education Services,Asylum seekers,Children's Services and Education,Third Party Payments,Other establishments,15-Dec-22,6691204,553.6,SUPPLIER,FAIR WAYS COMMUNITY BENEFIT SOCEITY T/A FAIRWAYS CARE (UK) LTD,300000020459125
Portsmouth City Council,PCC,Children's and Education Services,Asylum seekers,Children's Services and Education,Third Party Payments,Other establishments,15-Dec-22,6691204,692,SUPPLIER,FAIR WAYS COMMUNITY BENEFIT SOCEITY T/A FAIRWAYS CARE (UK) LTD,300000020459125
Portsmouth City Council,PCC,Children's and Education Services,Asylum seekers,Children's Services and Education,Third Party Payments,Other establishments,15-Dec-22,6691204,968.8,SUPPLIER,FAIR WAYS COMMUNITY BENEFIT SOCEITY T/A FAIRWAYS CARE (UK) LTD,300000020459125
Portsmouth City Council,PCC,Children's and Education Services,Asylum seekers,Children's Services and Education,Third Party Payments,Other establishments,15-Dec-22,6691204,968.8,SUPPLIER,FAIR WAYS COMMUNITY BENEFIT SOCEITY T/A FAIRWAYS CARE (UK) LTD,300000020459125
Portsmouth City Council,PCC,Children's and Education Services,Asylum seekers,Children's Services and Education,Third Party Payments,Other establishments,15-Dec-22,6691204,968.8,SUPPLIER,FAIR WAYS COMMUNITY BENEFIT SOCEITY T/A FAIRWAYS CARE (UK) LTD,300000020459125
Portsmouth City Council,PCC,Children's and Education Services,Asylum seekers,Children's Services and Education,Third Party Payments,Other establishments,15-Dec-22,6691204,276.8,SUPPLIER,FAIR WAYS COMMUNITY BENEFIT SOCEITY T/A FAIRWAYS CARE (UK) LTD,300000020459125
Portsmouth City Council,PCC,Children's and Education Services,Asylum seekers,Children's Services and Education,Third Party Payments,Other establishments,15-Dec-22,6691204,415.2,SUPPLIER,FAIR WAYS COMMUNITY BENEFIT SOCEITY T/A FAIRWAYS CARE (UK) LTD,300000020459125
Portsmouth City Council,PCC,Children's and Education Services,Asylum seekers,Children's Services and Education,Third Party Payments,Other establishments,15-Dec-22,6691204,553.6,SUPPLIER,FAIR WAYS COMMUNITY BENEFIT SOCEITY T/A FAIRWAYS CARE (UK) LTD,300000020459125
Portsmouth City Council,PCC,Children's and Education Services,Asylum seekers,Children's Services and Education,Third Party Payments,Other establishments,15-Dec-22,6691204,692,SUPPLIER,FAIR WAYS COMMUNITY BENEFIT SOCEITY T/A FAIRWAYS CARE (UK) LTD,300000020459125
Portsmouth City Council,PCC,Children's and Education Services,Asylum seekers,Children's Services and Education,Third Party Payments,Other establishments,15-Dec-22,6691204,968.8,SUPPLIER,FAIR WAYS COMMUNITY BENEFIT SOCEITY T/A FAIRWAYS CARE (UK) LTD,300000020459125
Portsmouth City Council,PCC,Children's and Education Services,Asylum seekers,Children's Services and Education,Third Party Payments,Other establishments,15-Dec-22,6691204,968.8,SUPPLIER,FAIR WAYS COMMUNITY BENEFIT SOCEITY T/A FAIRWAYS CARE (UK) LTD,300000020459125
Portsmouth City Council,PCC,Children's and Education Services,Asylum seekers,Children's Services and Education,Third Party Payments,Other establishments,15-Dec-22,6691204,968.8,SUPPLIER,FAIR WAYS COMMUNITY BENEFIT SOCEITY T/A FAIRWAYS CARE (UK) LTD,300000020459125
Portsmouth City Council,PCC,Children's and Education Services,Asylum seekers,Children's Services and Education,Third Party Payments,Other establishments,15-Dec-22,6691204,968.8,SUPPLIER,FAIR WAYS COMMUNITY BENEFIT SOCEITY T/A FAIRWAYS CARE (UK) LTD,300000020459125
Portsmouth City Council,PCC,Children's and Education Services,Asylum seekers,Children's Services and Education,Third Party Payments,Other establishments,15-Dec-22,6691204,553.6,SUPPLIER,FAIR WAYS COMMUNITY BENEFIT SOCEITY T/A FAIRWAYS CARE (UK) LTD,300000020459125
Portsmouth City Council,PCC,Children's and Education Services,Asylum seekers,Children's Services and Education,Third Party Payments,Other establishments,15-Dec-22,6691204,692,SUPPLIER,FAIR WAYS COMMUNITY BENEFIT SOCEITY T/A FAIRWAYS CARE (UK) LTD,300000020459125
Portsmouth City Council,PCC,Children's and Education Services,Asylum seekers,Children's Services and Education,Third Party Payments,Other establishments,15-Dec-22,6691204,968.8,SUPPLIER,FAIR WAYS COMMUNITY BENEFIT SOCEITY T/A FAIRWAYS CARE (UK) LTD,300000020459125
Portsmouth City Council,PCC,Children's and Education Services,Asylum seekers,Children's Services and Education,Third Party Payments,Other establishments,15-Dec-22,6691204,968.8,SUPPLIER,FAIR WAYS COMMUNITY BENEFIT SOCEITY T/A FAIRWAYS CARE (UK) LTD,300000020459125
Portsmouth City Council,PCC,Children's and Education Services,Asylum seekers,Children's Services and Education,Third Party Payments,Other establishments,15-Dec-22,6691204,968.8,SUPPLIER,FAIR WAYS COMMUNITY BENEFIT SOCEITY T/A FAIRWAYS CARE (UK) LTD,300000020459125
Portsmouth City Council,PCC,Children's and Education Services,Children Looked After,Children's Services and Education,Third Party Payments,Other establishments,15-Dec-22,6691204,553.6,SUPPLIER,FAIR WAYS COMMUNITY BENEFIT SOCEITY T/A FAIRWAYS CARE (UK) LTD,300000020459125
